{"text_format":"1","workbook":"xlsx","n_sheets":16,"sheets":["DIRECTIONS","TRANSCRIPT INFO","GEs","MAJOR FORM","Student Tracking Form","UNOFFICIAL GPA","SCHEDULE","Module1","Module2","Module3","Module4","Module5","Module6","Module7","Module8","Module9"],"not_rendered":{"charts":0,"images":4,"macros":1,"external_links":0,"defined_names":4,"comments":2,"pivot_tables":0},"unopened":[{"sheet":"Module1","index":7,"reason":"part_missing"},{"sheet":"Module2","index":8,"reason":"part_missing"},{"sheet":"Module3","index":9,"reason":"part_missing"},{"sheet":"Module4","index":10,"reason":"part_missing"},{"sheet":"Module5","index":11,"reason":"part_missing"},{"sheet":"Module6","index":12,"reason":"part_missing"},{"sheet":"Module7","index":13,"reason":"part_missing"},{"sheet":"Module8","index":14,"reason":"part_missing"},{"sheet":"Module9","index":15,"reason":"part_missing"}],"bounds":{"document_bytes":16777216,"sheet_cells":100000,"rows_first":2000,"rows_last":500,"rows_between":2000,"halvings":0,"cell_chars":16384,"cell_head_chars":4096},"cells_cut":0,"cells_raw":0,"read":"whole","date_system":"1900"}

{"sheet":"DIRECTIONS","index":0,"n_rows":59,"n_cols":7,"rows_kept":59,"cut":false,"hidden":false,"merged":[]}
["REVISED","2010-03-18"]
["DIRECTIONS - IT IS RECOMMENDED THAT YOU PRINT OUT THIS PAGE."]
[]
["This program planning template uses several worksheets and produces:"]
["1.  Major Form",null,null,"2.  Unofficial GPA Calculation",null,null,"3.  Student Schedule"]
["Data is  ENTERED ONLY on the TRANSCRIPT INFORMATION and GEs forms. "]
[]
["For the initial data entry on the TRANSCRIPT INFORMATION form,"]
[" use the following sequence and note there are comments"]
["in the title box at the top of each column."]
[1,"Enter the communication data."]
[2,"Enter the following dates in Month-Year format. Check "]
[null,"with your advisor if you are unsure of the information."]
[null,2.1,"Date you started in continous enrollment"]
[null,null,"at a CC, CSU or UC. Continuous means"]
[null,null,"no breaks of more than one semester."]
[null,2.4,"Proposed Graduation Date (Month-Year)"]
[3,"Course data are entered to represent your actual program. There will need to be an"]
[null,"entry for every course listed in the table."]
[null,3.1,"List all the data for courses you have completed and the schedule date for"]
[null,null,"courses you are planning to complete. When finished you should "]
[null,null,"have a complete program schedule for all the required courses."]
[null,null,"If you are completing a minor, do not enter data for courses in the minor "]
[null,null,"unless they are also used for the major. "]
[null,3.2,"If you have additional courses, for example 3 quarter courses for General"]
[null,null,"Chemistry instead of 2 semester courses, then use the blank rows in "]
[null,null,"each section to enter the data for the additional courses."]
[null,3.3,"It is necessary to enter specific Technical Elective courses to have"]
[null,null,"a complete program. Approved elective courses may be found on the Web site "]
[null,null,"also in the program brochure. It is necessary to have a complete program"]
[null,null,"listing, but you have the option to change electives at a later date."]
[null,3.4,"Obtain an unofficial copy of all non-SJSU transcripts that include courses"]
[null,null,"included in your program and submit that to the department for your file."]
[null,null,"If you have already submitted all such transcripts to the department you do not need to re-submit them."]
[4,"Data to be entered for the General Education GE's page"]
[null,4.0999999999999996,"The top section of the worksheet is a description of the method used to satisfy "]
[null,null,"the Lower Division GE requirements. If you have a Lower Division General "]
[null,null,"Education Certificate listed on a CC transcript, then you have met all the"]
[null,null,"requirements for Lower Division GE. "]
[null,null,"4.1.1","Enter GE data for all completed courses and the scheduled date"]
[null,null,null,"to complete the rest of the courses in the appropriate option section."]
[null,null,"4.1.2","Obtain an unofficial copy of all non-SJSU transcripts that include "]
[null,null,null,"courses listed on your GE program and submit that to the "]
[null,null,null,"department for your file."]
[null,null,"4.1.3","It will be necessary to schedule a GE evaluation prior to submitting"]
[null,null,null,"your Major Form package for review and approval at least 3"]
[null,null,null,"semesters prior to graduation."]
[5,"Run the Macro to develop the Program Schedule"]
[null,5.0999999999999996,"Switch to the SCHEDULE worksheet"]
[null,5.2,"Enter ALT F8"]
[null,5.3,"Enter  RUN "]
[6,"Use of the Program Output"]
[null,6.1,"Print a copy of each worksheet in the spreadsheet and bring these to your"]
[null,null,"next advising session."]
[null,6.2,"Copies of the Major Form and the GE's page will be submitted with your "]
[null,null,"Major Form package for review and approval at least 3 semesters prior to "]
[null,null,"graduation."]
[null,6.3,"Major Forms may also be used to meet requirements for Financial Aids to "]
[null,null,"demonstrate normal progress and plans to complete the program."]

{"sheet":"TRANSCRIPT INFO","index":1,"n_rows":62,"n_cols":17,"rows_kept":62,"cut":false,"hidden":false,"merged":[[0,0,0,5],[0,6,0,8],[0,10,0,11]]}
["STUDENT COURSE SCHEDULE AND MAJOR FORM PLANNING SHEET ",null,null,null,null,null,"MATERIALS ENGINEERING B.S.",null,null,"REV. DATE:","MARCH 2006"]
["Students should only enter data on the first Sheet TRANSCRIPT INFORMATION and on the second sheet GENERAL EDUCATION. The following Sheets are used to create print-out forms."]
["Cells in the Title Row have comments to provide directions. Please see your advisor if it is not clear how to enter data into this spreadsheet."]
[null,null,"COMMUNICATION DATA","REVISION DATE:",null,null,{"$f":"+TODAY()","v":"2018-09-18"}]
["Last Name:"]
["First Name, MI.:",null,null,null,"DATE STARTED  CONTINUOUS ENROLLMENT IN A CSU OR CC:"]
["SJSU Student ID:"]
["Mailing Street Address:",null,null,null,"PROPOSED DATA OF GRADUATION:"]
["Mailing City State Zip"]
["e-Mail:"]
["Telephone (primary):"]
["Telephone (secondary):"]
[]
["Index","SJSU COURSE NUMBER.","SJSU COURSE TITLE","SJSU UNITS","TOOK COURSE 1st TIME AT SJSU? Y, N, or blank","TOOK COURSE 2nd TIME AT SJSU? Y, N, or blank"," ALTERNATE INSTITUTION ABBREVIATION","ALT. INST. COURSE NUMBER","ALTERNATE INSTITUTION COURSE TITLE","ALT. INST. UNITS","ALT. INST. TERM TYPE S or Q","Letter Grade 1","Term Grade 1 Obtained or Scheduled","Year Grade 1 Obtained or Scheduled","Letter Grade 2","Term Grade 2 Obtained","Year Grade 2 Obtained"]
["COURSES IN PREPARATION FOR THE MAJOR"]
[1,"MATH 30","CALCULUS I",3,"Y",null,null,null,null,null,null,"N/A"," ",null,"N/A"]
[{"$f":"1+A16","v":2},"MATH 31","CALCULUS II",4,"Y",null,null,null,null,null,null,"N/A"," ",null,"N/A"]
[{"$f":"1+A17","v":3},"MATH 32","CALCULUS III",3,"Y",null,null,null,null,null,null,"N/A"," ",null,"N/A"]
[4,null,null,null,null,null,null,null,null,null,null,"N/A"," ",null,"N/A"]
[5,"MATH 133A","ORDINARY DIFFERENTIAL EQUATIONS",3,"Y",null,null,null,null,null,null,"N/A"," ",null,"N/A"]
[6,"CHEM 1A","GENERAL CHEMISTRY",5,"Y",null,null,null,null,null,null,"N/A"," ",null,"N/A"]
[7,"CHEM 1B","GENERAL CHEMISTRY",5,"Y",null,null,null,null,null,null,"N/A"," ",null,"N/A"]
[{"$f":"1+A22","v":8},null,null,null,null,null,null,null,null,null,null,"N/A"," ",null,"N/A"]
[9,"PHYS 50","MECHANICS",4,"Y",null,null,null,null,null,null,"N/A"," ",null,"N/A"]
[10,"PHYS 51","ELECTRICITY & MAGNETISM",4,"Y",null,null,null,null,null,null,"N/A"," ",null,"N/A"]
[11,null,null,null,null,null,null,null,null,null,null,"N/A"," ",null,"N/A"]
[12,"ENGL 1B","ARGUMENT & ANALYSIS",3,"Y",null,null,null,null,null,null,"N/A"," ",null,"N/A"]
[13,null,null,null,null,null,null,null,null,null,null,"N/A"," ",null,"N/A"]
["LOWER DIVISION MAJOR CORE COURSES"]
[{"$f":"1+A28","v":14},"ENGR 10","INTRODUCTION TO ENGINEERING",3,"Y",null,null,null,null,null,null,"N/A"," ",null,"N/A"]
[15,"MATE 25","INTRODUCTION TO MATERIALS",3,"Y",null,null,null,null,null,null,"N/A"," ",null,"N/A"]
[16,"CE 99","STATICS",2,"Y",null,null,null,null,null,null,"N/A"," ",null,"N/A"]
[17,"EE 98","INTRODUCTION TO CIRCUIT ANALYSIS",3,"Y",null,null,null,null,null,null,"N/A"," ",null,"N/A"]
[18,null,null,null,null,null,null,null,null,null,null,"N/A"," ",null,"N/A"]
["UPPER DIVISION MAJOR CORE COURSES"]
[{"$f":"+A34+1","v":19},"CHEM 161A","PHYSICAL CHEMISTRY",3,"Y",null,null,null,null,null,null,"N/A"," ",null,"N/A"]
[20,"MATE 115","STRUCTURE & PROPERTIES OF SOLIDS",4,"Y",null,null,null,null,null,null,"N/A",null,null,"N/A"]
[21,"MATE 141","MATERIALS ANALYSIS",3,"Y",null,null,null,null,null,null,"N/A",null,null,"N/A"]
[22,"MATE 151","PROC ENGR THERMODYNAMICS",3,"Y",null,null,null,null,null,null,"N/A",null,null,"N/A"]
[23,"MATE 152","SOLID STATE KINETICS",3,"Y",null,null,null,null,null,null,"N/A",null,null,"N/A"]
[24,"MATE 153","ELECTRONIC PROPERTIES OF MATERIALS",3,"Y",null,null,null,null,null,null,"N/A",null,null,"N/A"]
[25,"MATE 154","METALS AND ALLOYS",3,"Y",null,null,null,null,null,null,"N/A",null,null,"N/A"]
[26,"MATE 155","MATERIALS SELECTION & PRO. DES.",3,"Y",null,null,null,null,null,null,"N/A",null,null,"N/A"]
[27,"MATE 185","CERAMICS",3,"Y",null,null,null,null,null,null,"N/A",null,null,"N/A"]
[28,"MATE 186","POLYMERS",3,"Y",null,null,null,null,null,null,"N/A",null,null,"N/A"]
[29,"MATE 195","MECHANICAL BEHAVIOR OF MATERIALS",3,"Y",null,null,null,null,null,null,"N/A",null,null,"N/A"]
[30,"MATE 198A","SENIOR DESIGN",2,"Y",null,null,null,null,null,null,"N/A",null,null,"N/A"]
[31,"MATE 198B","SENIOR DESIGN",2,"Y",null,null,null,null,null,null,"N/A",null,null,"N/A"]
[32,"CHE 161","PROCESS SAFETY & ENGR. ETHICS",1,"Y",null,null,null,null,null,null,"N/A",null,null,"N/A"]
[33,"CHE 162","ENGINEERING STATISTICS & ANALYSIS",3,"Y",null,null,null,null,null,null,"N/A",null,null,"N/A"]
[34,"MATE 145","PRINCIPLES OF SCANNING PROBE MICOROSCOPY",1,"Y",null,null,null,null,null,null,"N/A",null,null,"N/A"]
[35,"ENGR 100W","ENGINEERING REPORTS",3,"Y",null,null,null,null,null,null,"N/A",null,null,"N/A"]
[36,"MATE 143","SEM LABORATORY",1,"Y",null,null,null,null,null,null,"N/A"," ",null,"N/A"]
[{"$f":"1+A53","v":37},"MATE 144","XRD LABORATORY",1,"Y",null,null,null,null,null,null,"N/A"," ",null,"N/A"]
[{"$f":"1+A54","v":38},null,null,null,null,null,null,null,null,null,null,"N/A"," ",null,"N/A"]
["UPPER DIVISION ELECTIVE COURSES FOR THE MAJOR"]
[{"$f":"+A55+1","v":39},null,null,3,"Y",null,null,null,null,null,null,"N/A"," "," ","N/A"]
[{"$f":"1+A57","v":40},null,null,3,"Y",null,null,null,null,null,null,"N/A"," "," ","N/A"]
[41,null,null,3,"Y",null,null,null,null,null,null,"N/A"," "," ","N/A"]
[42]
[43]
[44]

{"sheet":"GEs","index":2,"n_rows":58,"n_cols":9,"rows_kept":58,"cut":false,"hidden":false,"merged":[[52,1,52,9],[1,0,1,10],[13,1,13,9],[24,1,24,9],[2,0,2,9],[3,0,3,9],[4,0,4,9],[5,0,5,9],[9,0,9,10],[7,0,7,10],[50,0,50,10],[41,1,41,9]]}
[]
["This sheet is used to track  your GE courses."]
["IF YOU COMPLETED AN AA DEGREE AT A COMMUNITY COLLEGE, OR HAVE A LOWER DIVISION GENERAL EDUCATION CERTIFICATION (LDGEC) ON YOUR COMMUNITY COLLEGE TRANSCRIPT, OR HAVE COMPLETED A BS DEGREE AT A CSU, PLEASE ENTER AN ABBREVIATION FOR THE NAME OF THE  INSTITUTION THAT ISSUED THE DEGREE OR CERTIFICATION, OTHERWISE LEAVE BLANK."]
["IF YOU PROVIDED AN ABBREVIATION FOR AN INSTITUTION FOR THE PREVIOUS QUESTION, PLEASE INDICATE THE YEAR THAT THE DEGREE OR CERTIFICATION WAS ISSUED, OTHERWISE LEAVE BLANK."]
["HAVE YOU OBTAINED UNOFFICIAL COPIES OF YOUR TRANSCRIPTS FOR ALL NON-SJSU INSTITUTIONS FOR YOUR CME DEPARTMENT FILE? Y, N, or blank"]
["HAVE YOU OBTAINED A GENERAL EDUCATION EVALUATION FROM SJSU ADMISSIONS AND RECORDS? Y, N, or blank"]
[]
["LOWER DIVISION GE SUMMARY TABLES:\nPLEASE COMPLETE THE APPROPRIATE OPTION IF YOU HAVE NOT COMPLETED AN AA DEGREE AT A COMMUNITY COLLEGE, OR HAVE A LOWER DIVISION GENERAL EDUCATION CERTIFICATION (LDGEC) ON YOUR COMMUNITY COLLEGE TRANSCRIPT, OR HAVE COMPLETED A BS DEGREE AT A CSU. USE COURSE DESCRIPTIONS ON YOUR TRANSCRIPT(S). INDICATE THE SEMESTER AND YEAR WHEN THE COURSE WAS OR WILL BE COMPLETED."]
[]
["IF YOU DO NOT HAVE A LOWER DIVISION GENERAL EDUCATION CERTIFICATE, PLEASE INDICATE WHICH OF THE 3 FOLLOWING OPTIONS YOU ARE USING\nBY ENTERING A \"Y\" IN THE APPROPRIATE BOX. (LEAVE THE OTHERS BLANK)."]
[null,null,"AMERICAN STUDIES"]
[null,null,"STANDARD OPTION"]
[null,null,"HUMANITIES HONORS PROGRAM"]
[null,"AMERICAN STUDIES OPTION:"]
[null,null,"AREA REQUIREMENT","COURSE"," INSTITUTION","UNITS","SEMESTER","YEAR","GRADE"]
[null,null,"A1 - ORAL COMMUNICATION",null,null,3]
[null,null,"A2 - WRITTEN COMMUNICATION",null,null,3]
[null,null,"AREAS C, D and F","AMS 1A","SJSU",6]
[null,null,"AREAS C, D and F","AMS 1B","SJSU",6]
[null,null,"C3 - WRITTEN COMMUNICATION",null,null,3]
[null,null,"E - HUMAN UNDERSTANDING",null,null,3]
[null,null,"HUMAN PERFORMANCE",null,null,1]
[null,null,"HUMAN PERFORMANCE",null,null,1]
[]
[null,"STANDARD OPTION:"]
[null,null,"AREA REQUIREMENT","COURSE"," INSTITUTION","UNITS","SEMESTER","YEAR","GRADE"]
[null,null,"A1 - ORAL COMMUNICATION",null,null,3]
[null,null,"A2 - WRITTEN COMMUNICATION",null,null,3]
[null,null,"C1 - ARTS",null,null,3]
[null,null,"C2 - LETTERS",null,null,3]
[null,null,"C3 - WRITTEN COMMUNICATION",null,null,3]
[null,null,"D1 - HUMAN BEHAVIOR",null,null,3]
[null,null,"D2 - COMPARATIVE SYSTEMS",null,null,3]
[null,null,"D3 - SOCIAL ISSUES",null,null,3]
[null,null,"E - HUMAN UNDERSTANDING",null,null,3]
[null,null,"HUMAN PERFORMANCE",null,null,1]
[null,null,"HUMAN PERFORMANCE",null,null,1]
[null,null,"F1 - AMERICAN HISTORY",null,null,3]
[null,null,"F2 - US CONSTITUTION ",null,null,3]
[null,null,"F3 - CALIFORNIA GOVERNMENT",null,null,3]
[]
[null,"HUMANITIES HONORS OPTION:"]
[null,null,"AREA REQUIREMENT","COURSE"," INSTITUTION","UNITS","SEMESTER","YEAR","GRADE"]
[null,null,"AREAS A, C, D and F","HUM 1A","SJSU",3]
[null,null,"AREAS A, C, D and F","HUM 1B","SJSU",3]
[null,null,"AREAS A, C, D and F","HUM 2A","SJSU",3]
[null,null,"AREAS A, C, D and F","HUM 2B","SJSU",3]
[null,null,"HUMAN PERFORMANCE"]
[null,null,"HUMAN PERFORMANCE"]
[]
["UPPER DIVISION GE SUMMARY TABLE:\nPLEASE PROVIDE THE COURSES THAT SATISFY EACH SECTION."]
[]
[null,"UPPER DIVISION GE COURSES:"]
[null,null,"AREA REQUIREMENT","COURSE"," INSTITUTION","UNITS","SEMESTER","YEAR","GRADE"]
[null,null,"S - SELF, SOCIETY & EQUALITY IN THE US",null,"SJSU",3]
[null,null,"V - CULTURE, CIVILIZATION & GLOBAL UNDERS.",null,"SJSU",3]
[null,null,"Z - WRITTEN COMUNICATION II","ENGR 100W","SJSU",3]
[null,null,"R - EARTH & ENVIRONMENT",{"$f":"+IF(D57=\"ENGR 100W\",D57,\" \")","v":"ENGR 100W"},"SJSU",3]

{"sheet":"MAJOR FORM","index":3,"n_rows":79,"n_cols":10,"rows_kept":79,"cut":false,"hidden":false,"merged":[[0,1,0,8],[1,1,1,7],[63,0,64,9],[66,0,67,9],[5,0,5,9],[34,0,34,9],[43,0,43,9]]}
[null,"SAN JOSE STATE UNIVERSITY - CHEMICAL and MATERIALS ENGINEERING DEPARTMENT"]
[null,"MAJOR FORM FOR B.S. MATERIALS ENGINEERING"]
[null,null,null,null,"Proposed Date of Graduation:",null,null,{"$f":"+'TRANSCRIPT INFO'!H8","v":"00:00:00"}]
[null,"NAME:    ",{"$f":"'TRANSCRIPT INFO'!C6&\" \"&'TRANSCRIPT INFO'!C5","v":" "},null,"SJSU Student ID:",null,{"$f":"+'TRANSCRIPT INFO'!C7","v":0}]
[null,null,null,null,"Catalog Year:",null,{"$f":"+'TRANSCRIPT INFO'!I6","v":0}]
["REQUIRED COURSES FOR THE MAJOR "]
[" ALT. INST.","COURSE NUMBER.","COURSE TITLE","UNITS","GRADE"," ALT. INST.","COURSE NUMBER.","COURSE TITLE","UNITS","GRADE"]
[null,{"$f":"+IF('TRANSCRIPT INFO'!E30=\"N\",'TRANSCRIPT INFO'!B30,IF('TRANSCRIPT INFO'!F30=\"N\",'TRANSCRIPT INFO'!B30,))","v":0},{"$f":"+IF('TRANSCRIPT INFO'!E30=\"N\",'TRANSCRIPT INFO'!C30,IF('TRANSCRIPT INFO'!F30=\"N\",'TRANSCRIPT INFO'!C30,))","v":0},{"$f":"+IF('TRANSCRIPT INFO'!E30=\"N\",'TRANSCRIPT INFO'!D30,IF('TRANSCRIPT INFO'!F30=\"N\",'TRANSCRIPT INFO'!D30,))","v":0},null,null,{"$f":"+IF('TRANSCRIPT INFO'!$E$44=\"N\",'TRANSCRIPT INFO'!$B$44,IF('TRANSCRIPT INFO'!$F$44=\"N\",'TRANSCRIPT INFO'!$B$44,))","v":0},{"$f":"+IF('TRANSCRIPT INFO'!$E$44=\"N\",'TRANSCRIPT INFO'!$C$44,IF('TRANSCRIPT INFO'!$F$44=\"N\",'TRANSCRIPT INFO'!$C$44,))","v":0},{"$f":"+IF('TRANSCRIPT INFO'!$E$44=\"N\",'TRANSCRIPT INFO'!$D$44,IF('TRANSCRIPT INFO'!$F$44=\"N\",'TRANSCRIPT INFO'!$D$44,))","v":0}]
[{"$f":"+IF('TRANSCRIPT INFO'!E30=\"N\",'TRANSCRIPT INFO'!G30,IF('TRANSCRIPT INFO'!F30=\"N\",'TRANSCRIPT INFO'!G30,))","v":0},{"$f":"+IF('TRANSCRIPT INFO'!E30=\"N\",'TRANSCRIPT INFO'!H30,IF('TRANSCRIPT INFO'!F30=\"N\",'TRANSCRIPT INFO'!H30,'TRANSCRIPT INFO'!B30))","v":"ENGR 10"},{"$f":"+IF('TRANSCRIPT INFO'!E30=\"N\",'TRANSCRIPT INFO'!I30,IF('TRANSCRIPT INFO'!F30=\"N\",'TRANSCRIPT INFO'!I30,'TRANSCRIPT INFO'!C30))","v":"INTRODUCTION TO ENGINEERING"},{"$f":"+IF('TRANSCRIPT INFO'!E30=\"N\",'TRANSCRIPT INFO'!J30&'TRANSCRIPT INFO'!K30,IF('TRANSCRIPT INFO'!F30=\"N\",'TRANSCRIPT INFO'!J30&'TRANSCRIPT INFO'!K30,'TRANSCRIPT INFO'!D30))","v":3},{"$f":"IF('TRANSCRIPT INFO'!L30=\"N/A\",\" \",'TRANSCRIPT INFO'!L30)&\" \"&+IF('TRANSCRIPT INFO'!O30=\"N/A\",\" \",'TRANSCRIPT INFO'!O30)","v":"   "},{"$f":"+IF('TRANSCRIPT INFO'!$E$44=\"N\",'TRANSCRIPT INFO'!$G$44,IF('TRANSCRIPT INFO'!$F$44=\"N\",'TRANSCRIPT INFO'!$G$44,))","v":0},{"$f":"+IF('TRANSCRIPT INFO'!$E$44=\"N\",'TRANSCRIPT INFO'!$H$44,IF('TRANSCRIPT INFO'!$F$44=\"N\",'TRANSCRIPT INFO'!$H$44,'TRANSCRIPT INFO'!$B$44))","v":"MATE 185"},{"$f":"+IF('TRANSCRIPT INFO'!$E$44=\"N\",'TRANSCRIPT INFO'!$I$44,IF('TRANSCRIPT INFO'!$F$44=\"N\",'TRANSCRIPT INFO'!$I$44,'TRANSCRIPT INFO'!$C$44))","v":"CERAMICS"},{"$f":"+IF('TRANSCRIPT INFO'!$E$44=\"N\",'TRANSCRIPT INFO'!$J$44&'TRANSCRIPT INFO'!$K$44,IF('TRANSCRIPT INFO'!$F$44=\"N\",'TRANSCRIPT INFO'!$K$44&'TRANSCRIPT INFO'!$K$44,'TRANSCRIPT INFO'!$D$44))","v":3},{"$f":"IF('TRANSCRIPT INFO'!$L$44=\"N/A\",\" \",'TRANSCRIPT INFO'!$L$44)&\" \"&+IF('TRANSCRIPT INFO'!$O$44=\"N/A\",\" \",'TRANSCRIPT INFO'!$O$44)","v":"   "}]
[null,{"$f":"+IF('TRANSCRIPT INFO'!E31=\"N\",'TRANSCRIPT INFO'!B31,IF('TRANSCRIPT INFO'!F31=\"N\",'TRANSCRIPT INFO'!B31,))","v":0},{"$f":"+IF('TRANSCRIPT INFO'!E31=\"N\",'TRANSCRIPT INFO'!C31,IF('TRANSCRIPT INFO'!F31=\"N\",'TRANSCRIPT INFO'!C31,))","v":0},{"$f":"+IF('TRANSCRIPT INFO'!E31=\"N\",'TRANSCRIPT INFO'!D31,IF('TRANSCRIPT INFO'!F31=\"N\",'TRANSCRIPT INFO'!D31,))","v":0},null,null,{"$f":"+IF('TRANSCRIPT INFO'!$E$45=\"N\",'TRANSCRIPT INFO'!$B$45,IF('TRANSCRIPT INFO'!$F$45=\"N\",'TRANSCRIPT INFO'!$B$45,))","v":0},{"$f":"+IF('TRANSCRIPT INFO'!$E$45=\"N\",'TRANSCRIPT INFO'!$C$45,IF('TRANSCRIPT INFO'!$F$45=\"N\",'TRANSCRIPT INFO'!$C$45,))","v":0},{"$f":"+IF('TRANSCRIPT INFO'!$E$45=\"N\",'TRANSCRIPT INFO'!$D$45,IF('TRANSCRIPT INFO'!$F$45=\"N\",'TRANSCRIPT INFO'!$D$45,))","v":0}]
[{"$f":"+IF('TRANSCRIPT INFO'!E31=\"N\",'TRANSCRIPT INFO'!G31,IF('TRANSCRIPT INFO'!F31=\"N\",'TRANSCRIPT INFO'!G31,))","v":0},{"$f":"+IF('TRANSCRIPT INFO'!E31=\"N\",'TRANSCRIPT INFO'!H31,IF('TRANSCRIPT INFO'!F31=\"N\",'TRANSCRIPT INFO'!H31,'TRANSCRIPT INFO'!B31))","v":"MATE 25"},{"$f":"+IF('TRANSCRIPT INFO'!E31=\"N\",'TRANSCRIPT INFO'!I31,IF('TRANSCRIPT INFO'!F31=\"N\",'TRANSCRIPT INFO'!I31,'TRANSCRIPT INFO'!C31))","v":"INTRODUCTION TO MATERIALS"},{"$f":"+IF('TRANSCRIPT INFO'!E31=\"N\",'TRANSCRIPT INFO'!J31&'TRANSCRIPT INFO'!K31,IF('TRANSCRIPT INFO'!F31=\"N\",'TRANSCRIPT INFO'!J31&'TRANSCRIPT INFO'!K31,'TRANSCRIPT INFO'!D31))","v":3},{"$f":"IF('TRANSCRIPT INFO'!L31=\"N/A\",\" \",'TRANSCRIPT INFO'!L31)&\" \"&+IF('TRANSCRIPT INFO'!O31=\"N/A\",\" \",'TRANSCRIPT INFO'!O31)","v":"   "},{"$f":"+IF('TRANSCRIPT INFO'!$E$45=\"N\",'TRANSCRIPT INFO'!$G$45,IF('TRANSCRIPT INFO'!$F$45=\"N\",'TRANSCRIPT INFO'!$G$45,))","v":0},{"$f":"+IF('TRANSCRIPT INFO'!$E$45=\"N\",'TRANSCRIPT INFO'!$H$45,IF('TRANSCRIPT INFO'!$F$45=\"N\",'TRANSCRIPT INFO'!$H$45,'TRANSCRIPT INFO'!$B$45))","v":"MATE 186"},{"$f":"+IF('TRANSCRIPT INFO'!$E$45=\"N\",'TRANSCRIPT INFO'!$I$45,IF('TRANSCRIPT INFO'!$F$45=\"N\",'TRANSCRIPT INFO'!$I$45,'TRANSCRIPT INFO'!$C$45))","v":"POLYMERS"},{"$f":"+IF('TRANSCRIPT INFO'!E45=\"N\",'TRANSCRIPT INFO'!J45&'TRANSCRIPT INFO'!K45,IF('TRANSCRIPT INFO'!F45=\"N\",'TRANSCRIPT INFO'!K45&'TRANSCRIPT INFO'!K45,'TRANSCRIPT INFO'!D45))","v":3},{"$f":"IF('TRANSCRIPT INFO'!$L$45=\"N/A\",\" \",'TRANSCRIPT INFO'!$L$45)&\" \"&+IF('TRANSCRIPT INFO'!$O$45=\"N/A\",\" \",'TRANSCRIPT INFO'!$O$45)","v":"   "}]
[null,{"$f":"+IF('TRANSCRIPT INFO'!E32=\"N\",'TRANSCRIPT INFO'!B32,IF('TRANSCRIPT INFO'!F32=\"N\",'TRANSCRIPT INFO'!B32,))","v":0},{"$f":"+IF('TRANSCRIPT INFO'!E32=\"N\",'TRANSCRIPT INFO'!C32,IF('TRANSCRIPT INFO'!F32=\"N\",'TRANSCRIPT INFO'!C32,))","v":0},{"$f":"+IF('TRANSCRIPT INFO'!E32=\"N\",'TRANSCRIPT INFO'!D32,IF('TRANSCRIPT INFO'!F32=\"N\",'TRANSCRIPT INFO'!D32,))","v":0},null,null,{"$f":"+IF('TRANSCRIPT INFO'!$E$46=\"N\",'TRANSCRIPT INFO'!$B$46,IF('TRANSCRIPT INFO'!$F$46=\"N\",'TRANSCRIPT INFO'!$B$46,))","v":0},{"$f":"+IF('TRANSCRIPT INFO'!$E$46=\"N\",'TRANSCRIPT INFO'!$C$46,IF('TRANSCRIPT INFO'!$F$46=\"N\",'TRANSCRIPT INFO'!$C$46,))","v":0},{"$f":"+IF('TRANSCRIPT INFO'!$E$46=\"N\",'TRANSCRIPT INFO'!$D$46,IF('TRANSCRIPT INFO'!$F$46=\"N\",'TRANSCRIPT INFO'!$D$46,))","v":0}]
[{"$f":"+IF('TRANSCRIPT INFO'!E32=\"N\",'TRANSCRIPT INFO'!G32,IF('TRANSCRIPT INFO'!F32=\"N\",'TRANSCRIPT INFO'!G32,))","v":0},{"$f":"+IF('TRANSCRIPT INFO'!E32=\"N\",'TRANSCRIPT INFO'!H32,IF('TRANSCRIPT INFO'!F32=\"N\",'TRANSCRIPT INFO'!H32,'TRANSCRIPT INFO'!B32))","v":"CE 99"},{"$f":"+IF('TRANSCRIPT INFO'!E32=\"N\",'TRANSCRIPT INFO'!I32,IF('TRANSCRIPT INFO'!F32=\"N\",'TRANSCRIPT INFO'!I32,'TRANSCRIPT INFO'!C32))","v":"STATICS"},{"$f":"+IF('TRANSCRIPT INFO'!E32=\"N\",'TRANSCRIPT INFO'!J32&'TRANSCRIPT INFO'!K32,IF('TRANSCRIPT INFO'!F32=\"N\",'TRANSCRIPT INFO'!J32&'TRANSCRIPT INFO'!K32,'TRANSCRIPT INFO'!D32))","v":2},{"$f":"IF('TRANSCRIPT INFO'!L32=\"N/A\",\" \",'TRANSCRIPT INFO'!L32)&\" \"&+IF('TRANSCRIPT INFO'!O32=\"N/A\",\" \",'TRANSCRIPT INFO'!O32)","v":"   "},{"$f":"+IF('TRANSCRIPT INFO'!$E$46=\"N\",'TRANSCRIPT INFO'!$G$46,IF('TRANSCRIPT INFO'!$F$46=\"N\",'TRANSCRIPT INFO'!$G$46,))","v":0},{"$f":"+IF('TRANSCRIPT INFO'!$E$46=\"N\",'TRANSCRIPT INFO'!$H$46,IF('TRANSCRIPT INFO'!$F$46=\"N\",'TRANSCRIPT INFO'!$H$46,'TRANSCRIPT INFO'!$B$46))","v":"MATE 195"},{"$f":"+IF('TRANSCRIPT INFO'!$E$46=\"N\",'TRANSCRIPT INFO'!$I$46,IF('TRANSCRIPT INFO'!$F$46=\"N\",'TRANSCRIPT INFO'!$I$46,'TRANSCRIPT INFO'!$C$46))","v":"MECHANICAL BEHAVIOR OF MATERIALS"},{"$f":"+IF('TRANSCRIPT INFO'!$E$46=\"N\",'TRANSCRIPT INFO'!$J$46&'TRANSCRIPT INFO'!$K$46,IF('TRANSCRIPT INFO'!$F$46=\"N\",'TRANSCRIPT INFO'!$K$46&'TRANSCRIPT INFO'!$K$46,'TRANSCRIPT INFO'!$D$46))","v":3},{"$f":"IF('TRANSCRIPT INFO'!$L$46=\"N/A\",\" \",'TRANSCRIPT INFO'!$L$46)&\" \"&+IF('TRANSCRIPT INFO'!$O$46=\"N/A\",\" \",'TRANSCRIPT INFO'!$O$46)","v":"   "}]
[null,{"$f":"+IF('TRANSCRIPT INFO'!E33=\"N\",'TRANSCRIPT INFO'!B33,IF('TRANSCRIPT INFO'!F33=\"N\",'TRANSCRIPT INFO'!B33,))","v":0},{"$f":"+IF('TRANSCRIPT INFO'!E33=\"N\",'TRANSCRIPT INFO'!C33,IF('TRANSCRIPT INFO'!F33=\"N\",'TRANSCRIPT INFO'!C33,))","v":0},{"$f":"+IF('TRANSCRIPT INFO'!E33=\"N\",'TRANSCRIPT INFO'!D33,IF('TRANSCRIPT INFO'!F33=\"N\",'TRANSCRIPT INFO'!D33,))","v":0},null,null,{"$f":"+IF('TRANSCRIPT INFO'!$E$47=\"N\",'TRANSCRIPT INFO'!$B$47,IF('TRANSCRIPT INFO'!$F$47=\"N\",'TRANSCRIPT INFO'!$B$47,))","v":0},{"$f":"+IF('TRANSCRIPT INFO'!$E$47=\"N\",'TRANSCRIPT INFO'!$C$47,IF('TRANSCRIPT INFO'!$F$47=\"N\",'TRANSCRIPT INFO'!$C$47,))","v":0},{"$f":"+IF('TRANSCRIPT INFO'!$E$47=\"N\",'TRANSCRIPT INFO'!$D$47,IF('TRANSCRIPT INFO'!$F$47=\"N\",'TRANSCRIPT INFO'!$D$47,))","v":0}]
[{"$f":"+IF('TRANSCRIPT INFO'!E33=\"N\",'TRANSCRIPT INFO'!G33,IF('TRANSCRIPT INFO'!F33=\"N\",'TRANSCRIPT INFO'!G33,))","v":0},{"$f":"+IF('TRANSCRIPT INFO'!E33=\"N\",'TRANSCRIPT INFO'!H33,IF('TRANSCRIPT INFO'!F33=\"N\",'TRANSCRIPT INFO'!H33,'TRANSCRIPT INFO'!B33))","v":"EE 98"},{"$f":"+IF('TRANSCRIPT INFO'!E33=\"N\",'TRANSCRIPT INFO'!I33,IF('TRANSCRIPT INFO'!F33=\"N\",'TRANSCRIPT INFO'!I33,'TRANSCRIPT INFO'!C33))","v":"INTRODUCTION TO CIRCUIT ANALYSIS"},{"$f":"+IF('TRANSCRIPT INFO'!E33=\"N\",'TRANSCRIPT INFO'!J33&'TRANSCRIPT INFO'!K33,IF('TRANSCRIPT INFO'!F33=\"N\",'TRANSCRIPT INFO'!J33&'TRANSCRIPT INFO'!K33,'TRANSCRIPT INFO'!D33))","v":3},{"$f":"IF('TRANSCRIPT INFO'!L33=\"N/A\",\" \",'TRANSCRIPT INFO'!L33)&\" \"&+IF('TRANSCRIPT INFO'!O33=\"N/A\",\" \",'TRANSCRIPT INFO'!O33)","v":"   "},{"$f":"+IF('TRANSCRIPT INFO'!$E$47=\"N\",'TRANSCRIPT INFO'!$G$47,IF('TRANSCRIPT INFO'!$F$47=\"N\",'TRANSCRIPT INFO'!$G$47,))","v":0},{"$f":"+IF('TRANSCRIPT INFO'!$E$47=\"N\",'TRANSCRIPT INFO'!$H$47,IF('TRANSCRIPT INFO'!$F$47=\"N\",'TRANSCRIPT INFO'!$H$47,'TRANSCRIPT INFO'!$B$47))","v":"MATE 198A"},{"$f":"+IF('TRANSCRIPT INFO'!$E$47=\"N\",'TRANSCRIPT INFO'!$I$47,IF('TRANSCRIPT INFO'!$F$47=\"N\",'TRANSCRIPT INFO'!$I$47,'TRANSCRIPT INFO'!$C$47))","v":"SENIOR DESIGN"},{"$f":"+IF('TRANSCRIPT INFO'!$E$47=\"N\",'TRANSCRIPT INFO'!$J$47&'TRANSCRIPT INFO'!$K$47,IF('TRANSCRIPT INFO'!$F$47=\"N\",'TRANSCRIPT INFO'!$K$47&'TRANSCRIPT INFO'!$K$47,'TRANSCRIPT INFO'!$D$47))","v":2},{"$f":"IF('TRANSCRIPT INFO'!$L$47=\"N/A\",\" \",'TRANSCRIPT INFO'!$L$47)&\" \"&+IF('TRANSCRIPT INFO'!$O$47=\"N/A\",\" \",'TRANSCRIPT INFO'!$O$47)","v":"   "}]
[null,{"$f":"+IF('TRANSCRIPT INFO'!E34=\"N\",'TRANSCRIPT INFO'!B34,IF('TRANSCRIPT INFO'!F34=\"N\",'TRANSCRIPT INFO'!B34,))","v":0},{"$f":"+IF('TRANSCRIPT INFO'!E34=\"N\",'TRANSCRIPT INFO'!C34,IF('TRANSCRIPT INFO'!F34=\"N\",'TRANSCRIPT INFO'!C34,))","v":0},{"$f":"+IF('TRANSCRIPT INFO'!E34=\"N\",'TRANSCRIPT INFO'!D34,IF('TRANSCRIPT INFO'!F34=\"N\",'TRANSCRIPT INFO'!D34,))","v":0},null,null,{"$f":"+IF('TRANSCRIPT INFO'!$E$48=\"N\",'TRANSCRIPT INFO'!$B$48,IF('TRANSCRIPT INFO'!$F$48=\"N\",'TRANSCRIPT INFO'!$B$48,))","v":0},{"$f":"+IF('TRANSCRIPT INFO'!$E$48=\"N\",'TRANSCRIPT INFO'!$C$48,IF('TRANSCRIPT INFO'!$F$48=\"N\",'TRANSCRIPT INFO'!$C$48,))","v":0},{"$f":"+IF('TRANSCRIPT INFO'!$E$48=\"N\",'TRANSCRIPT INFO'!$D$48,IF('TRANSCRIPT INFO'!$F$48=\"N\",'TRANSCRIPT INFO'!$D$48,))","v":0}]
[{"$f":"+IF('TRANSCRIPT INFO'!E34=\"N\",'TRANSCRIPT INFO'!G34,IF('TRANSCRIPT INFO'!F34=\"N\",'TRANSCRIPT INFO'!G34,))","v":0},{"$f":"+IF('TRANSCRIPT INFO'!E34=\"N\",'TRANSCRIPT INFO'!H34,IF('TRANSCRIPT INFO'!F34=\"N\",'TRANSCRIPT INFO'!H34,'TRANSCRIPT INFO'!B34))","v":0},{"$f":"+IF('TRANSCRIPT INFO'!E34=\"N\",'TRANSCRIPT INFO'!I34,IF('TRANSCRIPT INFO'!F34=\"N\",'TRANSCRIPT INFO'!I34,'TRANSCRIPT INFO'!C34))","v":0},{"$f":"+IF('TRANSCRIPT INFO'!E34=\"N\",'TRANSCRIPT INFO'!J34&'TRANSCRIPT INFO'!K34,IF('TRANSCRIPT INFO'!F34=\"N\",'TRANSCRIPT INFO'!J34&'TRANSCRIPT INFO'!K34,'TRANSCRIPT INFO'!D34))","v":0},{"$f":"IF('TRANSCRIPT INFO'!L34=\"N/A\",\" \",'TRANSCRIPT INFO'!L34)&\" \"&+IF('TRANSCRIPT INFO'!O34=\"N/A\",\" \",)","v":"   "},{"$f":"+IF('TRANSCRIPT INFO'!$E$48=\"N\",'TRANSCRIPT INFO'!$G$48,IF('TRANSCRIPT INFO'!$F$48=\"N\",'TRANSCRIPT INFO'!$G$48,))","v":0},{"$f":"+IF('TRANSCRIPT INFO'!$E$48=\"N\",'TRANSCRIPT INFO'!$H$48,IF('TRANSCRIPT INFO'!$F$48=\"N\",'TRANSCRIPT INFO'!$H$48,'TRANSCRIPT INFO'!$B$48))","v":"MATE 198B"},{"$f":"+IF('TRANSCRIPT INFO'!$E$48=\"N\",'TRANSCRIPT INFO'!$I$48,IF('TRANSCRIPT INFO'!$F$48=\"N\",'TRANSCRIPT INFO'!$I$48,'TRANSCRIPT INFO'!$C$48))","v":"SENIOR DESIGN"},{"$f":"+IF('TRANSCRIPT INFO'!$E$48=\"N\",'TRANSCRIPT INFO'!$J$48&'TRANSCRIPT INFO'!$K$48,IF('TRANSCRIPT INFO'!$F$48=\"N\",'TRANSCRIPT INFO'!$K$48&'TRANSCRIPT INFO'!$K$48,'TRANSCRIPT INFO'!$D$48))","v":2},{"$f":"IF('TRANSCRIPT INFO'!$L$48=\"N/A\",\" \",'TRANSCRIPT INFO'!$L$48)&\" \"&+IF('TRANSCRIPT INFO'!$O$48=\"N/A\",\" \",'TRANSCRIPT INFO'!$O$48)","v":"   "}]
[null,{"$f":"+IF('TRANSCRIPT INFO'!E36=\"N\",'TRANSCRIPT INFO'!B36,IF('TRANSCRIPT INFO'!F36=\"N\",'TRANSCRIPT INFO'!B36,))","v":0},{"$f":"+IF('TRANSCRIPT INFO'!E36=\"N\",'TRANSCRIPT INFO'!C36,IF('TRANSCRIPT INFO'!F36=\"N\",'TRANSCRIPT INFO'!C36,))","v":0},{"$f":"+IF('TRANSCRIPT INFO'!E36=\"N\",'TRANSCRIPT INFO'!D36,IF('TRANSCRIPT INFO'!F36=\"N\",'TRANSCRIPT INFO'!D36,))","v":0},null,null,{"$f":"+IF('TRANSCRIPT INFO'!$E$49=\"N\",'TRANSCRIPT INFO'!$B$49,IF('TRANSCRIPT INFO'!$F$49=\"N\",'TRANSCRIPT INFO'!$B$49,))","v":0},{"$f":"+IF('TRANSCRIPT INFO'!$E$49=\"N\",'TRANSCRIPT INFO'!$C$49,IF('TRANSCRIPT INFO'!$F$49=\"N\",'TRANSCRIPT INFO'!$C$49,))","v":0},{"$f":"+IF('TRANSCRIPT INFO'!$E$49=\"N\",'TRANSCRIPT INFO'!$D$49,IF('TRANSCRIPT INFO'!$F$49=\"N\",'TRANSCRIPT INFO'!$D$49,))","v":0}]
[{"$f":"+IF('TRANSCRIPT INFO'!E36=\"N\",'TRANSCRIPT INFO'!G36,IF('TRANSCRIPT INFO'!F36=\"N\",'TRANSCRIPT INFO'!G36,))","v":0},{"$f":"+IF('TRANSCRIPT INFO'!E36=\"N\",'TRANSCRIPT INFO'!H36,IF('TRANSCRIPT INFO'!F36=\"N\",'TRANSCRIPT INFO'!H36,'TRANSCRIPT INFO'!B36))","v":"CHEM 161A"},{"$f":"+IF('TRANSCRIPT INFO'!E36=\"N\",'TRANSCRIPT INFO'!I36,IF('TRANSCRIPT INFO'!F36=\"N\",'TRANSCRIPT INFO'!I36,'TRANSCRIPT INFO'!C36))","v":"PHYSICAL CHEMISTRY"},{"$f":"+IF('TRANSCRIPT INFO'!E36=\"N\",'TRANSCRIPT INFO'!J36&'TRANSCRIPT INFO'!K36,IF('TRANSCRIPT INFO'!F36=\"N\",'TRANSCRIPT INFO'!J36&'TRANSCRIPT INFO'!K36,'TRANSCRIPT INFO'!D36))","v":3},{"$f":"IF('TRANSCRIPT INFO'!L36=\"N/A\",\" \",'TRANSCRIPT INFO'!L36)&\" \"&+IF('TRANSCRIPT INFO'!O36=\"N/A\",\" \",'TRANSCRIPT INFO'!O36)","v":"   "},{"$f":"+IF('TRANSCRIPT INFO'!$E$49=\"N\",'TRANSCRIPT INFO'!$G$49,IF('TRANSCRIPT INFO'!$F$49=\"N\",'TRANSCRIPT INFO'!$G$49,))","v":0},{"$f":"+IF('TRANSCRIPT INFO'!$E$49=\"N\",'TRANSCRIPT INFO'!$H$49,IF('TRANSCRIPT INFO'!$F$49=\"N\",'TRANSCRIPT INFO'!$H$49,'TRANSCRIPT INFO'!$B$49))","v":"CHE 161"},{"$f":"+IF('TRANSCRIPT INFO'!$E$49=\"N\",'TRANSCRIPT INFO'!$I$49,IF('TRANSCRIPT INFO'!$F$49=\"N\",'TRANSCRIPT INFO'!$I$49,'TRANSCRIPT INFO'!$C$49))","v":"PROCESS SAFETY & ENGR. ETHICS"},{"$f":"+IF('TRANSCRIPT INFO'!$E$49=\"N\",'TRANSCRIPT INFO'!$J$49&'TRANSCRIPT INFO'!$K$49,IF('TRANSCRIPT INFO'!$F$49=\"N\",'TRANSCRIPT INFO'!$K$49&'TRANSCRIPT INFO'!$K$49,'TRANSCRIPT INFO'!$D$49))","v":1},{"$f":"IF('TRANSCRIPT INFO'!$L$49=\"N/A\",\" \",'TRANSCRIPT INFO'!$L$49)&\" \"&+IF('TRANSCRIPT INFO'!$O$49=\"N/A\",\" \",'TRANSCRIPT INFO'!$O$49)","v":"   "}]
[null,{"$f":"+IF('TRANSCRIPT INFO'!E37=\"N\",'TRANSCRIPT INFO'!B37,IF('TRANSCRIPT INFO'!F37=\"N\",'TRANSCRIPT INFO'!B37,))","v":0},{"$f":"+IF('TRANSCRIPT INFO'!E37=\"N\",'TRANSCRIPT INFO'!C37,IF('TRANSCRIPT INFO'!F37=\"N\",'TRANSCRIPT INFO'!C37,))","v":0},{"$f":"+IF('TRANSCRIPT INFO'!E37=\"N\",'TRANSCRIPT INFO'!D37,IF('TRANSCRIPT INFO'!F37=\"N\",'TRANSCRIPT INFO'!D37,))","v":0},null,null,{"$f":"+IF('TRANSCRIPT INFO'!$E$50=\"N\",'TRANSCRIPT INFO'!$B$50,IF('TRANSCRIPT INFO'!$F$50=\"N\",'TRANSCRIPT INFO'!$B$50,))","v":0},{"$f":"+IF('TRANSCRIPT INFO'!$E$50=\"N\",'TRANSCRIPT INFO'!$C$50,IF('TRANSCRIPT INFO'!$F$50=\"N\",'TRANSCRIPT INFO'!$C$50,))","v":0},{"$f":"+IF('TRANSCRIPT INFO'!$E$50=\"N\",'TRANSCRIPT INFO'!$D$50,IF('TRANSCRIPT INFO'!$F$50=\"N\",'TRANSCRIPT INFO'!$D$50,))","v":0}]
[{"$f":"+IF('TRANSCRIPT INFO'!E37=\"N\",'TRANSCRIPT INFO'!G37,IF('TRANSCRIPT INFO'!F37=\"N\",'TRANSCRIPT INFO'!G37,))","v":0},{"$f":"+IF('TRANSCRIPT INFO'!E37=\"N\",'TRANSCRIPT INFO'!H37,IF('TRANSCRIPT INFO'!F37=\"N\",'TRANSCRIPT INFO'!H37,'TRANSCRIPT INFO'!B37))","v":"MATE 115"},{"$f":"+IF('TRANSCRIPT INFO'!E37=\"N\",'TRANSCRIPT INFO'!I37,IF('TRANSCRIPT INFO'!F37=\"N\",'TRANSCRIPT INFO'!I37,'TRANSCRIPT INFO'!C37))","v":"STRUCTURE & PROPERTIES OF SOLIDS"},{"$f":"+IF('TRANSCRIPT INFO'!E37=\"N\",'TRANSCRIPT INFO'!J37&'TRANSCRIPT INFO'!K37,IF('TRANSCRIPT INFO'!F37=\"N\",'TRANSCRIPT INFO'!J37&'TRANSCRIPT INFO'!K37,'TRANSCRIPT INFO'!D37))","v":4},{"$f":"IF('TRANSCRIPT INFO'!L37=\"N/A\",\" \",'TRANSCRIPT INFO'!L37)&\" \"&+IF('TRANSCRIPT INFO'!O37=\"N/A\",\" \",'TRANSCRIPT INFO'!O37)","v":"   "},{"$f":"+IF('TRANSCRIPT INFO'!$E$50=\"N\",'TRANSCRIPT INFO'!$G$50,IF('TRANSCRIPT INFO'!$F$50=\"N\",'TRANSCRIPT INFO'!$G$50,))","v":0},{"$f":"+IF('TRANSCRIPT INFO'!$E$50=\"N\",'TRANSCRIPT INFO'!$H$50,IF('TRANSCRIPT INFO'!$F$50=\"N\",'TRANSCRIPT INFO'!$H$50,'TRANSCRIPT INFO'!$B$50))","v":"CHE 162"},{"$f":"+IF('TRANSCRIPT INFO'!$E$50=\"N\",'TRANSCRIPT INFO'!$I$50,IF('TRANSCRIPT INFO'!$F$50=\"N\",'TRANSCRIPT INFO'!$I$50,'TRANSCRIPT INFO'!$C$50))","v":"ENGINEERING STATISTICS & ANALYSIS"},{"$f":"+IF('TRANSCRIPT INFO'!$E$50=\"N\",'TRANSCRIPT INFO'!$J$50&'TRANSCRIPT INFO'!$K$50,IF('TRANSCRIPT INFO'!$F$50=\"N\",'TRANSCRIPT INFO'!$K$50&'TRANSCRIPT INFO'!$K$50,'TRANSCRIPT INFO'!$D$50))","v":3},{"$f":"IF('TRANSCRIPT INFO'!$L$50=\"N/A\",\" \",'TRANSCRIPT INFO'!$L$50)&\" \"&+IF('TRANSCRIPT INFO'!$O$50=\"N/A\",\" \",'TRANSCRIPT INFO'!$O$50)","v":"   "}]
[null,{"$f":"+IF('TRANSCRIPT INFO'!E38=\"N\",'TRANSCRIPT INFO'!B38,IF('TRANSCRIPT INFO'!F38=\"N\",'TRANSCRIPT INFO'!B38,))","v":0},{"$f":"+IF('TRANSCRIPT INFO'!E38=\"N\",'TRANSCRIPT INFO'!C38,IF('TRANSCRIPT INFO'!F38=\"N\",'TRANSCRIPT INFO'!C38,))","v":0},{"$f":"+IF('TRANSCRIPT INFO'!E38=\"N\",'TRANSCRIPT INFO'!D38,IF('TRANSCRIPT INFO'!F38=\"N\",'TRANSCRIPT INFO'!D38,))","v":0},null,null,{"$f":"+IF('TRANSCRIPT INFO'!$E$51=\"N\",'TRANSCRIPT INFO'!$B$51,IF('TRANSCRIPT INFO'!$F$51=\"N\",'TRANSCRIPT INFO'!$B$51,))","v":0},{"$f":"+IF('TRANSCRIPT INFO'!$E$51=\"N\",'TRANSCRIPT INFO'!$C$51,IF('TRANSCRIPT INFO'!$F$51=\"N\",'TRANSCRIPT INFO'!$C$51,))","v":0},{"$f":"+IF('TRANSCRIPT INFO'!$E$51=\"N\",'TRANSCRIPT INFO'!$D$51,IF('TRANSCRIPT INFO'!$F$51=\"N\",'TRANSCRIPT INFO'!$D$51,))","v":0}]
[{"$f":"+IF('TRANSCRIPT INFO'!E38=\"N\",'TRANSCRIPT INFO'!G38,IF('TRANSCRIPT INFO'!F38=\"N\",'TRANSCRIPT INFO'!G38,))","v":0},{"$f":"+IF('TRANSCRIPT INFO'!E38=\"N\",'TRANSCRIPT INFO'!H38,IF('TRANSCRIPT INFO'!F38=\"N\",'TRANSCRIPT INFO'!H38,'TRANSCRIPT INFO'!B38))","v":"MATE 141"},{"$f":"+IF('TRANSCRIPT INFO'!E38=\"N\",'TRANSCRIPT INFO'!I38,IF('TRANSCRIPT INFO'!F38=\"N\",'TRANSCRIPT INFO'!I38,'TRANSCRIPT INFO'!C38))","v":"MATERIALS ANALYSIS"},{"$f":"+IF('TRANSCRIPT INFO'!E38=\"N\",'TRANSCRIPT INFO'!J38&'TRANSCRIPT INFO'!K38,IF('TRANSCRIPT INFO'!F38=\"N\",'TRANSCRIPT INFO'!J38&'TRANSCRIPT INFO'!K38,'TRANSCRIPT INFO'!D38))","v":3},{"$f":"IF('TRANSCRIPT INFO'!L38=\"N/A\",\" \",'TRANSCRIPT INFO'!L38)&\" \"&+IF('TRANSCRIPT INFO'!O38=\"N/A\",\" \",'TRANSCRIPT INFO'!O38)","v":"   "},{"$f":"+IF('TRANSCRIPT INFO'!$E$51=\"N\",'TRANSCRIPT INFO'!$G$51,IF('TRANSCRIPT INFO'!$F$51=\"N\",'TRANSCRIPT INFO'!$G$51,))","v":0},{"$f":"+IF('TRANSCRIPT INFO'!$E$51=\"N\",'TRANSCRIPT INFO'!$H$51,IF('TRANSCRIPT INFO'!$F$51=\"N\",'TRANSCRIPT INFO'!$H$51,'TRANSCRIPT INFO'!$B$51))","v":"MATE 145"},{"$f":"+IF('TRANSCRIPT INFO'!$E$51=\"N\",'TRANSCRIPT INFO'!$I$51,IF('TRANSCRIPT INFO'!$F$51=\"N\",'TRANSCRIPT INFO'!$I$51,'TRANSCRIPT INFO'!$C$51))","v":"PRINCIPLES OF SCANNING PROBE MICOROSCOPY"},{"$f":"+IF('TRANSCRIPT INFO'!$E$51=\"N\",'TRANSCRIPT INFO'!$J$51&'TRANSCRIPT INFO'!$K$51,IF('TRANSCRIPT INFO'!$F$51=\"N\",'TRANSCRIPT INFO'!$K$51&'TRANSCRIPT INFO'!$K$51,'TRANSCRIPT INFO'!$D$51))","v":1},{"$f":"IF('TRANSCRIPT INFO'!$L$51=\"N/A\",\" \",'TRANSCRIPT INFO'!$L$51)&\" \"&+IF('TRANSCRIPT INFO'!$O$51=\"N/A\",\" \",'TRANSCRIPT INFO'!$O$51)","v":"   "}]
[null,{"$f":"+IF('TRANSCRIPT INFO'!E39=\"N\",'TRANSCRIPT INFO'!B39,IF('TRANSCRIPT INFO'!F39=\"N\",'TRANSCRIPT INFO'!B39,))","v":0},{"$f":"+IF('TRANSCRIPT INFO'!E39=\"N\",'TRANSCRIPT INFO'!C39,IF('TRANSCRIPT INFO'!F39=\"N\",'TRANSCRIPT INFO'!C39,))","v":0},{"$f":"+IF('TRANSCRIPT INFO'!E39=\"N\",'TRANSCRIPT INFO'!D39,IF('TRANSCRIPT INFO'!F39=\"N\",'TRANSCRIPT INFO'!D39,))","v":0},null,null,{"$f":"+IF('TRANSCRIPT INFO'!$E$52=\"N\",'TRANSCRIPT INFO'!$B$52,IF('TRANSCRIPT INFO'!$F$52=\"N\",'TRANSCRIPT INFO'!$B$52,))","v":0},{"$f":"+IF('TRANSCRIPT INFO'!$E$52=\"N\",'TRANSCRIPT INFO'!$C$52,IF('TRANSCRIPT INFO'!$F$52=\"N\",'TRANSCRIPT INFO'!$C$52,))","v":0},{"$f":"+IF('TRANSCRIPT INFO'!$E$52=\"N\",'TRANSCRIPT INFO'!$D$52,IF('TRANSCRIPT INFO'!$F$52=\"N\",'TRANSCRIPT INFO'!$D$52,))","v":0}]
[{"$f":"+IF('TRANSCRIPT INFO'!E39=\"N\",'TRANSCRIPT INFO'!G39,IF('TRANSCRIPT INFO'!F39=\"N\",'TRANSCRIPT INFO'!G39,))","v":0},{"$f":"+IF('TRANSCRIPT INFO'!E39=\"N\",'TRANSCRIPT INFO'!H39,IF('TRANSCRIPT INFO'!F39=\"N\",'TRANSCRIPT INFO'!H39,'TRANSCRIPT INFO'!B39))","v":"MATE 151"},{"$f":"+IF('TRANSCRIPT INFO'!E39=\"N\",'TRANSCRIPT INFO'!I39,IF('TRANSCRIPT INFO'!F39=\"N\",'TRANSCRIPT INFO'!I39,'TRANSCRIPT INFO'!C39))","v":"PROC ENGR THERMODYNAMICS"},{"$f":"+IF('TRANSCRIPT INFO'!E39=\"N\",'TRANSCRIPT INFO'!J39&'TRANSCRIPT INFO'!K39,IF('TRANSCRIPT INFO'!F39=\"N\",'TRANSCRIPT INFO'!J39&'TRANSCRIPT INFO'!K39,'TRANSCRIPT INFO'!D39))","v":3},{"$f":"IF('TRANSCRIPT INFO'!L39=\"N/A\",\" \",'TRANSCRIPT INFO'!L39)&\" \"&+IF('TRANSCRIPT INFO'!O39=\"N/A\",\" \",'TRANSCRIPT INFO'!O39)","v":"   "},{"$f":"+IF('TRANSCRIPT INFO'!$E$52=\"N\",'TRANSCRIPT INFO'!$G$52,IF('TRANSCRIPT INFO'!$F$52=\"N\",'TRANSCRIPT INFO'!$G$52,))","v":0},{"$f":"+IF('TRANSCRIPT INFO'!$E$52=\"N\",'TRANSCRIPT INFO'!$H$52,IF('TRANSCRIPT INFO'!$F$52=\"N\",'TRANSCRIPT INFO'!$H$52,'TRANSCRIPT INFO'!$B$52))","v":"ENGR 100W"},{"$f":"+IF('TRANSCRIPT INFO'!$E$52=\"N\",'TRANSCRIPT INFO'!$I$52,IF('TRANSCRIPT INFO'!$F$52=\"N\",'TRANSCRIPT INFO'!$I$52,'TRANSCRIPT INFO'!$C$52))","v":"ENGINEERING REPORTS"},{"$f":"+IF('TRANSCRIPT INFO'!$E$52=\"N\",'TRANSCRIPT INFO'!$J$52&'TRANSCRIPT INFO'!$K$52,IF('TRANSCRIPT INFO'!$F$52=\"N\",'TRANSCRIPT INFO'!$K$52&'TRANSCRIPT INFO'!$K$52,'TRANSCRIPT INFO'!$D$52))","v":3},{"$f":"IF('TRANSCRIPT INFO'!$L$52=\"N/A\",\" \",'TRANSCRIPT INFO'!$L$52)&\" \"&+IF('TRANSCRIPT INFO'!$O$52=\"N/A\",\" \",'TRANSCRIPT INFO'!$O$52)","v":"   "}]
[null,{"$f":"+IF('TRANSCRIPT INFO'!E40=\"N\",'TRANSCRIPT INFO'!B40,IF('TRANSCRIPT INFO'!F40=\"N\",'TRANSCRIPT INFO'!B40,))","v":0},{"$f":"+IF('TRANSCRIPT INFO'!E40=\"N\",'TRANSCRIPT INFO'!C40,IF('TRANSCRIPT INFO'!F40=\"N\",'TRANSCRIPT INFO'!C40,))","v":0},{"$f":"+IF('TRANSCRIPT INFO'!E40=\"N\",'TRANSCRIPT INFO'!D40,IF('TRANSCRIPT INFO'!F40=\"N\",'TRANSCRIPT INFO'!D40,))","v":0},null,null,{"$f":"+IF('TRANSCRIPT INFO'!$E$53=\"N\",'TRANSCRIPT INFO'!$B$53,IF('TRANSCRIPT INFO'!$F$53=\"N\",'TRANSCRIPT INFO'!$B$53,))","v":0},{"$f":"+IF('TRANSCRIPT INFO'!$E$53=\"N\",'TRANSCRIPT INFO'!$C$53,IF('TRANSCRIPT INFO'!$F$53=\"N\",'TRANSCRIPT INFO'!$C$53,))","v":0},{"$f":"+IF('TRANSCRIPT INFO'!$E$53=\"N\",'TRANSCRIPT INFO'!$D$53,IF('TRANSCRIPT INFO'!$F$53=\"N\",'TRANSCRIPT INFO'!$D$53,))","v":0}]
[{"$f":"+IF('TRANSCRIPT INFO'!E40=\"N\",'TRANSCRIPT INFO'!G40,IF('TRANSCRIPT INFO'!F40=\"N\",'TRANSCRIPT INFO'!G40,))","v":0},{"$f":"+IF('TRANSCRIPT INFO'!E40=\"N\",'TRANSCRIPT INFO'!H40,IF('TRANSCRIPT INFO'!F40=\"N\",'TRANSCRIPT INFO'!H40,'TRANSCRIPT INFO'!B40))","v":"MATE 152"},{"$f":"+IF('TRANSCRIPT INFO'!E40=\"N\",'TRANSCRIPT INFO'!I40,IF('TRANSCRIPT INFO'!F40=\"N\",'TRANSCRIPT INFO'!I40,'TRANSCRIPT INFO'!C40))","v":"SOLID STATE KINETICS"},{"$f":"+IF('TRANSCRIPT INFO'!E40=\"N\",'TRANSCRIPT INFO'!J40&'TRANSCRIPT INFO'!K40,IF('TRANSCRIPT INFO'!F40=\"N\",'TRANSCRIPT INFO'!J40&'TRANSCRIPT INFO'!K40,'TRANSCRIPT INFO'!D40))","v":3},{"$f":"IF('TRANSCRIPT INFO'!L40=\"N/A\",\" \",'TRANSCRIPT INFO'!L40)&\" \"&+IF('TRANSCRIPT INFO'!O40=\"N/A\",\" \",'TRANSCRIPT INFO'!O40)","v":"   "},{"$f":"+IF('TRANSCRIPT INFO'!$E$53=\"N\",'TRANSCRIPT INFO'!$G$53,IF('TRANSCRIPT INFO'!$F$53=\"N\",'TRANSCRIPT INFO'!$G$53,))","v":0},{"$f":"+IF('TRANSCRIPT INFO'!$E$53=\"N\",'TRANSCRIPT INFO'!$H$53,IF('TRANSCRIPT INFO'!$F$53=\"N\",'TRANSCRIPT INFO'!$H$53,'TRANSCRIPT INFO'!$B$53))","v":"MATE 143"},{"$f":"+IF('TRANSCRIPT INFO'!$E$53=\"N\",'TRANSCRIPT INFO'!$I$53,IF('TRANSCRIPT INFO'!$F$53=\"N\",'TRANSCRIPT INFO'!$I$53,'TRANSCRIPT INFO'!$C$53))","v":"SEM LABORATORY"},{"$f":"+IF('TRANSCRIPT INFO'!$E$53=\"N\",'TRANSCRIPT INFO'!$J$53&'TRANSCRIPT INFO'!$K$53,IF('TRANSCRIPT INFO'!$F$53=\"N\",'TRANSCRIPT INFO'!$K$53&'TRANSCRIPT INFO'!$K$53,'TRANSCRIPT INFO'!$D$53))","v":1},{"$f":"IF('TRANSCRIPT INFO'!$L$53=\"N/A\",\" \",'TRANSCRIPT INFO'!$L$53)&\" \"&+IF('TRANSCRIPT INFO'!$O$53=\"N/A\",\" \",'TRANSCRIPT INFO'!$O$53)","v":"   "}]
[null,{"$f":"+IF('TRANSCRIPT INFO'!E41=\"N\",'TRANSCRIPT INFO'!B41,IF('TRANSCRIPT INFO'!F41=\"N\",'TRANSCRIPT INFO'!B41,))","v":0},{"$f":"+IF('TRANSCRIPT INFO'!E41=\"N\",'TRANSCRIPT INFO'!C41,IF('TRANSCRIPT INFO'!F41=\"N\",'TRANSCRIPT INFO'!C41,))","v":0},{"$f":"+IF('TRANSCRIPT INFO'!E41=\"N\",'TRANSCRIPT INFO'!D41,IF('TRANSCRIPT INFO'!F41=\"N\",'TRANSCRIPT INFO'!D41,))","v":0},null,null,{"$f":"+IF('TRANSCRIPT INFO'!$E$54=\"N\",'TRANSCRIPT INFO'!$B$54,IF('TRANSCRIPT INFO'!$F$54=\"N\",'TRANSCRIPT INFO'!$B$54,))","v":0},{"$f":"+IF('TRANSCRIPT INFO'!$E$54=\"N\",'TRANSCRIPT INFO'!$C$54,IF('TRANSCRIPT INFO'!$F$54=\"N\",'TRANSCRIPT INFO'!$C$54,))","v":0},{"$f":"+IF('TRANSCRIPT INFO'!$E$54=\"N\",'TRANSCRIPT INFO'!$D$54,IF('TRANSCRIPT INFO'!$F$54=\"N\",'TRANSCRIPT INFO'!$D$54,))","v":0}]
[{"$f":"+IF('TRANSCRIPT INFO'!E41=\"N\",'TRANSCRIPT INFO'!G41,IF('TRANSCRIPT INFO'!F41=\"N\",'TRANSCRIPT INFO'!G41,))","v":0},{"$f":"+IF('TRANSCRIPT INFO'!E41=\"N\",'TRANSCRIPT INFO'!H41,IF('TRANSCRIPT INFO'!F41=\"N\",'TRANSCRIPT INFO'!H41,'TRANSCRIPT INFO'!B41))","v":"MATE 153"},{"$f":"+IF('TRANSCRIPT INFO'!E41=\"N\",'TRANSCRIPT INFO'!I41,IF('TRANSCRIPT INFO'!F41=\"N\",'TRANSCRIPT INFO'!I41,'TRANSCRIPT INFO'!C41))","v":"ELECTRONIC PROPERTIES OF MATERIALS"},{"$f":"+IF('TRANSCRIPT INFO'!E41=\"N\",'TRANSCRIPT INFO'!J41&'TRANSCRIPT INFO'!K41,IF('TRANSCRIPT INFO'!F41=\"N\",'TRANSCRIPT INFO'!J41&'TRANSCRIPT INFO'!K41,'TRANSCRIPT INFO'!D41))","v":3},{"$f":"IF('TRANSCRIPT INFO'!L41=\"N/A\",\" \",'TRANSCRIPT INFO'!L41)&\" \"&+IF('TRANSCRIPT INFO'!O41=\"N/A\",\" \",'TRANSCRIPT INFO'!O41)","v":"   "},{"$f":"+IF('TRANSCRIPT INFO'!$E$54=\"N\",'TRANSCRIPT INFO'!$G$54,IF('TRANSCRIPT INFO'!$F$54=\"N\",'TRANSCRIPT INFO'!$G$54,))","v":0},{"$f":"+IF('TRANSCRIPT INFO'!$E$54=\"N\",'TRANSCRIPT INFO'!$H$54,IF('TRANSCRIPT INFO'!$F$54=\"N\",'TRANSCRIPT INFO'!$H$54,'TRANSCRIPT INFO'!$B$54))","v":"MATE 144"},{"$f":"+IF('TRANSCRIPT INFO'!$E$54=\"N\",'TRANSCRIPT INFO'!$I$54,IF('TRANSCRIPT INFO'!$F$54=\"N\",'TRANSCRIPT INFO'!$I$54,'TRANSCRIPT INFO'!$C$54))","v":"XRD LABORATORY"},{"$f":"+IF('TRANSCRIPT INFO'!$E$54=\"N\",'TRANSCRIPT INFO'!$J$54&'TRANSCRIPT INFO'!$K$54,IF('TRANSCRIPT INFO'!$F$54=\"N\",'TRANSCRIPT INFO'!$K$54&'TRANSCRIPT INFO'!$K$54,'TRANSCRIPT INFO'!$D$54))","v":1},{"$f":"IF('TRANSCRIPT INFO'!$L$54=\"N/A\",\" \",'TRANSCRIPT INFO'!$L$54)&\" \"&+IF('TRANSCRIPT INFO'!$O$54=\"N/A\",\" \",'TRANSCRIPT INFO'!$O$54)","v":"   "}]
[null,{"$f":"+IF('TRANSCRIPT INFO'!E42=\"N\",'TRANSCRIPT INFO'!B42,IF('TRANSCRIPT INFO'!F42=\"N\",'TRANSCRIPT INFO'!B42,))","v":0},{"$f":"+IF('TRANSCRIPT INFO'!E42=\"N\",'TRANSCRIPT INFO'!C42,IF('TRANSCRIPT INFO'!F42=\"N\",'TRANSCRIPT INFO'!C42,))","v":0},{"$f":"+IF('TRANSCRIPT INFO'!E42=\"N\",'TRANSCRIPT INFO'!D42,IF('TRANSCRIPT INFO'!F42=\"N\",'TRANSCRIPT INFO'!D42,))","v":0},null,null,{"$f":"+IF('TRANSCRIPT INFO'!$E$55=\"N\",'TRANSCRIPT INFO'!$B$55,IF('TRANSCRIPT INFO'!$F$55=\"N\",'TRANSCRIPT INFO'!$B$55,))","v":0},{"$f":"+IF('TRANSCRIPT INFO'!$E$55=\"N\",'TRANSCRIPT INFO'!$C$55,IF('TRANSCRIPT INFO'!$F$55=\"N\",'TRANSCRIPT INFO'!$C$55,))","v":0},{"$f":"+IF('TRANSCRIPT INFO'!$E$55=\"N\",'TRANSCRIPT INFO'!$D$55,IF('TRANSCRIPT INFO'!$F$55=\"N\",'TRANSCRIPT INFO'!$D$55,))","v":0}]
[{"$f":"+IF('TRANSCRIPT INFO'!E42=\"N\",'TRANSCRIPT INFO'!G42,IF('TRANSCRIPT INFO'!F42=\"N\",'TRANSCRIPT INFO'!G42,))","v":0},{"$f":"+IF('TRANSCRIPT INFO'!E42=\"N\",'TRANSCRIPT INFO'!H42,IF('TRANSCRIPT INFO'!F42=\"N\",'TRANSCRIPT INFO'!H42,'TRANSCRIPT INFO'!B42))","v":"MATE 154"},{"$f":"+IF('TRANSCRIPT INFO'!E42=\"N\",'TRANSCRIPT INFO'!I42,IF('TRANSCRIPT INFO'!F42=\"N\",'TRANSCRIPT INFO'!I42,'TRANSCRIPT INFO'!C42))","v":"METALS AND ALLOYS"},{"$f":"+IF('TRANSCRIPT INFO'!E42=\"N\",'TRANSCRIPT INFO'!J42&'TRANSCRIPT INFO'!K42,IF('TRANSCRIPT INFO'!F42=\"N\",'TRANSCRIPT INFO'!J42&'TRANSCRIPT INFO'!K42,'TRANSCRIPT INFO'!D42))","v":3},{"$f":"IF('TRANSCRIPT INFO'!L42=\"N/A\",\" \",'TRANSCRIPT INFO'!L42)&\" \"&+IF('TRANSCRIPT INFO'!O42=\"N/A\",\" \",'TRANSCRIPT INFO'!O42)","v":"   "},{"$f":"+IF('TRANSCRIPT INFO'!$E$55=\"N\",'TRANSCRIPT INFO'!$G$55,IF('TRANSCRIPT INFO'!$F$55=\"N\",'TRANSCRIPT INFO'!$G$55,))","v":0},{"$f":"+IF('TRANSCRIPT INFO'!$E$55=\"N\",'TRANSCRIPT INFO'!$H$55,IF('TRANSCRIPT INFO'!$F$55=\"N\",'TRANSCRIPT INFO'!$H$55,'TRANSCRIPT INFO'!$B$55))","v":0},{"$f":"+IF('TRANSCRIPT INFO'!$E$55=\"N\",'TRANSCRIPT INFO'!$I$55,IF('TRANSCRIPT INFO'!$F$55=\"N\",'TRANSCRIPT INFO'!$I$55,'TRANSCRIPT INFO'!$C$55))","v":0},{"$f":"+IF('TRANSCRIPT INFO'!$E$55=\"N\",'TRANSCRIPT INFO'!$J$55&'TRANSCRIPT INFO'!$K$55,IF('TRANSCRIPT INFO'!$F$55=\"N\",'TRANSCRIPT INFO'!$K$55&'TRANSCRIPT INFO'!$K$55,'TRANSCRIPT INFO'!$D$55))","v":0},{"$f":"IF('TRANSCRIPT INFO'!$L$55=\"N/A\",\" \",'TRANSCRIPT INFO'!$L$55)&\" \"&+IF('TRANSCRIPT INFO'!$O$55=\"N/A\",\" \",'TRANSCRIPT INFO'!$O$55)","v":"   "}]
[null,{"$f":"+IF('TRANSCRIPT INFO'!E43=\"N\",'TRANSCRIPT INFO'!B43,IF('TRANSCRIPT INFO'!F43=\"N\",'TRANSCRIPT INFO'!B43,))","v":0},{"$f":"+IF('TRANSCRIPT INFO'!E43=\"N\",'TRANSCRIPT INFO'!C43,IF('TRANSCRIPT INFO'!F43=\"N\",'TRANSCRIPT INFO'!C43,))","v":0},{"$f":"+IF('TRANSCRIPT INFO'!E43=\"N\",'TRANSCRIPT INFO'!D43,IF('TRANSCRIPT INFO'!F43=\"N\",'TRANSCRIPT INFO'!D43,))","v":0},null,null,{"$f":"+IF('TRANSCRIPT INFO'!$E$56=\"N\",'TRANSCRIPT INFO'!$B$56,IF('TRANSCRIPT INFO'!$F$56=\"N\",'TRANSCRIPT INFO'!$B$56,))","v":0},{"$f":"+IF('TRANSCRIPT INFO'!$E$56=\"N\",'TRANSCRIPT INFO'!$C$56,IF('TRANSCRIPT INFO'!$F$56=\"N\",'TRANSCRIPT INFO'!$C$56,))","v":0},{"$f":"+IF('TRANSCRIPT INFO'!$E$56=\"N\",'TRANSCRIPT INFO'!$D$56,IF('TRANSCRIPT INFO'!$F$56=\"N\",'TRANSCRIPT INFO'!$D$56,))","v":0}]
[{"$f":"+IF('TRANSCRIPT INFO'!E43=\"N\",'TRANSCRIPT INFO'!G43,IF('TRANSCRIPT INFO'!F43=\"N\",'TRANSCRIPT INFO'!G43,))","v":0},{"$f":"+IF('TRANSCRIPT INFO'!E43=\"N\",'TRANSCRIPT INFO'!H43,IF('TRANSCRIPT INFO'!F43=\"N\",'TRANSCRIPT INFO'!H43,'TRANSCRIPT INFO'!B43))","v":"MATE 155"},{"$f":"+IF('TRANSCRIPT INFO'!E43=\"N\",'TRANSCRIPT INFO'!I43,IF('TRANSCRIPT INFO'!F43=\"N\",'TRANSCRIPT INFO'!I43,'TRANSCRIPT INFO'!C43))","v":"MATERIALS SELECTION & PRO. DES."},{"$f":"+IF('TRANSCRIPT INFO'!E43=\"N\",'TRANSCRIPT INFO'!J43&'TRANSCRIPT INFO'!K43,IF('TRANSCRIPT INFO'!F43=\"N\",'TRANSCRIPT INFO'!J43&'TRANSCRIPT INFO'!K43,'TRANSCRIPT INFO'!D43))","v":3},{"$f":"IF('TRANSCRIPT INFO'!L43=\"N/A\",\" \",'TRANSCRIPT INFO'!L43)&\" \"&+IF('TRANSCRIPT INFO'!O43=\"N/A\",\" \",'TRANSCRIPT INFO'!O43)","v":"   "},{"$f":"+IF('TRANSCRIPT INFO'!$E$56=\"N\",'TRANSCRIPT INFO'!$G$56,IF('TRANSCRIPT INFO'!$F$56=\"N\",'TRANSCRIPT INFO'!$G$56,))","v":0},{"$f":"+IF('TRANSCRIPT INFO'!$E$56=\"N\",'TRANSCRIPT INFO'!$H$56,IF('TRANSCRIPT INFO'!$F$56=\"N\",'TRANSCRIPT INFO'!$H$56,'TRANSCRIPT INFO'!$B$56))","v":0},{"$f":"+IF('TRANSCRIPT INFO'!$E$56=\"N\",'TRANSCRIPT INFO'!$I$56,IF('TRANSCRIPT INFO'!$F$56=\"N\",'TRANSCRIPT INFO'!$I$56,'TRANSCRIPT INFO'!$C$56))","v":0},{"$f":"+IF('TRANSCRIPT INFO'!$E$56=\"N\",'TRANSCRIPT INFO'!$J$56&'TRANSCRIPT INFO'!$K$56,IF('TRANSCRIPT INFO'!$F$56=\"N\",'TRANSCRIPT INFO'!$K$56&'TRANSCRIPT INFO'!$K$56,'TRANSCRIPT INFO'!$D$56))","v":0},{"$f":"IF('TRANSCRIPT INFO'!$L$56=\"N/A\",\" \",'TRANSCRIPT INFO'!$L$56)&\" \"&+IF('TRANSCRIPT INFO'!$O$56=\"N/A\",\" \",'TRANSCRIPT INFO'!$O$56)","v":" "}]
[]
["APPROVED UPPER DIVISION ELECTIVES FOR THE MAJOR: 9 UNITS"]
[" ALT. INST.","COURSE NUMBER.","COURSE TITLE","UNITS","GRADE"," ALT. INST.","COURSE NUMBER.","COURSE TITLE","UNITS","GRADE"]
[null,{"$f":"+IF('TRANSCRIPT INFO'!$E$57=\"N\",'TRANSCRIPT INFO'!$B$57,IF('TRANSCRIPT INFO'!$F$57=\"N\",'TRANSCRIPT INFO'!$B$57,))","v":0},{"$f":"+IF('TRANSCRIPT INFO'!$E$57=\"N\",'TRANSCRIPT INFO'!$C$57,IF('TRANSCRIPT INFO'!$F$57=\"N\",'TRANSCRIPT INFO'!$C$57,))","v":0},{"$f":"+IF('TRANSCRIPT INFO'!$E$57=\"N\",'TRANSCRIPT INFO'!$D$57,IF('TRANSCRIPT INFO'!$F$57=\"N\",'TRANSCRIPT INFO'!$D$57,))","v":0},null,null,{"$f":"+IF('TRANSCRIPT INFO'!$E$60=\"N\",'TRANSCRIPT INFO'!$B$60,IF('TRANSCRIPT INFO'!$F$60=\"N\",'TRANSCRIPT INFO'!$B$60,))","v":0},{"$f":"+IF('TRANSCRIPT INFO'!$E$60=\"N\",'TRANSCRIPT INFO'!$C$60,IF('TRANSCRIPT INFO'!$F$60=\"N\",'TRANSCRIPT INFO'!$C$60,))","v":0},{"$f":"+IF('TRANSCRIPT INFO'!$E$60=\"N\",'TRANSCRIPT INFO'!$D$60,IF('TRANSCRIPT INFO'!$F$60=\"N\",'TRANSCRIPT INFO'!$D$60,))","v":0}]
[{"$f":"+IF('TRANSCRIPT INFO'!$E$57=\"N\",'TRANSCRIPT INFO'!$G$57,IF('TRANSCRIPT INFO'!$F$57=\"N\",'TRANSCRIPT INFO'!$G$57,))","v":0},{"$f":"+IF('TRANSCRIPT INFO'!$E$57=\"N\",'TRANSCRIPT INFO'!$H$57,IF('TRANSCRIPT INFO'!$F$57=\"N\",'TRANSCRIPT INFO'!$H$57,'TRANSCRIPT INFO'!$B$57))","v":0},{"$f":"+IF('TRANSCRIPT INFO'!$E$57=\"N\",'TRANSCRIPT INFO'!$I$57,IF('TRANSCRIPT INFO'!$F$57=\"N\",'TRANSCRIPT INFO'!$I$57,'TRANSCRIPT INFO'!$C$57))","v":0},{"$f":"+IF('TRANSCRIPT INFO'!$E$57=\"N\",'TRANSCRIPT INFO'!$J$57&'TRANSCRIPT INFO'!$K$57,IF('TRANSCRIPT INFO'!$F$57=\"N\",'TRANSCRIPT INFO'!$K$57&'TRANSCRIPT INFO'!$K$57,'TRANSCRIPT INFO'!$D$57))","v":3},{"$f":"IF('TRANSCRIPT INFO'!$L$57=\"N/A\",\" \",'TRANSCRIPT INFO'!$L$57)&\" \"&+IF('TRANSCRIPT INFO'!$O$57=\"N/A\",\" \",'TRANSCRIPT INFO'!$O$57)","v":"   "},{"$f":"+IF('TRANSCRIPT INFO'!$E$60=\"N\",'TRANSCRIPT INFO'!$G$60,IF('TRANSCRIPT INFO'!$F$60=\"N\",'TRANSCRIPT INFO'!$G$60,))","v":0},{"$f":"+IF('TRANSCRIPT INFO'!$E$60=\"N\",'TRANSCRIPT INFO'!$H$60,IF('TRANSCRIPT INFO'!$F$60=\"N\",'TRANSCRIPT INFO'!$H$60,'TRANSCRIPT INFO'!$B$60))","v":0},{"$f":"+IF('TRANSCRIPT INFO'!$E$60=\"N\",'TRANSCRIPT INFO'!$I$60,IF('TRANSCRIPT INFO'!$F$60=\"N\",'TRANSCRIPT INFO'!$I$60,'TRANSCRIPT INFO'!$C$60))","v":0},{"$f":"+IF('TRANSCRIPT INFO'!$E$60=\"N\",'TRANSCRIPT INFO'!$J$60&'TRANSCRIPT INFO'!$K$60,IF('TRANSCRIPT INFO'!$F$60=\"N\",'TRANSCRIPT INFO'!$K$60&'TRANSCRIPT INFO'!$K$60,'TRANSCRIPT INFO'!$D$60))","v":0},{"$f":"IF('TRANSCRIPT INFO'!$L$60=\"N/A\",\" \",'TRANSCRIPT INFO'!$L$60)&\" \"&+IF('TRANSCRIPT INFO'!$O$60=\"N/A\",\" \",'TRANSCRIPT INFO'!$O$60)","v":" "}]
[null,{"$f":"+IF('TRANSCRIPT INFO'!$E$58=\"N\",'TRANSCRIPT INFO'!$B$58,IF('TRANSCRIPT INFO'!$F$58=\"N\",'TRANSCRIPT INFO'!$B$58,))","v":0},{"$f":"+IF('TRANSCRIPT INFO'!$E$58=\"N\",'TRANSCRIPT INFO'!$C$58,IF('TRANSCRIPT INFO'!$F$58=\"N\",'TRANSCRIPT INFO'!$C$58,))","v":0},{"$f":"+IF('TRANSCRIPT INFO'!$E$58=\"N\",'TRANSCRIPT INFO'!$D$58,IF('TRANSCRIPT INFO'!$F$58=\"N\",'TRANSCRIPT INFO'!$D$58,))","v":0},null,null,{"$f":"+IF('TRANSCRIPT INFO'!$E$61=\"N\",'TRANSCRIPT INFO'!$B$61,IF('TRANSCRIPT INFO'!$F$61=\"N\",'TRANSCRIPT INFO'!$B$61,))","v":0},{"$f":"+IF('TRANSCRIPT INFO'!$E$61=\"N\",'TRANSCRIPT INFO'!$C$61,IF('TRANSCRIPT INFO'!$F$61=\"N\",'TRANSCRIPT INFO'!$C$61,))","v":0},{"$f":"+IF('TRANSCRIPT INFO'!$E$61=\"N\",'TRANSCRIPT INFO'!$D$61,IF('TRANSCRIPT INFO'!$F$61=\"N\",'TRANSCRIPT INFO'!$D$61,))","v":0}]
[{"$f":"+IF('TRANSCRIPT INFO'!$E$58=\"N\",'TRANSCRIPT INFO'!$G$58,IF('TRANSCRIPT INFO'!$F$58=\"N\",'TRANSCRIPT INFO'!$G$58,))","v":0},{"$f":"+IF('TRANSCRIPT INFO'!$E$58=\"N\",'TRANSCRIPT INFO'!$H$58,IF('TRANSCRIPT INFO'!$F$58=\"N\",'TRANSCRIPT INFO'!$H$58,'TRANSCRIPT INFO'!$B$58))","v":0},{"$f":"+IF('TRANSCRIPT INFO'!$E$58=\"N\",'TRANSCRIPT INFO'!$I$58,IF('TRANSCRIPT INFO'!$F$58=\"N\",'TRANSCRIPT INFO'!$I$58,'TRANSCRIPT INFO'!$C$58))","v":0},{"$f":"+IF('TRANSCRIPT INFO'!$E$58=\"N\",'TRANSCRIPT INFO'!$J$58&'TRANSCRIPT INFO'!$K$58,IF('TRANSCRIPT INFO'!$F$58=\"N\",'TRANSCRIPT INFO'!$K$58&'TRANSCRIPT INFO'!$K$58,'TRANSCRIPT INFO'!$D$58))","v":3},{"$f":"IF('TRANSCRIPT INFO'!$L$58=\"N/A\",\" \",'TRANSCRIPT INFO'!$L$58)&\" \"&+IF('TRANSCRIPT INFO'!$O$58=\"N/A\",\" \",'TRANSCRIPT INFO'!$O$58)","v":"   "},{"$f":"+IF('TRANSCRIPT INFO'!$E$61=\"N\",'TRANSCRIPT INFO'!$G$61,IF('TRANSCRIPT INFO'!$F$61=\"N\",'TRANSCRIPT INFO'!$G$61,))","v":0},{"$f":"+IF('TRANSCRIPT INFO'!$E$61=\"N\",'TRANSCRIPT INFO'!$H$61,IF('TRANSCRIPT INFO'!$F$61=\"N\",'TRANSCRIPT INFO'!$H$61,'TRANSCRIPT INFO'!$B$61))","v":0},{"$f":"+IF('TRANSCRIPT INFO'!$E$61=\"N\",'TRANSCRIPT INFO'!$I$61,IF('TRANSCRIPT INFO'!$F$61=\"N\",'TRANSCRIPT INFO'!$I$61,'TRANSCRIPT INFO'!$C$61))","v":0},{"$f":"+IF('TRANSCRIPT INFO'!$E$61=\"N\",'TRANSCRIPT INFO'!$J$61&'TRANSCRIPT INFO'!$K$61,IF('TRANSCRIPT INFO'!$F$61=\"N\",'TRANSCRIPT INFO'!$K$61&'TRANSCRIPT INFO'!$K$61,'TRANSCRIPT INFO'!$D$61))","v":0},{"$f":"IF('TRANSCRIPT INFO'!$L$61=\"N/A\",\" \",'TRANSCRIPT INFO'!$L$61)&\" \"&+IF('TRANSCRIPT INFO'!$O$61=\"N/A\",\" \",'TRANSCRIPT INFO'!$O$61)","v":" "}]
[null,{"$f":"+IF('TRANSCRIPT INFO'!$E$59=\"N\",'TRANSCRIPT INFO'!$B$59,IF('TRANSCRIPT INFO'!$F$59=\"N\",'TRANSCRIPT INFO'!$B$59,))","v":0},{"$f":"+IF('TRANSCRIPT INFO'!$E$59=\"N\",'TRANSCRIPT INFO'!$C$59,IF('TRANSCRIPT INFO'!$F$59=\"N\",'TRANSCRIPT INFO'!$C$59,))","v":0},{"$f":"+IF('TRANSCRIPT INFO'!$E$59=\"N\",'TRANSCRIPT INFO'!$D$59,IF('TRANSCRIPT INFO'!$F$59=\"N\",'TRANSCRIPT INFO'!$D$59,))","v":0},null,null,{"$f":"+IF('TRANSCRIPT INFO'!$E$62=\"N\",'TRANSCRIPT INFO'!$B$62,IF('TRANSCRIPT INFO'!$F$62=\"N\",'TRANSCRIPT INFO'!$B$62,))","v":0},{"$f":"+IF('TRANSCRIPT INFO'!$E$62=\"N\",'TRANSCRIPT INFO'!$C$62,IF('TRANSCRIPT INFO'!$F$62=\"N\",'TRANSCRIPT INFO'!$C$62,))","v":0},{"$f":"+IF('TRANSCRIPT INFO'!$E$62=\"N\",'TRANSCRIPT INFO'!$D$62,IF('TRANSCRIPT INFO'!$F$62=\"N\",'TRANSCRIPT INFO'!$D$62,))","v":0}]
[{"$f":"+IF('TRANSCRIPT INFO'!$E$59=\"N\",'TRANSCRIPT INFO'!$G$59,IF('TRANSCRIPT INFO'!$F$59=\"N\",'TRANSCRIPT INFO'!$G$59,))","v":0},{"$f":"+IF('TRANSCRIPT INFO'!$E$59=\"N\",'TRANSCRIPT INFO'!$H$59,IF('TRANSCRIPT INFO'!$F$59=\"N\",'TRANSCRIPT INFO'!$H$59,'TRANSCRIPT INFO'!$B$59))","v":0},{"$f":"+IF('TRANSCRIPT INFO'!$E$59=\"N\",'TRANSCRIPT INFO'!$I$59,IF('TRANSCRIPT INFO'!$F$59=\"N\",'TRANSCRIPT INFO'!$I$59,'TRANSCRIPT INFO'!$C$59))","v":0},{"$f":"+IF('TRANSCRIPT INFO'!$E$59=\"N\",'TRANSCRIPT INFO'!$J$59&'TRANSCRIPT INFO'!$K$59,IF('TRANSCRIPT INFO'!$F$59=\"N\",'TRANSCRIPT INFO'!$K$59&'TRANSCRIPT INFO'!$K$59,'TRANSCRIPT INFO'!$D$59))","v":3},{"$f":"IF('TRANSCRIPT INFO'!$L$59=\"N/A\",\" \",'TRANSCRIPT INFO'!$L$59)&\" \"&+IF('TRANSCRIPT INFO'!$O$59=\"N/A\",\" \",'TRANSCRIPT INFO'!$O$59)","v":"   "},{"$f":"+IF('TRANSCRIPT INFO'!$E$62=\"N\",'TRANSCRIPT INFO'!$G$62,IF('TRANSCRIPT INFO'!$F$62=\"N\",'TRANSCRIPT INFO'!$G$62,))","v":0},{"$f":"+IF('TRANSCRIPT INFO'!$E$62=\"N\",'TRANSCRIPT INFO'!$H$62,IF('TRANSCRIPT INFO'!$F$62=\"N\",'TRANSCRIPT INFO'!$H$62,'TRANSCRIPT INFO'!$B$62))","v":0},{"$f":"+IF('TRANSCRIPT INFO'!$E$62=\"N\",'TRANSCRIPT INFO'!$I$62,IF('TRANSCRIPT INFO'!$F$62=\"N\",'TRANSCRIPT INFO'!$I$62,'TRANSCRIPT INFO'!$C$62))","v":0},{"$f":"+IF('TRANSCRIPT INFO'!$E$62=\"N\",'TRANSCRIPT INFO'!$J$62&'TRANSCRIPT INFO'!$K$62,IF('TRANSCRIPT INFO'!$F$62=\"N\",'TRANSCRIPT INFO'!$K$62&'TRANSCRIPT INFO'!$K$62,'TRANSCRIPT INFO'!$D$62))","v":0},{"$f":"IF('TRANSCRIPT INFO'!$L$62=\"N/A\",\" \",'TRANSCRIPT INFO'!$L$62)&\" \"&+IF('TRANSCRIPT INFO'!$O$62=\"N/A\",\" \",'TRANSCRIPT INFO'!$O$62)","v":" "}]
[]
["PREPARATION FOR THE MAJOR - MATH, CHEMISTRY & PHYSICS "]
[" ALT. INST.","COURSE NUMBER.","COURSE TITLE","UNITS","GRADE"," ALT. INST.","COURSE NUMBER.","COURSE TITLE","UNITS","GRADE"]
[null,{"$f":"+IF('TRANSCRIPT INFO'!$E$16=\"N\",'TRANSCRIPT INFO'!$B$16,IF('TRANSCRIPT INFO'!$F$16=\"N\",'TRANSCRIPT INFO'!$B$16,))","v":0},{"$f":"+IF('TRANSCRIPT INFO'!$E$16=\"N\",'TRANSCRIPT INFO'!$C$16,IF('TRANSCRIPT INFO'!$F$16=\"N\",'TRANSCRIPT INFO'!$C$16,))","v":0},{"$f":"+IF('TRANSCRIPT INFO'!$E$16=\"N\",'TRANSCRIPT INFO'!$D$16,IF('TRANSCRIPT INFO'!$F$16=\"N\",'TRANSCRIPT INFO'!$D$16,))","v":0},null,null,{"$f":"+IF('TRANSCRIPT INFO'!$E$23=\"N\",'TRANSCRIPT INFO'!$B$23,IF('TRANSCRIPT INFO'!$F$23=\"N\",'TRANSCRIPT INFO'!$B$23,))","v":0},{"$f":"+IF('TRANSCRIPT INFO'!$E$23=\"N\",'TRANSCRIPT INFO'!$C$23,IF('TRANSCRIPT INFO'!$F$23=\"N\",'TRANSCRIPT INFO'!$C$23,))","v":0},{"$f":"+IF('TRANSCRIPT INFO'!$E$23=\"N\",'TRANSCRIPT INFO'!$D$23,IF('TRANSCRIPT INFO'!$F$23=\"N\",'TRANSCRIPT INFO'!$D$23,))","v":0}]
[{"$f":"+IF('TRANSCRIPT INFO'!$E$16=\"N\",'TRANSCRIPT INFO'!$G$16,IF('TRANSCRIPT INFO'!$F$16=\"N\",'TRANSCRIPT INFO'!$G$16,))","v":0},{"$f":"+IF('TRANSCRIPT INFO'!$E$16=\"N\",'TRANSCRIPT INFO'!$H$16,IF('TRANSCRIPT INFO'!$F$16=\"N\",'TRANSCRIPT INFO'!$H$16,'TRANSCRIPT INFO'!$B$16))","v":"MATH 30"},{"$f":"+IF('TRANSCRIPT INFO'!$E$16=\"N\",'TRANSCRIPT INFO'!$I$16,IF('TRANSCRIPT INFO'!$F$16=\"N\",'TRANSCRIPT INFO'!$I$16,'TRANSCRIPT INFO'!$C$16))","v":"CALCULUS I"},{"$f":"+IF('TRANSCRIPT INFO'!$E$16=\"N\",'TRANSCRIPT INFO'!$J$16&'TRANSCRIPT INFO'!$K$16,IF('TRANSCRIPT INFO'!$F$16=\"N\",'TRANSCRIPT INFO'!$K$16&'TRANSCRIPT INFO'!$K$16,'TRANSCRIPT INFO'!$D$16))","v":3},{"$f":"IF('TRANSCRIPT INFO'!$L$16=\"N/A\",\" \",'TRANSCRIPT INFO'!$L$16)&\" \"&+IF('TRANSCRIPT INFO'!$O$16=\"N/A\",\" \",'TRANSCRIPT INFO'!$O$16)","v":"   "},{"$f":"+IF('TRANSCRIPT INFO'!$E$23=\"N\",'TRANSCRIPT INFO'!$G$23,IF('TRANSCRIPT INFO'!$F$23=\"N\",'TRANSCRIPT INFO'!$G$23,))","v":0},{"$f":"+IF('TRANSCRIPT INFO'!$E$23=\"N\",'TRANSCRIPT INFO'!$H$23,IF('TRANSCRIPT INFO'!$F$23=\"N\",'TRANSCRIPT INFO'!$H$23,'TRANSCRIPT INFO'!$B$23))","v":0},{"$f":"+IF('TRANSCRIPT INFO'!$E$23=\"N\",'TRANSCRIPT INFO'!$I$23,IF('TRANSCRIPT INFO'!$F$23=\"N\",'TRANSCRIPT INFO'!$I$23,'TRANSCRIPT INFO'!$C$23))","v":0},{"$f":"+IF('TRANSCRIPT INFO'!$E$23=\"N\",'TRANSCRIPT INFO'!$J$23&'TRANSCRIPT INFO'!$K$23,IF('TRANSCRIPT INFO'!$F$23=\"N\",'TRANSCRIPT INFO'!$K$23&'TRANSCRIPT INFO'!$K$23,'TRANSCRIPT INFO'!$D$23))","v":0},{"$f":"IF('TRANSCRIPT INFO'!$L$23=\"N/A\",\" \",'TRANSCRIPT INFO'!$L$23)&\" \"&+IF('TRANSCRIPT INFO'!$O$23=\"N/A\",\" \",'TRANSCRIPT INFO'!$O$23)","v":"   "}]
[null,{"$f":"+IF('TRANSCRIPT INFO'!$E$17=\"N\",'TRANSCRIPT INFO'!$B$17,IF('TRANSCRIPT INFO'!$F$17=\"N\",'TRANSCRIPT INFO'!$B$17,))","v":0},{"$f":"+IF('TRANSCRIPT INFO'!$E$17=\"N\",'TRANSCRIPT INFO'!$C$17,IF('TRANSCRIPT INFO'!$F$17=\"N\",'TRANSCRIPT INFO'!$C$17,))","v":0},{"$f":"+IF('TRANSCRIPT INFO'!$E$17=\"N\",'TRANSCRIPT INFO'!$D$17,IF('TRANSCRIPT INFO'!$F$17=\"N\",'TRANSCRIPT INFO'!$D$17,))","v":0},null,null,{"$f":"+IF('TRANSCRIPT INFO'!$E$24=\"N\",'TRANSCRIPT INFO'!$B$24,IF('TRANSCRIPT INFO'!$F$24=\"N\",'TRANSCRIPT INFO'!$B$24,))","v":0},{"$f":"+IF('TRANSCRIPT INFO'!$E$24=\"N\",'TRANSCRIPT INFO'!$C$24,IF('TRANSCRIPT INFO'!$F$24=\"N\",'TRANSCRIPT INFO'!$C$24,))","v":0},{"$f":"+IF('TRANSCRIPT INFO'!$E$24=\"N\",'TRANSCRIPT INFO'!$D$24,IF('TRANSCRIPT INFO'!$F$24=\"N\",'TRANSCRIPT INFO'!$D$24,))","v":0}]
[{"$f":"+IF('TRANSCRIPT INFO'!$E$17=\"N\",'TRANSCRIPT INFO'!$G$17,IF('TRANSCRIPT INFO'!$F$17=\"N\",'TRANSCRIPT INFO'!$G$17,))","v":0},{"$f":"+IF('TRANSCRIPT INFO'!$E$17=\"N\",'TRANSCRIPT INFO'!$H$17,IF('TRANSCRIPT INFO'!$F$17=\"N\",'TRANSCRIPT INFO'!$H$17,'TRANSCRIPT INFO'!$B$17))","v":"MATH 31"},{"$f":"+IF('TRANSCRIPT INFO'!$E$17=\"N\",'TRANSCRIPT INFO'!$I$17,IF('TRANSCRIPT INFO'!$F$17=\"N\",'TRANSCRIPT INFO'!$I$17,'TRANSCRIPT INFO'!$C$17))","v":"CALCULUS II"},{"$f":"+IF('TRANSCRIPT INFO'!$E$17=\"N\",'TRANSCRIPT INFO'!$J$17&'TRANSCRIPT INFO'!$K$17,IF('TRANSCRIPT INFO'!$F$17=\"N\",'TRANSCRIPT INFO'!$K$17&'TRANSCRIPT INFO'!$K$17,'TRANSCRIPT INFO'!$D$17))","v":4},{"$f":"IF('TRANSCRIPT INFO'!$L$17=\"N/A\",\" \",'TRANSCRIPT INFO'!$L$17)&\" \"&+IF('TRANSCRIPT INFO'!$O$17=\"N/A\",\" \",'TRANSCRIPT INFO'!$O$17)","v":"   "},{"$f":"+IF('TRANSCRIPT INFO'!$E$24=\"N\",'TRANSCRIPT INFO'!$G$24,IF('TRANSCRIPT INFO'!$F$24=\"N\",'TRANSCRIPT INFO'!$G$24,))","v":0},{"$f":"+IF('TRANSCRIPT INFO'!$E$24=\"N\",'TRANSCRIPT INFO'!$H$24,IF('TRANSCRIPT INFO'!$F$24=\"N\",'TRANSCRIPT INFO'!$H$24,'TRANSCRIPT INFO'!$B$24))","v":"PHYS 50"},{"$f":"+IF('TRANSCRIPT INFO'!$E$24=\"N\",'TRANSCRIPT INFO'!$I$24,IF('TRANSCRIPT INFO'!$F$24=\"N\",'TRANSCRIPT INFO'!$I$24,'TRANSCRIPT INFO'!$C$24))","v":"MECHANICS"},{"$f":"+IF('TRANSCRIPT INFO'!$E$24=\"N\",'TRANSCRIPT INFO'!$J$24&'TRANSCRIPT INFO'!$K$24,IF('TRANSCRIPT INFO'!$F$24=\"N\",'TRANSCRIPT INFO'!$K$24&'TRANSCRIPT INFO'!$K$24,'TRANSCRIPT INFO'!$D$24))","v":4},{"$f":"IF('TRANSCRIPT INFO'!$L$24=\"N/A\",\" \",'TRANSCRIPT INFO'!$L$24)&\" \"&+IF('TRANSCRIPT INFO'!$O$24=\"N/A\",\" \",'TRANSCRIPT INFO'!$O$24)","v":"   "}]
[null,{"$f":"+IF('TRANSCRIPT INFO'!$E$18=\"N\",'TRANSCRIPT INFO'!$B$18,IF('TRANSCRIPT INFO'!$F$18=\"N\",'TRANSCRIPT INFO'!$B$18,))","v":0},{"$f":"+IF('TRANSCRIPT INFO'!$E$18=\"N\",'TRANSCRIPT INFO'!$C$18,IF('TRANSCRIPT INFO'!$F$18=\"N\",'TRANSCRIPT INFO'!$C$18,))","v":0},{"$f":"+IF('TRANSCRIPT INFO'!$E$18=\"N\",'TRANSCRIPT INFO'!$D$18,IF('TRANSCRIPT INFO'!$F$18=\"N\",'TRANSCRIPT INFO'!$D$18,))","v":0},null,null,{"$f":"+IF('TRANSCRIPT INFO'!$E$25=\"N\",'TRANSCRIPT INFO'!$B$25,IF('TRANSCRIPT INFO'!$F$25=\"N\",'TRANSCRIPT INFO'!$B$25,))","v":0},{"$f":"+IF('TRANSCRIPT INFO'!$E$25=\"N\",'TRANSCRIPT INFO'!$C$25,IF('TRANSCRIPT INFO'!$F$25=\"N\",'TRANSCRIPT INFO'!$C$25,))","v":0},{"$f":"+IF('TRANSCRIPT INFO'!$E$25=\"N\",'TRANSCRIPT INFO'!$D$25,IF('TRANSCRIPT INFO'!$F$25=\"N\",'TRANSCRIPT INFO'!$D$25,))","v":0}]
[{"$f":"+IF('TRANSCRIPT INFO'!$E$18=\"N\",'TRANSCRIPT INFO'!$G$18,IF('TRANSCRIPT INFO'!$F$18=\"N\",'TRANSCRIPT INFO'!$G$18,))","v":0},{"$f":"+IF('TRANSCRIPT INFO'!$E$18=\"N\",'TRANSCRIPT INFO'!$H$18,IF('TRANSCRIPT INFO'!$F$18=\"N\",'TRANSCRIPT INFO'!$H$18,'TRANSCRIPT INFO'!$B$18))","v":"MATH 32"},{"$f":"+IF('TRANSCRIPT INFO'!$E$18=\"N\",'TRANSCRIPT INFO'!$I$18,IF('TRANSCRIPT INFO'!$F$18=\"N\",'TRANSCRIPT INFO'!$I$18,'TRANSCRIPT INFO'!$C$18))","v":"CALCULUS III"},{"$f":"+IF('TRANSCRIPT INFO'!$E$18=\"N\",'TRANSCRIPT INFO'!$J$18&'TRANSCRIPT INFO'!$K$18,IF('TRANSCRIPT INFO'!$F$18=\"N\",'TRANSCRIPT INFO'!$K$18&'TRANSCRIPT INFO'!$K$18,'TRANSCRIPT INFO'!$D$18))","v":3},{"$f":"IF('TRANSCRIPT INFO'!$L$18=\"N/A\",\" \",'TRANSCRIPT INFO'!$L$18)&\" \"&+IF('TRANSCRIPT INFO'!$O$18=\"N/A\",\" \",'TRANSCRIPT INFO'!$O$18)","v":"   "},{"$f":"+IF('TRANSCRIPT INFO'!$E$25=\"N\",'TRANSCRIPT INFO'!$G$25,IF('TRANSCRIPT INFO'!$F$25=\"N\",'TRANSCRIPT INFO'!$G$25,))","v":0},{"$f":"+IF('TRANSCRIPT INFO'!$E$25=\"N\",'TRANSCRIPT INFO'!$H$25,IF('TRANSCRIPT INFO'!$F$25=\"N\",'TRANSCRIPT INFO'!$H$25,'TRANSCRIPT INFO'!$B$25))","v":"PHYS 51"},{"$f":"+IF('TRANSCRIPT INFO'!$E$25=\"N\",'TRANSCRIPT INFO'!$I$25,IF('TRANSCRIPT INFO'!$F$25=\"N\",'TRANSCRIPT INFO'!$I$25,'TRANSCRIPT INFO'!$C$25))","v":"ELECTRICITY & MAGNETISM"},{"$f":"+IF('TRANSCRIPT INFO'!$E$25=\"N\",'TRANSCRIPT INFO'!$J$25&'TRANSCRIPT INFO'!$K$25,IF('TRANSCRIPT INFO'!$F$25=\"N\",'TRANSCRIPT INFO'!$K$25&'TRANSCRIPT INFO'!$K$25,'TRANSCRIPT INFO'!$D$25))","v":4},{"$f":"IF('TRANSCRIPT INFO'!$L$25=\"N/A\",\" \",'TRANSCRIPT INFO'!$L$25)&\" \"&+IF('TRANSCRIPT INFO'!$O$25=\"N/A\",\" \",'TRANSCRIPT INFO'!$O$25)","v":"   "}]
[null,{"$f":"+IF('TRANSCRIPT INFO'!$E$19=\"N\",'TRANSCRIPT INFO'!$B$19,IF('TRANSCRIPT INFO'!$F$19=\"N\",'TRANSCRIPT INFO'!$B$19,))","v":0},{"$f":"+IF('TRANSCRIPT INFO'!$E$19=\"N\",'TRANSCRIPT INFO'!$C$19,IF('TRANSCRIPT INFO'!$F$19=\"N\",'TRANSCRIPT INFO'!$C$19,))","v":0},{"$f":"+IF('TRANSCRIPT INFO'!$E$19=\"N\",'TRANSCRIPT INFO'!$D$19,IF('TRANSCRIPT INFO'!$F$19=\"N\",'TRANSCRIPT INFO'!$D$19,))","v":0},null,null,{"$f":"+IF('TRANSCRIPT INFO'!$E$26=\"N\",'TRANSCRIPT INFO'!$B$26,IF('TRANSCRIPT INFO'!$F$26=\"N\",'TRANSCRIPT INFO'!$B$26,))","v":0},{"$f":"+IF('TRANSCRIPT INFO'!$E$26=\"N\",'TRANSCRIPT INFO'!$C$26,IF('TRANSCRIPT INFO'!$F$26=\"N\",'TRANSCRIPT INFO'!$C$26,))","v":0},{"$f":"+IF('TRANSCRIPT INFO'!$E$26=\"N\",'TRANSCRIPT INFO'!$D$26,IF('TRANSCRIPT INFO'!$F$26=\"N\",'TRANSCRIPT INFO'!$D$26,))","v":0}]
[{"$f":"+IF('TRANSCRIPT INFO'!$E$19=\"N\",'TRANSCRIPT INFO'!$G$19,IF('TRANSCRIPT INFO'!$F$19=\"N\",'TRANSCRIPT INFO'!$G$19,))","v":0},{"$f":"+IF('TRANSCRIPT INFO'!$E$19=\"N\",'TRANSCRIPT INFO'!$H$19,IF('TRANSCRIPT INFO'!$F$19=\"N\",'TRANSCRIPT INFO'!$H$19,'TRANSCRIPT INFO'!$B$19))","v":0},{"$f":"+IF('TRANSCRIPT INFO'!$E$19=\"N\",'TRANSCRIPT INFO'!$I$19,IF('TRANSCRIPT INFO'!$F$19=\"N\",'TRANSCRIPT INFO'!$I$19,'TRANSCRIPT INFO'!$C$19))","v":0},{"$f":"+IF('TRANSCRIPT INFO'!$E$19=\"N\",'TRANSCRIPT INFO'!$J$19&'TRANSCRIPT INFO'!$K$19,IF('TRANSCRIPT INFO'!$F$19=\"N\",'TRANSCRIPT INFO'!$K$19&'TRANSCRIPT INFO'!$K$19,'TRANSCRIPT INFO'!$D$19))","v":0},{"$f":"IF('TRANSCRIPT INFO'!$L$19=\"N/A\",\" \",'TRANSCRIPT INFO'!$L$19)&\" \"&+IF('TRANSCRIPT INFO'!$O$19=\"N/A\",\" \",'TRANSCRIPT INFO'!$O$19)","v":"   "},{"$f":"+IF('TRANSCRIPT INFO'!$E$26=\"N\",'TRANSCRIPT INFO'!$G$26,IF('TRANSCRIPT INFO'!$F$26=\"N\",'TRANSCRIPT INFO'!$G$26,))","v":0},{"$f":"+IF('TRANSCRIPT INFO'!$E$26=\"N\",'TRANSCRIPT INFO'!$H$26,IF('TRANSCRIPT INFO'!$F$26=\"N\",'TRANSCRIPT INFO'!$H$26,'TRANSCRIPT INFO'!$B$26))","v":0},{"$f":"+IF('TRANSCRIPT INFO'!$E$26=\"N\",'TRANSCRIPT INFO'!$I$26,IF('TRANSCRIPT INFO'!$F$26=\"N\",'TRANSCRIPT INFO'!$I$26,'TRANSCRIPT INFO'!$C$26))","v":0},{"$f":"+IF('TRANSCRIPT INFO'!$E$26=\"N\",'TRANSCRIPT INFO'!$J$26&'TRANSCRIPT INFO'!$K$26,IF('TRANSCRIPT INFO'!$F$26=\"N\",'TRANSCRIPT INFO'!$K$26&'TRANSCRIPT INFO'!$K$26,'TRANSCRIPT INFO'!$D$26))","v":0},{"$f":"IF('TRANSCRIPT INFO'!$L$26=\"N/A\",\" \",'TRANSCRIPT INFO'!$L$26)&\" \"&+IF('TRANSCRIPT INFO'!$O$26=\"N/A\",\" \",'TRANSCRIPT INFO'!$O$26)","v":"   "}]
[null,{"$f":"+IF('TRANSCRIPT INFO'!$E$20=\"N\",'TRANSCRIPT INFO'!$B$20,IF('TRANSCRIPT INFO'!$F$20=\"N\",'TRANSCRIPT INFO'!$B$20,))","v":0},{"$f":"+IF('TRANSCRIPT INFO'!$E$20=\"N\",'TRANSCRIPT INFO'!$C$20,IF('TRANSCRIPT INFO'!$F$20=\"N\",'TRANSCRIPT INFO'!$C$20,))","v":0},{"$f":"+IF('TRANSCRIPT INFO'!$E$20=\"N\",'TRANSCRIPT INFO'!$D$20,IF('TRANSCRIPT INFO'!$F$20=\"N\",'TRANSCRIPT INFO'!$D$20,))","v":0},null,null,{"$f":"+IF('TRANSCRIPT INFO'!$E$27=\"N\",'TRANSCRIPT INFO'!$B$27,IF('TRANSCRIPT INFO'!$F$27=\"N\",'TRANSCRIPT INFO'!$B$27,))","v":0},{"$f":"+IF('TRANSCRIPT INFO'!$E$27=\"N\",'TRANSCRIPT INFO'!$C$27,IF('TRANSCRIPT INFO'!$F$27=\"N\",'TRANSCRIPT INFO'!$C$27,))","v":0},{"$f":"+IF('TRANSCRIPT INFO'!$E$27=\"N\",'TRANSCRIPT INFO'!$D$27,IF('TRANSCRIPT INFO'!$F$27=\"N\",'TRANSCRIPT INFO'!$D$27,))","v":0}]
[{"$f":"+IF('TRANSCRIPT INFO'!$E$20=\"N\",'TRANSCRIPT INFO'!$G$20,IF('TRANSCRIPT INFO'!$F$20=\"N\",'TRANSCRIPT INFO'!$G$20,))","v":0},{"$f":"+IF('TRANSCRIPT INFO'!$E$20=\"N\",'TRANSCRIPT INFO'!$H$20,IF('TRANSCRIPT INFO'!$F$20=\"N\",'TRANSCRIPT INFO'!$H$20,'TRANSCRIPT INFO'!$B$20))","v":"MATH 133A"},{"$f":"+IF('TRANSCRIPT INFO'!$E$20=\"N\",'TRANSCRIPT INFO'!$I$20,IF('TRANSCRIPT INFO'!$F$20=\"N\",'TRANSCRIPT INFO'!$I$20,'TRANSCRIPT INFO'!$C$20))","v":"ORDINARY DIFFERENTIAL EQUATIONS"},{"$f":"+IF('TRANSCRIPT INFO'!$E$20=\"N\",'TRANSCRIPT INFO'!$J$20&'TRANSCRIPT INFO'!$K$20,IF('TRANSCRIPT INFO'!$F$20=\"N\",'TRANSCRIPT INFO'!$K$20&'TRANSCRIPT INFO'!$K$20,'TRANSCRIPT INFO'!$D$20))","v":3},{"$f":"IF('TRANSCRIPT INFO'!$L$20=\"N/A\",\" \",'TRANSCRIPT INFO'!$L$20)&\" \"&+IF('TRANSCRIPT INFO'!$O$20=\"N/A\",\" \",'TRANSCRIPT INFO'!$O$20)","v":"   "},{"$f":"+IF('TRANSCRIPT INFO'!$E$27=\"N\",'TRANSCRIPT INFO'!$G$27,IF('TRANSCRIPT INFO'!$F$27=\"N\",'TRANSCRIPT INFO'!$G$27,))","v":0},{"$f":"+IF('TRANSCRIPT INFO'!$E$27=\"N\",'TRANSCRIPT INFO'!$H$27,IF('TRANSCRIPT INFO'!$F$27=\"N\",'TRANSCRIPT INFO'!$H$27,'TRANSCRIPT INFO'!$B$27))","v":"ENGL 1B"},{"$f":"+IF('TRANSCRIPT INFO'!$E$27=\"N\",'TRANSCRIPT INFO'!$I$27,IF('TRANSCRIPT INFO'!$F$27=\"N\",'TRANSCRIPT INFO'!$I$27,'TRANSCRIPT INFO'!$C$27))","v":"ARGUMENT & ANALYSIS"},{"$f":"+IF('TRANSCRIPT INFO'!$E$27=\"N\",'TRANSCRIPT INFO'!$J$27&'TRANSCRIPT INFO'!$K$27,IF('TRANSCRIPT INFO'!$F$27=\"N\",'TRANSCRIPT INFO'!$K$27&'TRANSCRIPT INFO'!$K$27,'TRANSCRIPT INFO'!$D$27))","v":3},{"$f":"IF('TRANSCRIPT INFO'!$L$27=\"N/A\",\" \",'TRANSCRIPT INFO'!$L$27)&\" \"&+IF('TRANSCRIPT INFO'!$O$27=\"N/A\",\" \",'TRANSCRIPT INFO'!$O$27)","v":"   "}]
[null,{"$f":"+IF('TRANSCRIPT INFO'!$E$21=\"N\",'TRANSCRIPT INFO'!$B$21,IF('TRANSCRIPT INFO'!$F$21=\"N\",'TRANSCRIPT INFO'!$B$21,))","v":0},{"$f":"+IF('TRANSCRIPT INFO'!$E$21=\"N\",'TRANSCRIPT INFO'!$C$21,IF('TRANSCRIPT INFO'!$F$21=\"N\",'TRANSCRIPT INFO'!$C$21,))","v":0},{"$f":"+IF('TRANSCRIPT INFO'!$E$21=\"N\",'TRANSCRIPT INFO'!$D$21,IF('TRANSCRIPT INFO'!$F$21=\"N\",'TRANSCRIPT INFO'!$D$21,))","v":0},null,null,{"$f":"+IF('TRANSCRIPT INFO'!$E$28=\"N\",'TRANSCRIPT INFO'!$B$28,IF('TRANSCRIPT INFO'!$F$28=\"N\",'TRANSCRIPT INFO'!$B$28,))","v":0},{"$f":"+IF('TRANSCRIPT INFO'!$E$28=\"N\",'TRANSCRIPT INFO'!$C$28,IF('TRANSCRIPT INFO'!$F$28=\"N\",'TRANSCRIPT INFO'!$C$28,))","v":0},{"$f":"+IF('TRANSCRIPT INFO'!$E$28=\"N\",'TRANSCRIPT INFO'!$D$28,IF('TRANSCRIPT INFO'!$F$28=\"N\",'TRANSCRIPT INFO'!$D$28,))","v":0}]
[{"$f":"+IF('TRANSCRIPT INFO'!$E$21=\"N\",'TRANSCRIPT INFO'!$G$21,IF('TRANSCRIPT INFO'!$F$21=\"N\",'TRANSCRIPT INFO'!$G$21,))","v":0},{"$f":"+IF('TRANSCRIPT INFO'!$E$21=\"N\",'TRANSCRIPT INFO'!$H$21,IF('TRANSCRIPT INFO'!$F$21=\"N\",'TRANSCRIPT INFO'!$H$21,'TRANSCRIPT INFO'!$B$21))","v":"CHEM 1A"},{"$f":"+IF('TRANSCRIPT INFO'!$E$21=\"N\",'TRANSCRIPT INFO'!$I$21,IF('TRANSCRIPT INFO'!$F$21=\"N\",'TRANSCRIPT INFO'!$I$21,'TRANSCRIPT INFO'!$C$21))","v":"GENERAL CHEMISTRY"},{"$f":"+IF('TRANSCRIPT INFO'!$E$21=\"N\",'TRANSCRIPT INFO'!$J$21&'TRANSCRIPT INFO'!$K$21,IF('TRANSCRIPT INFO'!$F$21=\"N\",'TRANSCRIPT INFO'!$K$21&'TRANSCRIPT INFO'!$K$21,'TRANSCRIPT INFO'!$D$21))","v":5},{"$f":"IF('TRANSCRIPT INFO'!$L$21=\"N/A\",\" \",'TRANSCRIPT INFO'!$L$21)&\" \"&+IF('TRANSCRIPT INFO'!$O$21=\"N/A\",\" \",'TRANSCRIPT INFO'!$O$21)","v":"   "},{"$f":"+IF('TRANSCRIPT INFO'!$E$28=\"N\",'TRANSCRIPT INFO'!$G$28,IF('TRANSCRIPT INFO'!$F$28=\"N\",'TRANSCRIPT INFO'!$G$28,))","v":0},{"$f":"+IF('TRANSCRIPT INFO'!$E$28=\"N\",'TRANSCRIPT INFO'!$H$28,IF('TRANSCRIPT INFO'!$F$28=\"N\",'TRANSCRIPT INFO'!$H$28,'TRANSCRIPT INFO'!$B$28))","v":0},{"$f":"+IF('TRANSCRIPT INFO'!$E$28=\"N\",'TRANSCRIPT INFO'!$I$28,IF('TRANSCRIPT INFO'!$F$28=\"N\",'TRANSCRIPT INFO'!$I$28,'TRANSCRIPT INFO'!$C$28))","v":0},{"$f":"+IF('TRANSCRIPT INFO'!$E$28=\"N\",'TRANSCRIPT INFO'!$J$28&'TRANSCRIPT INFO'!$K$28,IF('TRANSCRIPT INFO'!$F$28=\"N\",'TRANSCRIPT INFO'!$K$28&'TRANSCRIPT INFO'!$K$28,'TRANSCRIPT INFO'!$D$28))","v":0},{"$f":"IF('TRANSCRIPT INFO'!$L$28=\"N/A\",\" \",'TRANSCRIPT INFO'!$L$28)&\" \"&+IF('TRANSCRIPT INFO'!$O$28=\"N/A\",\" \",'TRANSCRIPT INFO'!$O$28)","v":"   "}]
[null,{"$f":"+IF('TRANSCRIPT INFO'!$E$22=\"N\",'TRANSCRIPT INFO'!$B$22,IF('TRANSCRIPT INFO'!$F$22=\"N\",'TRANSCRIPT INFO'!$B$22,))","v":0},{"$f":"+IF('TRANSCRIPT INFO'!$E$22=\"N\",'TRANSCRIPT INFO'!$C$22,IF('TRANSCRIPT INFO'!$F$22=\"N\",'TRANSCRIPT INFO'!$C$22,))","v":0},{"$f":"+IF('TRANSCRIPT INFO'!$E$22=\"N\",'TRANSCRIPT INFO'!$D$22,IF('TRANSCRIPT INFO'!$F$22=\"N\",'TRANSCRIPT INFO'!$D$22,))","v":0},null,null,{"$f":"+IF('TRANSCRIPT INFO'!$E$29=\"N\",'TRANSCRIPT INFO'!$B$29,IF('TRANSCRIPT INFO'!$F$29=\"N\",'TRANSCRIPT INFO'!$B$29,))","v":0},{"$f":"+IF('TRANSCRIPT INFO'!$E$29=\"N\",'TRANSCRIPT INFO'!$C$29,IF('TRANSCRIPT INFO'!$F$29=\"N\",'TRANSCRIPT INFO'!$C$29,))","v":0},{"$f":"+IF('TRANSCRIPT INFO'!$E$29=\"N\",'TRANSCRIPT INFO'!$D$29,IF('TRANSCRIPT INFO'!$F$29=\"N\",'TRANSCRIPT INFO'!$D$29,))","v":0}]
[{"$f":"+IF('TRANSCRIPT INFO'!$E$22=\"N\",'TRANSCRIPT INFO'!$G$22,IF('TRANSCRIPT INFO'!$F$22=\"N\",'TRANSCRIPT INFO'!$G$22,))","v":0},{"$f":"+IF('TRANSCRIPT INFO'!$E$22=\"N\",'TRANSCRIPT INFO'!$H$22,IF('TRANSCRIPT INFO'!$F$22=\"N\",'TRANSCRIPT INFO'!$H$22,'TRANSCRIPT INFO'!$B$22))","v":"CHEM 1B"},{"$f":"+IF('TRANSCRIPT INFO'!$E$22=\"N\",'TRANSCRIPT INFO'!$I$22,IF('TRANSCRIPT INFO'!$F$22=\"N\",'TRANSCRIPT INFO'!$I$22,'TRANSCRIPT INFO'!$C$22))","v":"GENERAL CHEMISTRY"},{"$f":"+IF('TRANSCRIPT INFO'!$E$22=\"N\",'TRANSCRIPT INFO'!$J$22&'TRANSCRIPT INFO'!$K$22,IF('TRANSCRIPT INFO'!$F$22=\"N\",'TRANSCRIPT INFO'!$K$22&'TRANSCRIPT INFO'!$K$22,'TRANSCRIPT INFO'!$D$22))","v":5},{"$f":"IF('TRANSCRIPT INFO'!$L$22=\"N/A\",\" \",'TRANSCRIPT INFO'!$L$22)&\" \"&+IF('TRANSCRIPT INFO'!$O$22=\"N/A\",\" \",'TRANSCRIPT INFO'!$O$22)","v":"   "},{"$f":"+IF('TRANSCRIPT INFO'!$E$29=\"N\",'TRANSCRIPT INFO'!$G$29,IF('TRANSCRIPT INFO'!$F$29=\"N\",'TRANSCRIPT INFO'!$G$29,))","v":0},{"$f":"+IF('TRANSCRIPT INFO'!$E$29=\"N\",'TRANSCRIPT INFO'!$H$29,IF('TRANSCRIPT INFO'!$F$29=\"N\",'TRANSCRIPT INFO'!$H$29,'TRANSCRIPT INFO'!$B$29))","v":0},{"$f":"+IF('TRANSCRIPT INFO'!$E$29=\"N\",'TRANSCRIPT INFO'!$I$29,IF('TRANSCRIPT INFO'!$F$29=\"N\",'TRANSCRIPT INFO'!$I$29,'TRANSCRIPT INFO'!$C$29))","v":0},{"$f":"+IF('TRANSCRIPT INFO'!$E$29=\"N\",'TRANSCRIPT INFO'!$J$29&'TRANSCRIPT INFO'!$K$29,IF('TRANSCRIPT INFO'!$F$29=\"N\",'TRANSCRIPT INFO'!$K$29&'TRANSCRIPT INFO'!$K$29,'TRANSCRIPT INFO'!$D$29))","v":0},{"$f":"IF('TRANSCRIPT INFO'!$L$29=\"N/A\",\" \",'TRANSCRIPT INFO'!$L$29)&\" \"&+IF('TRANSCRIPT INFO'!$O$29=\"N/A\",\" \",'TRANSCRIPT INFO'!$O$29)","v":" "}]
[]
["The student listed above will have completed all the departmental requirements for the Bachelor of Science degree after:"]
["(a) Successful completion of 120 units and the above work."]
["(b) A minimum 2.0 GPA has been acheived in all REQUIRED COURSES and TECHNICAL ELECTIVES COMBINED."]
["(c) The following courses in \"Required Courses for the Major\" must be completed with a \"C- or better\": ENGR 10, MATE 115, MATE 141, MATE 151, MATE 153, MATE 154, MATE 155."]
[]
["(d)The following courses in \"Preparation for the Major\" must be satisfied with a \"C- or Better\": MATH 30, MATH 31, PHYS 51."]
["(e) The following courses in \"Preparation for the Major\" must be satisfied with a \"C or better\" (C- not accepted): MATH 32, CHEM 1A, CHEM 1B, PHYS 50, ENGL 1B."]
[]
[]
[]
[]
["SIGNATURE OF STUDENT                                       DATE"]
[]
[]
[]
[]
["SIGNATURE OF MAJOR ADVISOR                          DATE",null,null,null,null,"SIGNATURE OF BM., CHEM. & MATLS. ENGR. DEPT CHAIR           DATE"]
[]
["Advisor Comments:"]

{"sheet":"Student Tracking Form","index":4,"n_rows":57,"n_cols":8,"rows_kept":57,"cut":false,"hidden":false,"merged":[[0,0,0,7],[10,1,10,7],[6,2,6,4],[7,2,7,4],[8,2,8,3],[9,2,9,3],[5,2,5,5],[2,3,3,5],[52,1,52,7],[1,0,1,7],[2,6,3,6],[4,3,4,6],[25,1,25,7],[31,1,31,7]]}
["BS MATERIALS ENGINEERING STUDENT TRACKING FORM"]
["COMMUNICATION INFORMATION"]
["Last Name:",null,{"$f":"+'TRANSCRIPT INFO'!C5","v":0},"DATE STARTED  CONTINUOUS ENROLLMENT IN A CSU OR CC:",null,null,{"$f":"+'TRANSCRIPT INFO'!I6","v":"00:00:00"}]
["First Name, MI.:",null,{"$f":"+'TRANSCRIPT INFO'!C6","v":0}]
["PeopleSoft Number:",null,{"$f":"+'TRANSCRIPT INFO'!C7","v":0},"PROPOSED DATA OF GRADUATION:",null,null,null,{"$f":"+'TRANSCRIPT INFO'!H8","v":"00:00:00"}]
["Mailing Street Address:",null,{"$f":"+'TRANSCRIPT INFO'!C8","v":0}]
["Mailing City State Zip",null,{"$f":"+'TRANSCRIPT INFO'!C9","v":0}]
["e-Mail:",null,{"$f":"+'TRANSCRIPT INFO'!C10","v":0}]
["Telephone (primary):",null,{"$f":"+'TRANSCRIPT INFO'!C11","v":0},null,null,"UPDATED",{"$f":"TODAY()","v":"2018-09-18"}]
["Telephone (secondary):",null,{"$f":"+'TRANSCRIPT INFO'!C12","v":0}]
[null,"PREPARATION FOR MAJOR"]
[null,"COURSE","TITLE","UNITS","SCHOOL","SEM","YEAR","GRADE"]
[null,{"$f":"+IF('TRANSCRIPT INFO'!$E$16=\"N\",'TRANSCRIPT INFO'!$H$16,IF('TRANSCRIPT INFO'!$F$16=\"N\",'TRANSCRIPT INFO'!$H$16,'TRANSCRIPT INFO'!$B$16))","v":"MATH 30"},{"$f":"+'TRANSCRIPT INFO'!C16","v":"CALCULUS I"},{"$f":"+'TRANSCRIPT INFO'!D16","v":3},{"$f":"IF('TRANSCRIPT INFO'!F16=\"Y\",\"SJSU\",IF('TRANSCRIPT INFO'!E16=\"Y\",\"SJSU\",'TRANSCRIPT INFO'!G16))","v":"SJSU"},{"$f":"IF('TRANSCRIPT INFO'!F16=\"Y\",'TRANSCRIPT INFO'!P16,'TRANSCRIPT INFO'!M16)","v":" "},{"$f":"IF('TRANSCRIPT INFO'!F16=\"Y\",'TRANSCRIPT INFO'!Q16,'TRANSCRIPT INFO'!N16)","v":0},{"$f":"IF('TRANSCRIPT INFO'!F16=\"Y\",IF('TRANSCRIPT INFO'!O16=\"N/A\",\" \",'TRANSCRIPT INFO'!O16),IF('TRANSCRIPT INFO'!L16=\"N/A\",\" \",'TRANSCRIPT INFO'!L16))","v":" "}]
[null,{"$f":"+'TRANSCRIPT INFO'!B17","v":"MATH 31"},{"$f":"+'TRANSCRIPT INFO'!C17","v":"CALCULUS II"},{"$f":"+'TRANSCRIPT INFO'!D17","v":4},{"$f":"IF('TRANSCRIPT INFO'!F17=\"Y\",\"SJSU\",IF('TRANSCRIPT INFO'!E17=\"Y\",\"SJSU\",'TRANSCRIPT INFO'!G17))","v":"SJSU"},{"$f":"IF('TRANSCRIPT INFO'!F17=\"Y\",'TRANSCRIPT INFO'!P17,'TRANSCRIPT INFO'!M17)","v":" "},{"$f":"IF('TRANSCRIPT INFO'!F17=\"Y\",'TRANSCRIPT INFO'!Q17,'TRANSCRIPT INFO'!N17)","v":0},{"$f":"IF('TRANSCRIPT INFO'!F17=\"Y\",IF('TRANSCRIPT INFO'!O17=\"N/A\",\" \",'TRANSCRIPT INFO'!O17),IF('TRANSCRIPT INFO'!L17=\"N/A\",\" \",'TRANSCRIPT INFO'!L17))","v":" "}]
[null,{"$f":"+'TRANSCRIPT INFO'!B18","v":"MATH 32"},{"$f":"+'TRANSCRIPT INFO'!C18","v":"CALCULUS III"},{"$f":"+'TRANSCRIPT INFO'!D18","v":3},{"$f":"IF('TRANSCRIPT INFO'!F18=\"Y\",\"SJSU\",IF('TRANSCRIPT INFO'!E18=\"Y\",\"SJSU\",'TRANSCRIPT INFO'!G18))","v":"SJSU"},{"$f":"IF('TRANSCRIPT INFO'!F18=\"Y\",'TRANSCRIPT INFO'!P18,'TRANSCRIPT INFO'!M18)","v":" "},{"$f":"IF('TRANSCRIPT INFO'!F18=\"Y\",'TRANSCRIPT INFO'!Q18,'TRANSCRIPT INFO'!N18)","v":0},{"$f":"IF('TRANSCRIPT INFO'!F18=\"Y\",IF('TRANSCRIPT INFO'!O18=\"N/A\",\" \",'TRANSCRIPT INFO'!O18),IF('TRANSCRIPT INFO'!L18=\"N/A\",\" \",'TRANSCRIPT INFO'!L18))","v":" "}]
[null,{"$f":"+'TRANSCRIPT INFO'!B19","v":0},{"$f":"+'TRANSCRIPT INFO'!C19","v":0},{"$f":"+'TRANSCRIPT INFO'!D19","v":0},{"$f":"IF('TRANSCRIPT INFO'!F19=\"Y\",\"SJSU\",IF('TRANSCRIPT INFO'!E19=\"Y\",\"SJSU\",'TRANSCRIPT INFO'!G19))","v":0},{"$f":"IF('TRANSCRIPT INFO'!F19=\"Y\",'TRANSCRIPT INFO'!P19,'TRANSCRIPT INFO'!M19)","v":" "},{"$f":"IF('TRANSCRIPT INFO'!F19=\"Y\",'TRANSCRIPT INFO'!Q19,'TRANSCRIPT INFO'!N19)","v":0},{"$f":"IF('TRANSCRIPT INFO'!F19=\"Y\",IF('TRANSCRIPT INFO'!O19=\"N/A\",\" \",'TRANSCRIPT INFO'!O19),IF('TRANSCRIPT INFO'!L19=\"N/A\",\" \",'TRANSCRIPT INFO'!L19))","v":" "}]
[null,{"$f":"+'TRANSCRIPT INFO'!B20","v":"MATH 133A"},{"$f":"+'TRANSCRIPT INFO'!C20","v":"ORDINARY DIFFERENTIAL EQUATIONS"},{"$f":"+'TRANSCRIPT INFO'!D20","v":3},{"$f":"IF('TRANSCRIPT INFO'!F20=\"Y\",\"SJSU\",IF('TRANSCRIPT INFO'!E20=\"Y\",\"SJSU\",'TRANSCRIPT INFO'!G20))","v":"SJSU"},{"$f":"IF('TRANSCRIPT INFO'!F20=\"Y\",'TRANSCRIPT INFO'!P20,'TRANSCRIPT INFO'!M20)","v":" "},{"$f":"IF('TRANSCRIPT INFO'!F20=\"Y\",'TRANSCRIPT INFO'!Q20,'TRANSCRIPT INFO'!N20)","v":0},{"$f":"IF('TRANSCRIPT INFO'!F20=\"Y\",IF('TRANSCRIPT INFO'!O20=\"N/A\",\" \",'TRANSCRIPT INFO'!O20),IF('TRANSCRIPT INFO'!L20=\"N/A\",\" \",'TRANSCRIPT INFO'!L20))","v":" "}]
[null,{"$f":"+'TRANSCRIPT INFO'!B21","v":"CHEM 1A"},{"$f":"+'TRANSCRIPT INFO'!C21","v":"GENERAL CHEMISTRY"},{"$f":"+'TRANSCRIPT INFO'!D21","v":5},{"$f":"IF('TRANSCRIPT INFO'!F21=\"Y\",\"SJSU\",IF('TRANSCRIPT INFO'!E21=\"Y\",\"SJSU\",'TRANSCRIPT INFO'!G21))","v":"SJSU"},{"$f":"IF('TRANSCRIPT INFO'!F21=\"Y\",'TRANSCRIPT INFO'!P21,'TRANSCRIPT INFO'!M21)","v":" "},{"$f":"IF('TRANSCRIPT INFO'!F21=\"Y\",'TRANSCRIPT INFO'!Q21,'TRANSCRIPT INFO'!N21)","v":0},{"$f":"IF('TRANSCRIPT INFO'!F21=\"Y\",IF('TRANSCRIPT INFO'!O21=\"N/A\",\" \",'TRANSCRIPT INFO'!O21),IF('TRANSCRIPT INFO'!L21=\"N/A\",\" \",'TRANSCRIPT INFO'!L21))","v":" "}]
[null,{"$f":"+'TRANSCRIPT INFO'!B22","v":"CHEM 1B"},{"$f":"+'TRANSCRIPT INFO'!C22","v":"GENERAL CHEMISTRY"},{"$f":"+'TRANSCRIPT INFO'!D22","v":5},{"$f":"IF('TRANSCRIPT INFO'!F22=\"Y\",\"SJSU\",IF('TRANSCRIPT INFO'!E22=\"Y\",\"SJSU\",'TRANSCRIPT INFO'!G22))","v":"SJSU"},{"$f":"IF('TRANSCRIPT INFO'!F22=\"Y\",'TRANSCRIPT INFO'!P22,'TRANSCRIPT INFO'!M22)","v":" "},{"$f":"IF('TRANSCRIPT INFO'!F22=\"Y\",'TRANSCRIPT INFO'!Q22,'TRANSCRIPT INFO'!N22)","v":0},{"$f":"IF('TRANSCRIPT INFO'!F22=\"Y\",IF('TRANSCRIPT INFO'!O22=\"N/A\",\" \",'TRANSCRIPT INFO'!O22),IF('TRANSCRIPT INFO'!L22=\"N/A\",\" \",'TRANSCRIPT INFO'!L22))","v":" "}]
[null,{"$f":"+'TRANSCRIPT INFO'!B23","v":0},{"$f":"+'TRANSCRIPT INFO'!C23","v":0},{"$f":"+'TRANSCRIPT INFO'!D23","v":0},{"$f":"IF('TRANSCRIPT INFO'!F23=\"Y\",\"SJSU\",IF('TRANSCRIPT INFO'!E23=\"Y\",\"SJSU\",'TRANSCRIPT INFO'!G23))","v":0},{"$f":"IF('TRANSCRIPT INFO'!F23=\"Y\",'TRANSCRIPT INFO'!P23,'TRANSCRIPT INFO'!M23)","v":" "},{"$f":"IF('TRANSCRIPT INFO'!F23=\"Y\",'TRANSCRIPT INFO'!Q23,'TRANSCRIPT INFO'!N23)","v":0},{"$f":"IF('TRANSCRIPT INFO'!F23=\"Y\",IF('TRANSCRIPT INFO'!O23=\"N/A\",\" \",'TRANSCRIPT INFO'!O23),IF('TRANSCRIPT INFO'!L23=\"N/A\",\" \",'TRANSCRIPT INFO'!L23))","v":" "}]
[null,{"$f":"+'TRANSCRIPT INFO'!B24","v":"PHYS 50"},{"$f":"+'TRANSCRIPT INFO'!C24","v":"MECHANICS"},{"$f":"+'TRANSCRIPT INFO'!D24","v":4},{"$f":"IF('TRANSCRIPT INFO'!F24=\"Y\",\"SJSU\",IF('TRANSCRIPT INFO'!E24=\"Y\",\"SJSU\",'TRANSCRIPT INFO'!G24))","v":"SJSU"},{"$f":"IF('TRANSCRIPT INFO'!F24=\"Y\",'TRANSCRIPT INFO'!P24,'TRANSCRIPT INFO'!M24)","v":" "},{"$f":"IF('TRANSCRIPT INFO'!F24=\"Y\",'TRANSCRIPT INFO'!Q24,'TRANSCRIPT INFO'!N24)","v":0},{"$f":"IF('TRANSCRIPT INFO'!F24=\"Y\",IF('TRANSCRIPT INFO'!O24=\"N/A\",\" \",'TRANSCRIPT INFO'!O24),IF('TRANSCRIPT INFO'!L24=\"N/A\",\" \",'TRANSCRIPT INFO'!L24))","v":" "}]
[null,{"$f":"+'TRANSCRIPT INFO'!B25","v":"PHYS 51"},{"$f":"+'TRANSCRIPT INFO'!C25","v":"ELECTRICITY & MAGNETISM"},{"$f":"+'TRANSCRIPT INFO'!D25","v":4},{"$f":"IF('TRANSCRIPT INFO'!F25=\"Y\",\"SJSU\",IF('TRANSCRIPT INFO'!E25=\"Y\",\"SJSU\",'TRANSCRIPT INFO'!G25))","v":"SJSU"},{"$f":"IF('TRANSCRIPT INFO'!F25=\"Y\",'TRANSCRIPT INFO'!P25,'TRANSCRIPT INFO'!M25)","v":" "},{"$f":"IF('TRANSCRIPT INFO'!F25=\"Y\",'TRANSCRIPT INFO'!Q25,'TRANSCRIPT INFO'!N25)","v":0},{"$f":"IF('TRANSCRIPT INFO'!F25=\"Y\",IF('TRANSCRIPT INFO'!O25=\"N/A\",\" \",'TRANSCRIPT INFO'!O25),IF('TRANSCRIPT INFO'!L25=\"N/A\",\" \",'TRANSCRIPT INFO'!L25))","v":" "}]
[null,{"$f":"+'TRANSCRIPT INFO'!B26","v":0},{"$f":"+'TRANSCRIPT INFO'!C26","v":0},{"$f":"+'TRANSCRIPT INFO'!D26","v":0},{"$f":"IF('TRANSCRIPT INFO'!F26=\"Y\",\"SJSU\",IF('TRANSCRIPT INFO'!E26=\"Y\",\"SJSU\",'TRANSCRIPT INFO'!G26))","v":0},{"$f":"IF('TRANSCRIPT INFO'!F26=\"Y\",'TRANSCRIPT INFO'!P26,'TRANSCRIPT INFO'!M26)","v":" "},{"$f":"IF('TRANSCRIPT INFO'!F26=\"Y\",'TRANSCRIPT INFO'!Q26,'TRANSCRIPT INFO'!N26)","v":0},{"$f":"IF('TRANSCRIPT INFO'!F26=\"Y\",IF('TRANSCRIPT INFO'!O26=\"N/A\",\" \",'TRANSCRIPT INFO'!O26),IF('TRANSCRIPT INFO'!L26=\"N/A\",\" \",'TRANSCRIPT INFO'!L26))","v":" "}]
[null,{"$f":"+'TRANSCRIPT INFO'!B27","v":"ENGL 1B"},{"$f":"+'TRANSCRIPT INFO'!C27","v":"ARGUMENT & ANALYSIS"},{"$f":"+'TRANSCRIPT INFO'!D27","v":3},{"$f":"IF('TRANSCRIPT INFO'!F27=\"Y\",\"SJSU\",IF('TRANSCRIPT INFO'!E27=\"Y\",\"SJSU\",'TRANSCRIPT INFO'!G27))","v":"SJSU"},{"$f":"IF('TRANSCRIPT INFO'!F27=\"Y\",'TRANSCRIPT INFO'!P27,'TRANSCRIPT INFO'!M27)","v":" "},{"$f":"IF('TRANSCRIPT INFO'!F27=\"Y\",'TRANSCRIPT INFO'!Q27,'TRANSCRIPT INFO'!N27)","v":0},{"$f":"IF('TRANSCRIPT INFO'!F27=\"Y\",IF('TRANSCRIPT INFO'!O27=\"N/A\",\" \",'TRANSCRIPT INFO'!O27),IF('TRANSCRIPT INFO'!L27=\"N/A\",\" \",'TRANSCRIPT INFO'!L27))","v":" "}]
[null,{"$f":"+'TRANSCRIPT INFO'!B28","v":0},{"$f":"+'TRANSCRIPT INFO'!C28","v":0},{"$f":"+'TRANSCRIPT INFO'!D28","v":0},{"$f":"IF('TRANSCRIPT INFO'!F28=\"Y\",\"SJSU\",IF('TRANSCRIPT INFO'!E28=\"Y\",\"SJSU\",'TRANSCRIPT INFO'!G28))","v":0},{"$f":"IF('TRANSCRIPT INFO'!F28=\"Y\",'TRANSCRIPT INFO'!P28,'TRANSCRIPT INFO'!M28)","v":" "},{"$f":"IF('TRANSCRIPT INFO'!F28=\"Y\",'TRANSCRIPT INFO'!Q28,'TRANSCRIPT INFO'!N28)","v":0},{"$f":"IF('TRANSCRIPT INFO'!F28=\"Y\",IF('TRANSCRIPT INFO'!O28=\"N/A\",\" \",'TRANSCRIPT INFO'!O28),IF('TRANSCRIPT INFO'!L28=\"N/A\",\" \",'TRANSCRIPT INFO'!L28))","v":" "}]
[null,"LOWER DIVISION ENGINEERING CORE"]
[null,{"$f":"+'TRANSCRIPT INFO'!B30","v":"ENGR 10"},{"$f":"+'TRANSCRIPT INFO'!C30","v":"INTRODUCTION TO ENGINEERING"},{"$f":"+'TRANSCRIPT INFO'!D30","v":3},{"$f":"IF('TRANSCRIPT INFO'!F30=\"Y\",\"SJSU\",IF('TRANSCRIPT INFO'!E30=\"Y\",\"SJSU\",'TRANSCRIPT INFO'!G30))","v":"SJSU"},{"$f":"IF('TRANSCRIPT INFO'!F30=\"Y\",'TRANSCRIPT INFO'!P30,'TRANSCRIPT INFO'!M30)","v":" "},{"$f":"IF('TRANSCRIPT INFO'!F30=\"Y\",'TRANSCRIPT INFO'!Q30,'TRANSCRIPT INFO'!N30)","v":0},{"$f":"IF('TRANSCRIPT INFO'!F30=\"Y\",IF('TRANSCRIPT INFO'!O30=\"N/A\",\" \",'TRANSCRIPT INFO'!O30),IF('TRANSCRIPT INFO'!L30=\"N/A\",\" \",'TRANSCRIPT INFO'!L30))","v":" "}]
[null,{"$f":"+'TRANSCRIPT INFO'!B31","v":"MATE 25"},{"$f":"+'TRANSCRIPT INFO'!C31","v":"INTRODUCTION TO MATERIALS"},{"$f":"+'TRANSCRIPT INFO'!D31","v":3},{"$f":"IF('TRANSCRIPT INFO'!F31=\"Y\",\"SJSU\",IF('TRANSCRIPT INFO'!E31=\"Y\",\"SJSU\",'TRANSCRIPT INFO'!G31))","v":"SJSU"},{"$f":"IF('TRANSCRIPT INFO'!F31=\"Y\",'TRANSCRIPT INFO'!P31,'TRANSCRIPT INFO'!M31)","v":" "},{"$f":"IF('TRANSCRIPT INFO'!F31=\"Y\",'TRANSCRIPT INFO'!Q31,'TRANSCRIPT INFO'!N31)","v":0},{"$f":"IF('TRANSCRIPT INFO'!F31=\"Y\",IF('TRANSCRIPT INFO'!O31=\"N/A\",\" \",'TRANSCRIPT INFO'!O31),IF('TRANSCRIPT INFO'!L31=\"N/A\",\" \",'TRANSCRIPT INFO'!L31))","v":" "}]
[null,{"$f":"+'TRANSCRIPT INFO'!B32","v":"CE 99"},{"$f":"+'TRANSCRIPT INFO'!C32","v":"STATICS"},{"$f":"+'TRANSCRIPT INFO'!D32","v":2},{"$f":"IF('TRANSCRIPT INFO'!F32=\"Y\",\"SJSU\",IF('TRANSCRIPT INFO'!E32=\"Y\",\"SJSU\",'TRANSCRIPT INFO'!G32))","v":"SJSU"},{"$f":"IF('TRANSCRIPT INFO'!F32=\"Y\",'TRANSCRIPT INFO'!P32,'TRANSCRIPT INFO'!M32)","v":" "},{"$f":"IF('TRANSCRIPT INFO'!F32=\"Y\",'TRANSCRIPT INFO'!Q32,'TRANSCRIPT INFO'!N32)","v":0},{"$f":"IF('TRANSCRIPT INFO'!F32=\"Y\",IF('TRANSCRIPT INFO'!O32=\"N/A\",\" \",'TRANSCRIPT INFO'!O32),IF('TRANSCRIPT INFO'!L32=\"N/A\",\" \",'TRANSCRIPT INFO'!L32))","v":" "}]
[null,{"$f":"+'TRANSCRIPT INFO'!B33","v":"EE 98"},{"$f":"+'TRANSCRIPT INFO'!C33","v":"INTRODUCTION TO CIRCUIT ANALYSIS"},{"$f":"+'TRANSCRIPT INFO'!D33","v":3},{"$f":"IF('TRANSCRIPT INFO'!F33=\"Y\",\"SJSU\",IF('TRANSCRIPT INFO'!E33=\"Y\",\"SJSU\",'TRANSCRIPT INFO'!G33))","v":"SJSU"},{"$f":"IF('TRANSCRIPT INFO'!F33=\"Y\",'TRANSCRIPT INFO'!P33,'TRANSCRIPT INFO'!M33)","v":" "},{"$f":"IF('TRANSCRIPT INFO'!F33=\"Y\",'TRANSCRIPT INFO'!Q33,'TRANSCRIPT INFO'!N33)","v":0},{"$f":"IF('TRANSCRIPT INFO'!F33=\"Y\",IF('TRANSCRIPT INFO'!O33=\"N/A\",\" \",'TRANSCRIPT INFO'!O33),IF('TRANSCRIPT INFO'!L33=\"N/A\",\" \",'TRANSCRIPT INFO'!L33))","v":" "}]
[null,{"$f":"+'TRANSCRIPT INFO'!B34","v":0},{"$f":"+'TRANSCRIPT INFO'!C34","v":0},{"$f":"+'TRANSCRIPT INFO'!D34","v":0},{"$f":"IF('TRANSCRIPT INFO'!F34=\"Y\",\"SJSU\",IF('TRANSCRIPT INFO'!E34=\"Y\",\"SJSU\",'TRANSCRIPT INFO'!G34))","v":0},{"$f":"IF('TRANSCRIPT INFO'!F34=\"Y\",'TRANSCRIPT INFO'!P34,'TRANSCRIPT INFO'!M34)","v":" "},{"$f":"IF('TRANSCRIPT INFO'!F34=\"Y\",'TRANSCRIPT INFO'!Q34,'TRANSCRIPT INFO'!N34)","v":0},{"$f":"IF('TRANSCRIPT INFO'!F34=\"Y\",IF('TRANSCRIPT INFO'!O34=\"N/A\",\" \",'TRANSCRIPT INFO'!O34),IF('TRANSCRIPT INFO'!L34=\"N/A\",\" \",'TRANSCRIPT INFO'!L34))","v":" "}]
[null,"UPPER DIVISION ENGINEERING CORE"]
[null,{"$f":"+'TRANSCRIPT INFO'!B36","v":"CHEM 161A"},{"$f":"+'TRANSCRIPT INFO'!C36","v":"PHYSICAL CHEMISTRY"},{"$f":"+'TRANSCRIPT INFO'!D36","v":3},{"$f":"IF('TRANSCRIPT INFO'!F36=\"Y\",\"SJSU\",IF('TRANSCRIPT INFO'!E36=\"Y\",\"SJSU\",'TRANSCRIPT INFO'!G36))","v":"SJSU"},{"$f":"IF('TRANSCRIPT INFO'!F36=\"Y\",'TRANSCRIPT INFO'!P36,'TRANSCRIPT INFO'!M36)","v":" "},{"$f":"IF('TRANSCRIPT INFO'!F36=\"Y\",'TRANSCRIPT INFO'!Q36,'TRANSCRIPT INFO'!N36)","v":0},{"$f":"IF('TRANSCRIPT INFO'!F36=\"Y\",IF('TRANSCRIPT INFO'!O36=\"N/A\",\" \",'TRANSCRIPT INFO'!O36),IF('TRANSCRIPT INFO'!L36=\"N/A\",\" \",'TRANSCRIPT INFO'!L36))","v":" "}]
[null,{"$f":"+'TRANSCRIPT INFO'!B37","v":"MATE 115"},{"$f":"+'TRANSCRIPT INFO'!C37","v":"STRUCTURE & PROPERTIES OF SOLIDS"},{"$f":"+'TRANSCRIPT INFO'!D37","v":4},{"$f":"IF('TRANSCRIPT INFO'!F37=\"Y\",\"SJSU\",IF('TRANSCRIPT INFO'!E37=\"Y\",\"SJSU\",'TRANSCRIPT INFO'!G37))","v":"SJSU"},{"$f":"IF('TRANSCRIPT INFO'!F37=\"Y\",'TRANSCRIPT INFO'!P37,'TRANSCRIPT INFO'!M37)","v":0},{"$f":"IF('TRANSCRIPT INFO'!F37=\"Y\",'TRANSCRIPT INFO'!Q37,'TRANSCRIPT INFO'!N37)","v":0},{"$f":"IF('TRANSCRIPT INFO'!F37=\"Y\",IF('TRANSCRIPT INFO'!O37=\"N/A\",\" \",'TRANSCRIPT INFO'!O37),IF('TRANSCRIPT INFO'!L37=\"N/A\",\" \",'TRANSCRIPT INFO'!L37))","v":" "}]
[null,{"$f":"+'TRANSCRIPT INFO'!B38","v":"MATE 141"},{"$f":"+'TRANSCRIPT INFO'!C38","v":"MATERIALS ANALYSIS"},{"$f":"+'TRANSCRIPT INFO'!D38","v":3},{"$f":"IF('TRANSCRIPT INFO'!F38=\"Y\",\"SJSU\",IF('TRANSCRIPT INFO'!E38=\"Y\",\"SJSU\",'TRANSCRIPT INFO'!G38))","v":"SJSU"},{"$f":"IF('TRANSCRIPT INFO'!F38=\"Y\",'TRANSCRIPT INFO'!P38,'TRANSCRIPT INFO'!M38)","v":0},{"$f":"IF('TRANSCRIPT INFO'!F38=\"Y\",'TRANSCRIPT INFO'!Q38,'TRANSCRIPT INFO'!N38)","v":0},{"$f":"IF('TRANSCRIPT INFO'!F38=\"Y\",IF('TRANSCRIPT INFO'!O38=\"N/A\",\" \",'TRANSCRIPT INFO'!O38),IF('TRANSCRIPT INFO'!L38=\"N/A\",\" \",'TRANSCRIPT INFO'!L38))","v":" "}]
[null,{"$f":"+'TRANSCRIPT INFO'!B39","v":"MATE 151"},{"$f":"+'TRANSCRIPT INFO'!C39","v":"PROC ENGR THERMODYNAMICS"},{"$f":"+'TRANSCRIPT INFO'!D39","v":3},{"$f":"IF('TRANSCRIPT INFO'!F39=\"Y\",\"SJSU\",IF('TRANSCRIPT INFO'!E39=\"Y\",\"SJSU\",'TRANSCRIPT INFO'!G39))","v":"SJSU"},{"$f":"IF('TRANSCRIPT INFO'!F39=\"Y\",'TRANSCRIPT INFO'!P39,'TRANSCRIPT INFO'!M39)","v":0},{"$f":"IF('TRANSCRIPT INFO'!F39=\"Y\",'TRANSCRIPT INFO'!Q39,'TRANSCRIPT INFO'!N39)","v":0},{"$f":"IF('TRANSCRIPT INFO'!F39=\"Y\",IF('TRANSCRIPT INFO'!O39=\"N/A\",\" \",'TRANSCRIPT INFO'!O39),IF('TRANSCRIPT INFO'!L39=\"N/A\",\" \",'TRANSCRIPT INFO'!L39))","v":" "}]
[null,{"$f":"+'TRANSCRIPT INFO'!B40","v":"MATE 152"},{"$f":"+'TRANSCRIPT INFO'!C40","v":"SOLID STATE KINETICS"},{"$f":"+'TRANSCRIPT INFO'!D40","v":3},{"$f":"IF('TRANSCRIPT INFO'!F40=\"Y\",\"SJSU\",IF('TRANSCRIPT INFO'!E40=\"Y\",\"SJSU\",'TRANSCRIPT INFO'!G40))","v":"SJSU"},{"$f":"IF('TRANSCRIPT INFO'!F40=\"Y\",'TRANSCRIPT INFO'!P40,'TRANSCRIPT INFO'!M40)","v":0},{"$f":"IF('TRANSCRIPT INFO'!F40=\"Y\",'TRANSCRIPT INFO'!Q40,'TRANSCRIPT INFO'!N40)","v":0},{"$f":"IF('TRANSCRIPT INFO'!F40=\"Y\",IF('TRANSCRIPT INFO'!O40=\"N/A\",\" \",'TRANSCRIPT INFO'!O40),IF('TRANSCRIPT INFO'!L40=\"N/A\",\" \",'TRANSCRIPT INFO'!L40))","v":" "}]
[null,{"$f":"+'TRANSCRIPT INFO'!B41","v":"MATE 153"},{"$f":"+'TRANSCRIPT INFO'!C41","v":"ELECTRONIC PROPERTIES OF MATERIALS"},{"$f":"+'TRANSCRIPT INFO'!D41","v":3},{"$f":"IF('TRANSCRIPT INFO'!F41=\"Y\",\"SJSU\",IF('TRANSCRIPT INFO'!E41=\"Y\",\"SJSU\",'TRANSCRIPT INFO'!G41))","v":"SJSU"},{"$f":"IF('TRANSCRIPT INFO'!F41=\"Y\",'TRANSCRIPT INFO'!P41,'TRANSCRIPT INFO'!M41)","v":0},{"$f":"IF('TRANSCRIPT INFO'!F41=\"Y\",'TRANSCRIPT INFO'!Q41,'TRANSCRIPT INFO'!N41)","v":0},{"$f":"IF('TRANSCRIPT INFO'!F41=\"Y\",IF('TRANSCRIPT INFO'!O41=\"N/A\",\" \",'TRANSCRIPT INFO'!O41),IF('TRANSCRIPT INFO'!L41=\"N/A\",\" \",'TRANSCRIPT INFO'!L41))","v":" "}]
[null,{"$f":"+'TRANSCRIPT INFO'!B42","v":"MATE 154"},{"$f":"+'TRANSCRIPT INFO'!C42","v":"METALS AND ALLOYS"},{"$f":"+'TRANSCRIPT INFO'!D42","v":3},{"$f":"IF('TRANSCRIPT INFO'!F42=\"Y\",\"SJSU\",IF('TRANSCRIPT INFO'!E42=\"Y\",\"SJSU\",'TRANSCRIPT INFO'!G42))","v":"SJSU"},{"$f":"IF('TRANSCRIPT INFO'!F42=\"Y\",'TRANSCRIPT INFO'!P42,'TRANSCRIPT INFO'!M42)","v":0},{"$f":"IF('TRANSCRIPT INFO'!F42=\"Y\",'TRANSCRIPT INFO'!Q42,'TRANSCRIPT INFO'!N42)","v":0},{"$f":"IF('TRANSCRIPT INFO'!F42=\"Y\",IF('TRANSCRIPT INFO'!O42=\"N/A\",\" \",'TRANSCRIPT INFO'!O42),IF('TRANSCRIPT INFO'!L42=\"N/A\",\" \",'TRANSCRIPT INFO'!L42))","v":" "}]
[null,{"$f":"+'TRANSCRIPT INFO'!B43","v":"MATE 155"},{"$f":"+'TRANSCRIPT INFO'!C43","v":"MATERIALS SELECTION & PRO. DES."},{"$f":"+'TRANSCRIPT INFO'!D43","v":3},{"$f":"IF('TRANSCRIPT INFO'!F43=\"Y\",\"SJSU\",IF('TRANSCRIPT INFO'!E43=\"Y\",\"SJSU\",'TRANSCRIPT INFO'!G43))","v":"SJSU"},{"$f":"IF('TRANSCRIPT INFO'!F43=\"Y\",'TRANSCRIPT INFO'!P43,'TRANSCRIPT INFO'!M43)","v":0},{"$f":"IF('TRANSCRIPT INFO'!F43=\"Y\",'TRANSCRIPT INFO'!Q43,'TRANSCRIPT INFO'!N43)","v":0},{"$f":"IF('TRANSCRIPT INFO'!F43=\"Y\",IF('TRANSCRIPT INFO'!O43=\"N/A\",\" \",'TRANSCRIPT INFO'!O43),IF('TRANSCRIPT INFO'!L43=\"N/A\",\" \",'TRANSCRIPT INFO'!L43))","v":" "}]
[null,{"$f":"+'TRANSCRIPT INFO'!B44","v":"MATE 185"},{"$f":"+'TRANSCRIPT INFO'!C44","v":"CERAMICS"},{"$f":"+'TRANSCRIPT INFO'!D44","v":3},{"$f":"IF('TRANSCRIPT INFO'!F44=\"Y\",\"SJSU\",IF('TRANSCRIPT INFO'!E44=\"Y\",\"SJSU\",'TRANSCRIPT INFO'!G44))","v":"SJSU"},{"$f":"IF('TRANSCRIPT INFO'!F44=\"Y\",'TRANSCRIPT INFO'!P44,'TRANSCRIPT INFO'!M44)","v":0},{"$f":"IF('TRANSCRIPT INFO'!F44=\"Y\",'TRANSCRIPT INFO'!Q44,'TRANSCRIPT INFO'!N44)","v":0},{"$f":"IF('TRANSCRIPT INFO'!F44=\"Y\",IF('TRANSCRIPT INFO'!O44=\"N/A\",\" \",'TRANSCRIPT INFO'!O44),IF('TRANSCRIPT INFO'!L44=\"N/A\",\" \",'TRANSCRIPT INFO'!L44))","v":" "}]
[null,{"$f":"+'TRANSCRIPT INFO'!B45","v":"MATE 186"},{"$f":"+'TRANSCRIPT INFO'!C45","v":"POLYMERS"},{"$f":"+'TRANSCRIPT INFO'!D45","v":3},{"$f":"IF('TRANSCRIPT INFO'!F45=\"Y\",\"SJSU\",IF('TRANSCRIPT INFO'!E45=\"Y\",\"SJSU\",'TRANSCRIPT INFO'!G45))","v":"SJSU"},{"$f":"IF('TRANSCRIPT INFO'!F45=\"Y\",'TRANSCRIPT INFO'!P45,'TRANSCRIPT INFO'!M45)","v":0},{"$f":"IF('TRANSCRIPT INFO'!F45=\"Y\",'TRANSCRIPT INFO'!Q45,'TRANSCRIPT INFO'!N45)","v":0},{"$f":"IF('TRANSCRIPT INFO'!F45=\"Y\",IF('TRANSCRIPT INFO'!O45=\"N/A\",\" \",'TRANSCRIPT INFO'!O45),IF('TRANSCRIPT INFO'!L45=\"N/A\",\" \",'TRANSCRIPT INFO'!L45))","v":" "}]
[null,{"$f":"+'TRANSCRIPT INFO'!B46","v":"MATE 195"},{"$f":"+'TRANSCRIPT INFO'!C46","v":"MECHANICAL BEHAVIOR OF MATERIALS"},{"$f":"+'TRANSCRIPT INFO'!D46","v":3},{"$f":"IF('TRANSCRIPT INFO'!F46=\"Y\",\"SJSU\",IF('TRANSCRIPT INFO'!E46=\"Y\",\"SJSU\",'TRANSCRIPT INFO'!G46))","v":"SJSU"},{"$f":"IF('TRANSCRIPT INFO'!F46=\"Y\",'TRANSCRIPT INFO'!P46,'TRANSCRIPT INFO'!M46)","v":0},{"$f":"IF('TRANSCRIPT INFO'!F46=\"Y\",'TRANSCRIPT INFO'!Q46,'TRANSCRIPT INFO'!N46)","v":0},{"$f":"IF('TRANSCRIPT INFO'!F46=\"Y\",IF('TRANSCRIPT INFO'!O46=\"N/A\",\" \",'TRANSCRIPT INFO'!O46),IF('TRANSCRIPT INFO'!L46=\"N/A\",\" \",'TRANSCRIPT INFO'!L46))","v":" "}]
[null,{"$f":"+'TRANSCRIPT INFO'!B47","v":"MATE 198A"},{"$f":"+'TRANSCRIPT INFO'!C47","v":"SENIOR DESIGN"},{"$f":"+'TRANSCRIPT INFO'!D47","v":2},{"$f":"IF('TRANSCRIPT INFO'!F47=\"Y\",\"SJSU\",IF('TRANSCRIPT INFO'!E47=\"Y\",\"SJSU\",'TRANSCRIPT INFO'!G47))","v":"SJSU"},{"$f":"IF('TRANSCRIPT INFO'!F47=\"Y\",'TRANSCRIPT INFO'!P47,'TRANSCRIPT INFO'!M47)","v":0},{"$f":"IF('TRANSCRIPT INFO'!F47=\"Y\",'TRANSCRIPT INFO'!Q47,'TRANSCRIPT INFO'!N47)","v":0},{"$f":"IF('TRANSCRIPT INFO'!F47=\"Y\",IF('TRANSCRIPT INFO'!O47=\"N/A\",\" \",'TRANSCRIPT INFO'!O47),IF('TRANSCRIPT INFO'!L47=\"N/A\",\" \",'TRANSCRIPT INFO'!L47))","v":" "}]
[null,{"$f":"+'TRANSCRIPT INFO'!B48","v":"MATE 198B"},{"$f":"+'TRANSCRIPT INFO'!C48","v":"SENIOR DESIGN"},{"$f":"+'TRANSCRIPT INFO'!D48","v":2},{"$f":"IF('TRANSCRIPT INFO'!F48=\"Y\",\"SJSU\",IF('TRANSCRIPT INFO'!E48=\"Y\",\"SJSU\",'TRANSCRIPT INFO'!G48))","v":"SJSU"},{"$f":"IF('TRANSCRIPT INFO'!F48=\"Y\",'TRANSCRIPT INFO'!P48,'TRANSCRIPT INFO'!M48)","v":0},{"$f":"IF('TRANSCRIPT INFO'!F48=\"Y\",'TRANSCRIPT INFO'!Q48,'TRANSCRIPT INFO'!N48)","v":0},{"$f":"IF('TRANSCRIPT INFO'!F48=\"Y\",IF('TRANSCRIPT INFO'!O48=\"N/A\",\" \",'TRANSCRIPT INFO'!O48),IF('TRANSCRIPT INFO'!L48=\"N/A\",\" \",'TRANSCRIPT INFO'!L48))","v":" "}]
[null,{"$f":"+'TRANSCRIPT INFO'!B49","v":"CHE 161"},{"$f":"+'TRANSCRIPT INFO'!C49","v":"PROCESS SAFETY & ENGR. ETHICS"},{"$f":"+'TRANSCRIPT INFO'!D49","v":1},{"$f":"IF('TRANSCRIPT INFO'!F49=\"Y\",\"SJSU\",IF('TRANSCRIPT INFO'!E49=\"Y\",\"SJSU\",'TRANSCRIPT INFO'!G49))","v":"SJSU"},{"$f":"IF('TRANSCRIPT INFO'!F49=\"Y\",'TRANSCRIPT INFO'!P49,'TRANSCRIPT INFO'!M49)","v":0},{"$f":"IF('TRANSCRIPT INFO'!F49=\"Y\",'TRANSCRIPT INFO'!Q49,'TRANSCRIPT INFO'!N49)","v":0},{"$f":"IF('TRANSCRIPT INFO'!F49=\"Y\",IF('TRANSCRIPT INFO'!O49=\"N/A\",\" \",'TRANSCRIPT INFO'!O49),IF('TRANSCRIPT INFO'!L49=\"N/A\",\" \",'TRANSCRIPT INFO'!L49))","v":" "}]
[null,{"$f":"+'TRANSCRIPT INFO'!B50","v":"CHE 162"},{"$f":"+'TRANSCRIPT INFO'!C50","v":"ENGINEERING STATISTICS & ANALYSIS"},{"$f":"+'TRANSCRIPT INFO'!D50","v":3},{"$f":"IF('TRANSCRIPT INFO'!F50=\"Y\",\"SJSU\",IF('TRANSCRIPT INFO'!E50=\"Y\",\"SJSU\",'TRANSCRIPT INFO'!G50))","v":"SJSU"},{"$f":"IF('TRANSCRIPT INFO'!F50=\"Y\",'TRANSCRIPT INFO'!P50,'TRANSCRIPT INFO'!M50)","v":0},{"$f":"IF('TRANSCRIPT INFO'!F50=\"Y\",'TRANSCRIPT INFO'!Q50,'TRANSCRIPT INFO'!N50)","v":0},{"$f":"IF('TRANSCRIPT INFO'!F50=\"Y\",IF('TRANSCRIPT INFO'!O50=\"N/A\",\" \",'TRANSCRIPT INFO'!O50),IF('TRANSCRIPT INFO'!L50=\"N/A\",\" \",'TRANSCRIPT INFO'!L50))","v":" "}]
[null,{"$f":"+'TRANSCRIPT INFO'!B51","v":"MATE 145"},{"$f":"+'TRANSCRIPT INFO'!C51","v":"PRINCIPLES OF SCANNING PROBE MICOROSCOPY"},{"$f":"+'TRANSCRIPT INFO'!D51","v":1},{"$f":"IF('TRANSCRIPT INFO'!F51=\"Y\",\"SJSU\",IF('TRANSCRIPT INFO'!E51=\"Y\",\"SJSU\",'TRANSCRIPT INFO'!G51))","v":"SJSU"},{"$f":"IF('TRANSCRIPT INFO'!F51=\"Y\",'TRANSCRIPT INFO'!P51,'TRANSCRIPT INFO'!M51)","v":0},{"$f":"IF('TRANSCRIPT INFO'!F51=\"Y\",'TRANSCRIPT INFO'!Q51,'TRANSCRIPT INFO'!N51)","v":0},{"$f":"IF('TRANSCRIPT INFO'!F51=\"Y\",IF('TRANSCRIPT INFO'!O51=\"N/A\",\" \",'TRANSCRIPT INFO'!O51),IF('TRANSCRIPT INFO'!L51=\"N/A\",\" \",'TRANSCRIPT INFO'!L51))","v":" "}]
[null,{"$f":"+'TRANSCRIPT INFO'!B52","v":"ENGR 100W"},{"$f":"+'TRANSCRIPT INFO'!C52","v":"ENGINEERING REPORTS"},{"$f":"+'TRANSCRIPT INFO'!D52","v":3},{"$f":"IF('TRANSCRIPT INFO'!F52=\"Y\",\"SJSU\",IF('TRANSCRIPT INFO'!E52=\"Y\",\"SJSU\",'TRANSCRIPT INFO'!G52))","v":"SJSU"},{"$f":"IF('TRANSCRIPT INFO'!F52=\"Y\",'TRANSCRIPT INFO'!P52,'TRANSCRIPT INFO'!M52)","v":0},{"$f":"IF('TRANSCRIPT INFO'!F52=\"Y\",'TRANSCRIPT INFO'!Q52,'TRANSCRIPT INFO'!N52)","v":0},{"$f":"IF('TRANSCRIPT INFO'!F52=\"Y\",IF('TRANSCRIPT INFO'!O52=\"N/A\",\" \",'TRANSCRIPT INFO'!O52),IF('TRANSCRIPT INFO'!L52=\"N/A\",\" \",'TRANSCRIPT INFO'!L52))","v":" "}]
[null,{"$f":"+'TRANSCRIPT INFO'!B53","v":"MATE 143"},{"$f":"+'TRANSCRIPT INFO'!C53","v":"SEM LABORATORY"},{"$f":"+'TRANSCRIPT INFO'!D53","v":1},{"$f":"IF('TRANSCRIPT INFO'!F53=\"Y\",\"SJSU\",IF('TRANSCRIPT INFO'!E53=\"Y\",\"SJSU\",'TRANSCRIPT INFO'!G53))","v":"SJSU"},{"$f":"IF('TRANSCRIPT INFO'!F53=\"Y\",'TRANSCRIPT INFO'!P53,'TRANSCRIPT INFO'!M53)","v":" "},{"$f":"IF('TRANSCRIPT INFO'!F53=\"Y\",'TRANSCRIPT INFO'!Q53,'TRANSCRIPT INFO'!N53)","v":0},{"$f":"IF('TRANSCRIPT INFO'!F53=\"Y\",IF('TRANSCRIPT INFO'!O53=\"N/A\",\" \",'TRANSCRIPT INFO'!O53),IF('TRANSCRIPT INFO'!L53=\"N/A\",\" \",'TRANSCRIPT INFO'!L53))","v":" "}]
[null,{"$f":"+'TRANSCRIPT INFO'!B54","v":"MATE 144"},{"$f":"+'TRANSCRIPT INFO'!C54","v":"XRD LABORATORY"},{"$f":"+'TRANSCRIPT INFO'!D54","v":1},{"$f":"IF('TRANSCRIPT INFO'!F54=\"Y\",\"SJSU\",IF('TRANSCRIPT INFO'!E54=\"Y\",\"SJSU\",'TRANSCRIPT INFO'!G54))","v":"SJSU"},{"$f":"IF('TRANSCRIPT INFO'!F54=\"Y\",'TRANSCRIPT INFO'!P54,'TRANSCRIPT INFO'!M54)","v":" "},{"$f":"IF('TRANSCRIPT INFO'!F54=\"Y\",'TRANSCRIPT INFO'!Q54,'TRANSCRIPT INFO'!N54)","v":0},{"$f":"IF('TRANSCRIPT INFO'!F54=\"Y\",IF('TRANSCRIPT INFO'!O54=\"N/A\",\" \",'TRANSCRIPT INFO'!O54),IF('TRANSCRIPT INFO'!L54=\"N/A\",\" \",'TRANSCRIPT INFO'!L54))","v":" "}]
[null,{"$f":"+'TRANSCRIPT INFO'!B55","v":0},{"$f":"+'TRANSCRIPT INFO'!C55","v":0},{"$f":"+'TRANSCRIPT INFO'!D55","v":0},{"$f":"IF('TRANSCRIPT INFO'!F55=\"Y\",\"SJSU\",IF('TRANSCRIPT INFO'!E55=\"Y\",\"SJSU\",'TRANSCRIPT INFO'!G55))","v":0},{"$f":"IF('TRANSCRIPT INFO'!F55=\"Y\",'TRANSCRIPT INFO'!P55,'TRANSCRIPT INFO'!M55)","v":" "},{"$f":"IF('TRANSCRIPT INFO'!F55=\"Y\",'TRANSCRIPT INFO'!Q55,'TRANSCRIPT INFO'!N55)","v":0},{"$f":"IF('TRANSCRIPT INFO'!F55=\"Y\",IF('TRANSCRIPT INFO'!O55=\"N/A\",\" \",'TRANSCRIPT INFO'!O55),IF('TRANSCRIPT INFO'!L55=\"N/A\",\" \",'TRANSCRIPT INFO'!L55))","v":" "}]
[null,"UPPER DIVISION ELECTIVE COURSES FOR THE MAJOR"]
[null,{"$f":"+'TRANSCRIPT INFO'!B57","v":0},{"$f":"+'TRANSCRIPT INFO'!C57","v":0},{"$f":"+'TRANSCRIPT INFO'!D57","v":3},{"$f":"IF('TRANSCRIPT INFO'!F57=\"Y\",\"SJSU\",IF('TRANSCRIPT INFO'!E57=\"Y\",\"SJSU\",'TRANSCRIPT INFO'!G57))","v":"SJSU"},{"$f":"IF('TRANSCRIPT INFO'!F57=\"Y\",'TRANSCRIPT INFO'!P57,'TRANSCRIPT INFO'!M57)","v":" "},{"$f":"IF('TRANSCRIPT INFO'!F57=\"Y\",'TRANSCRIPT INFO'!Q57,'TRANSCRIPT INFO'!N57)","v":" "},{"$f":"IF('TRANSCRIPT INFO'!F57=\"Y\",IF('TRANSCRIPT INFO'!O57=\"N/A\",\" \",'TRANSCRIPT INFO'!O57),IF('TRANSCRIPT INFO'!L57=\"N/A\",\" \",'TRANSCRIPT INFO'!L57))","v":" "}]
[null,{"$f":"+'TRANSCRIPT INFO'!B58","v":0},{"$f":"+'TRANSCRIPT INFO'!C58","v":0},{"$f":"+'TRANSCRIPT INFO'!D58","v":3},{"$f":"IF('TRANSCRIPT INFO'!F58=\"Y\",\"SJSU\",IF('TRANSCRIPT INFO'!E58=\"Y\",\"SJSU\",'TRANSCRIPT INFO'!G58))","v":"SJSU"},{"$f":"IF('TRANSCRIPT INFO'!F58=\"Y\",'TRANSCRIPT INFO'!P58,'TRANSCRIPT INFO'!M58)","v":" "},{"$f":"IF('TRANSCRIPT INFO'!F58=\"Y\",'TRANSCRIPT INFO'!Q58,'TRANSCRIPT INFO'!N58)","v":" "},{"$f":"IF('TRANSCRIPT INFO'!F58=\"Y\",IF('TRANSCRIPT INFO'!O58=\"N/A\",\" \",'TRANSCRIPT INFO'!O58),IF('TRANSCRIPT INFO'!L58=\"N/A\",\" \",'TRANSCRIPT INFO'!L58))","v":" "}]
[null,{"$f":"+'TRANSCRIPT INFO'!B59","v":0},{"$f":"+'TRANSCRIPT INFO'!C59","v":0},{"$f":"+'TRANSCRIPT INFO'!D59","v":3},{"$f":"IF('TRANSCRIPT INFO'!F59=\"Y\",\"SJSU\",IF('TRANSCRIPT INFO'!E59=\"Y\",\"SJSU\",'TRANSCRIPT INFO'!G59))","v":"SJSU"},{"$f":"IF('TRANSCRIPT INFO'!F59=\"Y\",'TRANSCRIPT INFO'!P59,'TRANSCRIPT INFO'!M59)","v":" "},{"$f":"IF('TRANSCRIPT INFO'!F59=\"Y\",'TRANSCRIPT INFO'!Q59,'TRANSCRIPT INFO'!N59)","v":" "},{"$f":"IF('TRANSCRIPT INFO'!F59=\"Y\",IF('TRANSCRIPT INFO'!O59=\"N/A\",\" \",'TRANSCRIPT INFO'!O59),IF('TRANSCRIPT INFO'!L59=\"N/A\",\" \",'TRANSCRIPT INFO'!L59))","v":" "}]
[null,{"$f":"+'TRANSCRIPT INFO'!B62","v":0},{"$f":"+'TRANSCRIPT INFO'!C62","v":0},{"$f":"+'TRANSCRIPT INFO'!D62","v":0},{"$f":"IF('TRANSCRIPT INFO'!F62=\"Y\",\"SJSU\",IF('TRANSCRIPT INFO'!E62=\"Y\",\"SJSU\",'TRANSCRIPT INFO'!G62))","v":0},{"$f":"IF('TRANSCRIPT INFO'!F62=\"Y\",'TRANSCRIPT INFO'!P62,'TRANSCRIPT INFO'!M62)","v":0},{"$f":"IF('TRANSCRIPT INFO'!F62=\"Y\",'TRANSCRIPT INFO'!Q62,'TRANSCRIPT INFO'!N62)","v":0},{"$f":"IF('TRANSCRIPT INFO'!F62=\"Y\",IF('TRANSCRIPT INFO'!O62=\"N/A\",\" \",'TRANSCRIPT INFO'!O62),IF('TRANSCRIPT INFO'!L62=\"N/A\",\" \",'TRANSCRIPT INFO'!L62))","v":0}]

{"sheet":"UNOFFICIAL GPA","index":5,"n_rows":63,"n_cols":15,"rows_kept":63,"cut":false,"hidden":false,"merged":[[6,2,6,4],[7,2,7,4],[8,2,8,4],[9,2,9,4]]}
[null,null,"UNOFFICIAL MAJOR GRADE POINT EVALUATION",null,null,null,null,null,null,null,null,null,null,"A+",4]
[null,null,"STUDENT NAME :",{"$f":"+'TRANSCRIPT INFO'!C5&\" \"&'TRANSCRIPT INFO'!C6","v":" "},null,null,null,null,null,null,null,null,null,"A",4]
[null,null,"People Soft Number :",{"$f":"+'TRANSCRIPT INFO'!C7","v":0},null,null,null,null,null,null,null,null,null,"A-",3.7]
[null,null,"DATE:",{"$f":"+'TRANSCRIPT INFO'!G4","v":"2018-09-18"},null,null,null,null,null,null,null,null,null,"B+",3.3]
[null,null,null,null,null,null,null,null,null,null,null,null,null,"B",3]
[null,null,null,null,null,"GPA","ABOVE 2.0",null,null,null,null,null,null,"B-",2.7]
[null,null,"ALL REQUIRED COURSES",null,null,{"$f":"+(J37+J58)/(K37+K58)","v":{"$error":"#DIV/0!"}},{"$f":"+(J37+J58)-2*(K37+K58)","v":0},null,null,null,null,null,null,"C+",2.2999999999999998]
[null,null,"ALL REQUIRED COURSES & TECHNICAL ELECTIVES",null,null,{"$f":"+(J37+J58+J63)/(K37+K58+K63)","v":{"$error":"#DIV/0!"}},{"$f":"+(J37+J58+J63)-2*(K37+K58+K63)","v":0},null,null,null,null,null,null,"C",2]
[null,null,"ALL REQUIRED COURSES & TECHNICAL ELECTIVES @ SJSU",null,null,{"$f":"+(N37+N58+N63)/(O37+O58+O63)","v":{"$error":"#DIV/0!"}},{"$f":"+(N37+N58+N63)-2*(O37+O58+O63)","v":0},null,null,null,null,null,null,"C-",1.7]
[null,null,"PREPARATORY COURSES",null,null,{"$f":"+J31/K31","v":{"$error":"#DIV/0!"}},{"$f":"+J31-2*K31","v":0},null,null,null,null,null,null,"D+",1.3]
[null,null,null,null,null,null,null,null,null,null,null,null,null,"D",1]
[null,null,null,null,null,null,null,null,null,null,null,null,null,"D-",0.7]
[null,null,null,null,null,null,null,null,null,null,null,null,null,"F",0]
[null,null,null,null,null,null,null,null,null,null,null,null,null,"N/A",0]
["REQUIRED COURSES AND TECHNICAL ELECTIVES",null,null,null,null,null,null,null,null,null,null,null,null,{"$f":"+IF('TRANSCRIPT INFO'!V13=\"N/A\",\" \",'TRANSCRIPT INFO'!V13)","v":0},{"$f":"+IF('TRANSCRIPT INFO'!W13=\"N/A\",\" \",'TRANSCRIPT INFO'!W13)","v":0}]
["Index","COURSE NUMBER.","COURSE TITLE","GRADE 1","GRADE 1 UNITS","GRADE 2","GRADE 2 UNITS","ALL GRADE 1 VALUE","ALL GRADE 2 VALUE","ALL QUALITY POINTS","ALL QUALITY UNITS","SJSE GRADE 1 VALUE","SJSU GRADE 2 VALUE","SJSU QUALITY POINTS","SJSU QUALITY UNITS"]
[]
[{"$f":"+'TRANSCRIPT INFO'!A16","v":1},{"$f":"IF('TRANSCRIPT INFO'!E16=\"Y\",+'TRANSCRIPT INFO'!B16,'TRANSCRIPT INFO'!H16)","v":"MATH 30"},{"$f":"IF('TRANSCRIPT INFO'!E16=\"Y\",+'TRANSCRIPT INFO'!C16,'TRANSCRIPT INFO'!I16)","v":"CALCULUS I"},{"$f":"+IF('TRANSCRIPT INFO'!L16=\"N/A\",\"N/A\",'TRANSCRIPT INFO'!L16)","v":"N/A"},{"$f":"IF('TRANSCRIPT INFO'!L16=\"N/A\",0,IF('TRANSCRIPT INFO'!E16=\"Y\",'TRANSCRIPT INFO'!D16,IF('TRANSCRIPT INFO'!K16=\"S\",'TRANSCRIPT INFO'!J16,'TRANSCRIPT INFO'!J16*2/3)))","v":0},{"$f":"+IF('TRANSCRIPT INFO'!O16=\"N/A\",\"N/A \",'TRANSCRIPT INFO'!O16)","v":"N/A "},{"$f":"IF('TRANSCRIPT INFO'!F16=\"Y\",'TRANSCRIPT INFO'!D16,0)","v":0},{"$f":"VLOOKUP(D18,$N$1:$O$15,2)","v":0},{"$f":"VLOOKUP(F18,$N$1:$O$15,2)","v":0},{"$f":"+E18*H18+G18*I18","v":0},{"$f":"IF(D18=0,0,E18)+IF(F18=0,0,G18)","v":0},{"$f":"IF('TRANSCRIPT INFO'!E16=\"Y\",VLOOKUP(D18,$N$1:$O$15,2,FALSE),0)","v":0},{"$f":"IF('TRANSCRIPT INFO'!F16=\"Y\",VLOOKUP(F18,$N$1:$O$15,2,FALSE),0)","v":0},{"$f":"+E18*L18+G18*M18","v":0},{"$f":"IF('TRANSCRIPT INFO'!E16=\"Y\",IF('UNOFFICIAL GPA'!D18=\"N/A\",0,'UNOFFICIAL GPA'!E18),0)","v":0}]
[{"$f":"1+A18","v":2},{"$f":"IF('TRANSCRIPT INFO'!E17=\"Y\",+'TRANSCRIPT INFO'!B17,'TRANSCRIPT INFO'!H17)","v":"MATH 31"},{"$f":"IF('TRANSCRIPT INFO'!E17=\"Y\",+'TRANSCRIPT INFO'!C17,'TRANSCRIPT INFO'!I17)","v":"CALCULUS II"},{"$f":"+IF('TRANSCRIPT INFO'!L17=\"N/A\",\"N/A\",'TRANSCRIPT INFO'!L17)","v":"N/A"},{"$f":"IF('TRANSCRIPT INFO'!L17=\"N/A\",0,IF('TRANSCRIPT INFO'!E17=\"Y\",'TRANSCRIPT INFO'!D17,IF('TRANSCRIPT INFO'!K17=\"S\",'TRANSCRIPT INFO'!J17,'TRANSCRIPT INFO'!J17*2/3)))","v":0},{"$f":"+IF('TRANSCRIPT INFO'!O17=\"N/A\",\"N/A \",'TRANSCRIPT INFO'!O17)","v":"N/A "},{"$f":"IF('TRANSCRIPT INFO'!F17=\"Y\",'TRANSCRIPT INFO'!D17,0)","v":0},{"$f":"VLOOKUP(D19,$N$1:$O$15,2)","v":0},{"$f":"VLOOKUP(F19,$N$1:$O$15,2)","v":0},{"$f":"+E19*H19+G19*I19","v":0},{"$f":"IF(D19=0,0,E19)+IF(F19=0,0,G19)","v":0},{"$f":"IF('TRANSCRIPT INFO'!E17=\"Y\",VLOOKUP(D19,$N$1:$O$15,2,FALSE),0)","v":0},{"$f":"IF('TRANSCRIPT INFO'!F17=\"Y\",VLOOKUP(F19,$N$1:$O$15,2,FALSE),0)","v":0},{"$f":"+E19*L19+G19*M19","v":0},{"$f":"IF('TRANSCRIPT INFO'!E17=\"Y\",IF('UNOFFICIAL GPA'!D19=\"N/A\",0,'UNOFFICIAL GPA'!E19),0)","v":0}]
[{"$f":"+'TRANSCRIPT INFO'!A18","v":3},{"$f":"IF('TRANSCRIPT INFO'!E18=\"Y\",+'TRANSCRIPT INFO'!B18,'TRANSCRIPT INFO'!H18)","v":"MATH 32"},{"$f":"IF('TRANSCRIPT INFO'!E18=\"Y\",+'TRANSCRIPT INFO'!C18,'TRANSCRIPT INFO'!I18)","v":"CALCULUS III"},{"$f":"+IF('TRANSCRIPT INFO'!L18=\"N/A\",\"N/A\",'TRANSCRIPT INFO'!L18)","v":"N/A"},{"$f":"IF('TRANSCRIPT INFO'!L18=\"N/A\",0,IF('TRANSCRIPT INFO'!E18=\"Y\",'TRANSCRIPT INFO'!D18,IF('TRANSCRIPT INFO'!K18=\"S\",'TRANSCRIPT INFO'!J18,'TRANSCRIPT INFO'!J18*2/3)))","v":0},{"$f":"+IF('TRANSCRIPT INFO'!O18=\"N/A\",\"N/A \",'TRANSCRIPT INFO'!O18)","v":"N/A "},{"$f":"IF('TRANSCRIPT INFO'!F18=\"Y\",'TRANSCRIPT INFO'!D18,0)","v":0},0,0,0,0,{"$f":"IF('TRANSCRIPT INFO'!E18=\"Y\",VLOOKUP(D20,$N$1:$O$15,2,FALSE),0)","v":0},{"$f":"IF('TRANSCRIPT INFO'!F18=\"Y\",VLOOKUP(F20,$N$1:$O$15,2,FALSE),0)","v":0},0,{"$f":"IF('TRANSCRIPT INFO'!E18=\"Y\",IF('UNOFFICIAL GPA'!D20=\"N/A\",0,'UNOFFICIAL GPA'!E20),0)","v":0}]
[{"$f":"+'TRANSCRIPT INFO'!A19","v":4},{"$f":"IF('TRANSCRIPT INFO'!E19=\"Y\",+'TRANSCRIPT INFO'!B19,'TRANSCRIPT INFO'!H19)","v":0},{"$f":"IF('TRANSCRIPT INFO'!E19=\"Y\",+'TRANSCRIPT INFO'!C19,'TRANSCRIPT INFO'!I19)","v":0},{"$f":"+IF('TRANSCRIPT INFO'!L19=\"N/A\",\"N/A\",'TRANSCRIPT INFO'!L19)","v":"N/A"},{"$f":"IF('TRANSCRIPT INFO'!L19=\"N/A\",0,IF('TRANSCRIPT INFO'!E19=\"Y\",'TRANSCRIPT INFO'!D19,IF('TRANSCRIPT INFO'!K19=\"S\",'TRANSCRIPT INFO'!J19,'TRANSCRIPT INFO'!J19*2/3)))","v":0},{"$f":"+IF('TRANSCRIPT INFO'!O19=\"N/A\",\"N/A \",'TRANSCRIPT INFO'!O19)","v":"N/A "},{"$f":"IF('TRANSCRIPT INFO'!F19=\"Y\",'TRANSCRIPT INFO'!D19,0)","v":0},0,0,0,0,{"$f":"IF('TRANSCRIPT INFO'!E19=\"Y\",VLOOKUP(D21,$N$1:$O$15,2,FALSE),0)","v":0},{"$f":"IF('TRANSCRIPT INFO'!F19=\"Y\",VLOOKUP(F21,$N$1:$O$15,2,FALSE),0)","v":0},0,{"$f":"IF('TRANSCRIPT INFO'!E19=\"Y\",IF('UNOFFICIAL GPA'!D21=\"N/A\",0,'UNOFFICIAL GPA'!E21),0)","v":0}]
[{"$f":"+'TRANSCRIPT INFO'!A20","v":5},{"$f":"IF('TRANSCRIPT INFO'!E20=\"Y\",+'TRANSCRIPT INFO'!B20,'TRANSCRIPT INFO'!H20)","v":"MATH 133A"},{"$f":"IF('TRANSCRIPT INFO'!E20=\"Y\",+'TRANSCRIPT INFO'!C20,'TRANSCRIPT INFO'!I20)","v":"ORDINARY DIFFERENTIAL EQUATIONS"},{"$f":"+IF('TRANSCRIPT INFO'!L20=\"N/A\",\"N/A\",'TRANSCRIPT INFO'!L20)","v":"N/A"},{"$f":"IF('TRANSCRIPT INFO'!L20=\"N/A\",0,IF('TRANSCRIPT INFO'!E20=\"Y\",'TRANSCRIPT INFO'!D20,IF('TRANSCRIPT INFO'!K20=\"S\",'TRANSCRIPT INFO'!J20,'TRANSCRIPT INFO'!J20*2/3)))","v":0},{"$f":"+IF('TRANSCRIPT INFO'!O20=\"N/A\",\"N/A \",'TRANSCRIPT INFO'!O20)","v":"N/A "},{"$f":"IF('TRANSCRIPT INFO'!F20=\"Y\",'TRANSCRIPT INFO'!D20,0)","v":0},0,0,0,0,{"$f":"IF('TRANSCRIPT INFO'!E20=\"Y\",VLOOKUP(D22,$N$1:$O$15,2,FALSE),0)","v":0},{"$f":"IF('TRANSCRIPT INFO'!F20=\"Y\",VLOOKUP(F22,$N$1:$O$15,2,FALSE),0)","v":0},0,{"$f":"IF('TRANSCRIPT INFO'!E20=\"Y\",IF('UNOFFICIAL GPA'!D22=\"N/A\",0,'UNOFFICIAL GPA'!E22),0)","v":0}]
[{"$f":"+'TRANSCRIPT INFO'!A21","v":6},{"$f":"IF('TRANSCRIPT INFO'!E21=\"Y\",+'TRANSCRIPT INFO'!B21,'TRANSCRIPT INFO'!H21)","v":"CHEM 1A"},{"$f":"IF('TRANSCRIPT INFO'!E21=\"Y\",+'TRANSCRIPT INFO'!C21,'TRANSCRIPT INFO'!I21)","v":"GENERAL CHEMISTRY"},{"$f":"+IF('TRANSCRIPT INFO'!L21=\"N/A\",\"N/A\",'TRANSCRIPT INFO'!L21)","v":"N/A"},{"$f":"IF('TRANSCRIPT INFO'!L21=\"N/A\",0,IF('TRANSCRIPT INFO'!E21=\"Y\",'TRANSCRIPT INFO'!D21,IF('TRANSCRIPT INFO'!K21=\"S\",'TRANSCRIPT INFO'!J21,'TRANSCRIPT INFO'!J21*2/3)))","v":0},{"$f":"+IF('TRANSCRIPT INFO'!O21=\"N/A\",\"N/A \",'TRANSCRIPT INFO'!O21)","v":"N/A "},{"$f":"IF('TRANSCRIPT INFO'!F21=\"Y\",'TRANSCRIPT INFO'!D21,0)","v":0},0,0,0,0,{"$f":"IF('TRANSCRIPT INFO'!E21=\"Y\",VLOOKUP(D23,$N$1:$O$15,2,FALSE),0)","v":0},{"$f":"IF('TRANSCRIPT INFO'!F21=\"Y\",VLOOKUP(F23,$N$1:$O$15,2,FALSE),0)","v":0},0,{"$f":"IF('TRANSCRIPT INFO'!E21=\"Y\",IF('UNOFFICIAL GPA'!D23=\"N/A\",0,'UNOFFICIAL GPA'!E23),0)","v":0}]
[{"$f":"+'TRANSCRIPT INFO'!A22","v":7},{"$f":"IF('TRANSCRIPT INFO'!E22=\"Y\",+'TRANSCRIPT INFO'!B22,'TRANSCRIPT INFO'!H22)","v":"CHEM 1B"},{"$f":"IF('TRANSCRIPT INFO'!E22=\"Y\",+'TRANSCRIPT INFO'!C22,'TRANSCRIPT INFO'!I22)","v":"GENERAL CHEMISTRY"},{"$f":"+IF('TRANSCRIPT INFO'!L22=\"N/A\",\"N/A\",'TRANSCRIPT INFO'!L22)","v":"N/A"},{"$f":"IF('TRANSCRIPT INFO'!L22=\"N/A\",0,IF('TRANSCRIPT INFO'!E22=\"Y\",'TRANSCRIPT INFO'!D22,IF('TRANSCRIPT INFO'!K22=\"S\",'TRANSCRIPT INFO'!J22,'TRANSCRIPT INFO'!J22*2/3)))","v":0},{"$f":"+IF('TRANSCRIPT INFO'!O22=\"N/A\",\"N/A \",'TRANSCRIPT INFO'!O22)","v":"N/A "},{"$f":"IF('TRANSCRIPT INFO'!F22=\"Y\",'TRANSCRIPT INFO'!D22,0)","v":0},0,0,0,0,{"$f":"IF('TRANSCRIPT INFO'!E22=\"Y\",VLOOKUP(D24,$N$1:$O$15,2,FALSE),0)","v":0},{"$f":"IF('TRANSCRIPT INFO'!F22=\"Y\",VLOOKUP(F24,$N$1:$O$15,2,FALSE),0)","v":0},0,{"$f":"IF('TRANSCRIPT INFO'!E22=\"Y\",IF('UNOFFICIAL GPA'!D24=\"N/A\",0,'UNOFFICIAL GPA'!E24),0)","v":0}]
[{"$f":"+'TRANSCRIPT INFO'!A23","v":8},{"$f":"IF('TRANSCRIPT INFO'!E23=\"Y\",+'TRANSCRIPT INFO'!B23,'TRANSCRIPT INFO'!H23)","v":0},{"$f":"IF('TRANSCRIPT INFO'!E23=\"Y\",+'TRANSCRIPT INFO'!C23,'TRANSCRIPT INFO'!I23)","v":0},{"$f":"+IF('TRANSCRIPT INFO'!L23=\"N/A\",\"N/A\",'TRANSCRIPT INFO'!L23)","v":"N/A"},{"$f":"IF('TRANSCRIPT INFO'!L23=\"N/A\",0,IF('TRANSCRIPT INFO'!E23=\"Y\",'TRANSCRIPT INFO'!D23,IF('TRANSCRIPT INFO'!K23=\"S\",'TRANSCRIPT INFO'!J23,'TRANSCRIPT INFO'!J23*2/3)))","v":0},{"$f":"+IF('TRANSCRIPT INFO'!O23=\"N/A\",\"N/A \",'TRANSCRIPT INFO'!O23)","v":"N/A "},{"$f":"IF('TRANSCRIPT INFO'!F23=\"Y\",'TRANSCRIPT INFO'!D23,0)","v":0},0,0,0,0,{"$f":"IF('TRANSCRIPT INFO'!E23=\"Y\",VLOOKUP(D25,$N$1:$O$15,2,FALSE),0)","v":0},{"$f":"IF('TRANSCRIPT INFO'!F23=\"Y\",VLOOKUP(F25,$N$1:$O$15,2,FALSE),0)","v":0},0,{"$f":"IF('TRANSCRIPT INFO'!E23=\"Y\",IF('UNOFFICIAL GPA'!D25=\"N/A\",0,'UNOFFICIAL GPA'!E25),0)","v":0}]
[{"$f":"+'TRANSCRIPT INFO'!A24","v":9},{"$f":"IF('TRANSCRIPT INFO'!E24=\"Y\",+'TRANSCRIPT INFO'!B24,'TRANSCRIPT INFO'!H24)","v":"PHYS 50"},{"$f":"IF('TRANSCRIPT INFO'!E24=\"Y\",+'TRANSCRIPT INFO'!C24,'TRANSCRIPT INFO'!I24)","v":"MECHANICS"},{"$f":"+IF('TRANSCRIPT INFO'!L24=\"N/A\",\"N/A\",'TRANSCRIPT INFO'!L24)","v":"N/A"},{"$f":"IF('TRANSCRIPT INFO'!L24=\"N/A\",0,IF('TRANSCRIPT INFO'!E24=\"Y\",'TRANSCRIPT INFO'!D24,IF('TRANSCRIPT INFO'!K24=\"S\",'TRANSCRIPT INFO'!J24,'TRANSCRIPT INFO'!J24*2/3)))","v":0},{"$f":"+IF('TRANSCRIPT INFO'!O24=\"N/A\",\"N/A \",'TRANSCRIPT INFO'!O24)","v":"N/A "},{"$f":"IF('TRANSCRIPT INFO'!F24=\"Y\",'TRANSCRIPT INFO'!D24,0)","v":0},0,0,0,0,{"$f":"IF('TRANSCRIPT INFO'!E24=\"Y\",VLOOKUP(D26,$N$1:$O$15,2,FALSE),0)","v":0},{"$f":"IF('TRANSCRIPT INFO'!F24=\"Y\",VLOOKUP(F26,$N$1:$O$15,2,FALSE),0)","v":0},0,{"$f":"IF('TRANSCRIPT INFO'!E24=\"Y\",IF('UNOFFICIAL GPA'!D26=\"N/A\",0,'UNOFFICIAL GPA'!E26),0)","v":0}]
[{"$f":"+'TRANSCRIPT INFO'!A25","v":10},{"$f":"IF('TRANSCRIPT INFO'!E25=\"Y\",+'TRANSCRIPT INFO'!B25,'TRANSCRIPT INFO'!H25)","v":"PHYS 51"},{"$f":"IF('TRANSCRIPT INFO'!E25=\"Y\",+'TRANSCRIPT INFO'!C25,'TRANSCRIPT INFO'!I25)","v":"ELECTRICITY & MAGNETISM"},{"$f":"+IF('TRANSCRIPT INFO'!L25=\"N/A\",\"N/A\",'TRANSCRIPT INFO'!L25)","v":"N/A"},{"$f":"IF('TRANSCRIPT INFO'!L25=\"N/A\",0,IF('TRANSCRIPT INFO'!E25=\"Y\",'TRANSCRIPT INFO'!D25,IF('TRANSCRIPT INFO'!K25=\"S\",'TRANSCRIPT INFO'!J25,'TRANSCRIPT INFO'!J25*2/3)))","v":0},{"$f":"+IF('TRANSCRIPT INFO'!O25=\"N/A\",\"N/A \",'TRANSCRIPT INFO'!O25)","v":"N/A "},{"$f":"IF('TRANSCRIPT INFO'!F25=\"Y\",'TRANSCRIPT INFO'!D25,0)","v":0},0,0,0,0,{"$f":"IF('TRANSCRIPT INFO'!E25=\"Y\",VLOOKUP(D27,$N$1:$O$15,2,FALSE),0)","v":0},{"$f":"IF('TRANSCRIPT INFO'!F25=\"Y\",VLOOKUP(F27,$N$1:$O$15,2,FALSE),0)","v":0},0,{"$f":"IF('TRANSCRIPT INFO'!E25=\"Y\",IF('UNOFFICIAL GPA'!D27=\"N/A\",0,'UNOFFICIAL GPA'!E27),0)","v":0}]
[{"$f":"+'TRANSCRIPT INFO'!A26","v":11},{"$f":"IF('TRANSCRIPT INFO'!E26=\"Y\",+'TRANSCRIPT INFO'!B26,'TRANSCRIPT INFO'!H26)","v":0},{"$f":"IF('TRANSCRIPT INFO'!E26=\"Y\",+'TRANSCRIPT INFO'!C26,'TRANSCRIPT INFO'!I26)","v":0},{"$f":"+IF('TRANSCRIPT INFO'!L26=\"N/A\",\"N/A\",'TRANSCRIPT INFO'!L26)","v":"N/A"},{"$f":"IF('TRANSCRIPT INFO'!L26=\"N/A\",0,IF('TRANSCRIPT INFO'!E26=\"Y\",'TRANSCRIPT INFO'!D26,IF('TRANSCRIPT INFO'!K26=\"S\",'TRANSCRIPT INFO'!J26,'TRANSCRIPT INFO'!J26*2/3)))","v":0},{"$f":"+IF('TRANSCRIPT INFO'!O26=\"N/A\",\"N/A \",'TRANSCRIPT INFO'!O26)","v":"N/A "},{"$f":"IF('TRANSCRIPT INFO'!F26=\"Y\",'TRANSCRIPT INFO'!D26,0)","v":0},0,0,0,0,{"$f":"IF('TRANSCRIPT INFO'!E26=\"Y\",VLOOKUP(D28,$N$1:$O$15,2,FALSE),0)","v":0},{"$f":"IF('TRANSCRIPT INFO'!F26=\"Y\",VLOOKUP(F28,$N$1:$O$15,2,FALSE),0)","v":0},0,{"$f":"IF('TRANSCRIPT INFO'!E26=\"Y\",IF('UNOFFICIAL GPA'!D28=\"N/A\",0,'UNOFFICIAL GPA'!E28),0)","v":0}]
[{"$f":"+'TRANSCRIPT INFO'!A27","v":12},{"$f":"IF('TRANSCRIPT INFO'!E27=\"Y\",+'TRANSCRIPT INFO'!B27,'TRANSCRIPT INFO'!H27)","v":"ENGL 1B"},{"$f":"IF('TRANSCRIPT INFO'!E27=\"Y\",+'TRANSCRIPT INFO'!C27,'TRANSCRIPT INFO'!I27)","v":"ARGUMENT & ANALYSIS"},{"$f":"+IF('TRANSCRIPT INFO'!L27=\"N/A\",\"N/A\",'TRANSCRIPT INFO'!L27)","v":"N/A"},{"$f":"IF('TRANSCRIPT INFO'!L27=\"N/A\",0,IF('TRANSCRIPT INFO'!E27=\"Y\",'TRANSCRIPT INFO'!D27,IF('TRANSCRIPT INFO'!K27=\"S\",'TRANSCRIPT INFO'!J27,'TRANSCRIPT INFO'!J27*2/3)))","v":0},{"$f":"+IF('TRANSCRIPT INFO'!O27=\"N/A\",\"N/A \",'TRANSCRIPT INFO'!O27)","v":"N/A "},{"$f":"IF('TRANSCRIPT INFO'!F27=\"Y\",'TRANSCRIPT INFO'!D27,0)","v":0},0,0,0,0,{"$f":"IF('TRANSCRIPT INFO'!E27=\"Y\",VLOOKUP(D29,$N$1:$O$15,2,FALSE),0)","v":0},{"$f":"IF('TRANSCRIPT INFO'!F27=\"Y\",VLOOKUP(F29,$N$1:$O$15,2,FALSE),0)","v":0},0,{"$f":"IF('TRANSCRIPT INFO'!E27=\"Y\",IF('UNOFFICIAL GPA'!D29=\"N/A\",0,'UNOFFICIAL GPA'!E29),0)","v":0}]
[{"$f":"+'TRANSCRIPT INFO'!A28","v":13},{"$f":"IF('TRANSCRIPT INFO'!E28=\"Y\",+'TRANSCRIPT INFO'!B28,'TRANSCRIPT INFO'!H28)","v":0},{"$f":"IF('TRANSCRIPT INFO'!E28=\"Y\",+'TRANSCRIPT INFO'!C28,'TRANSCRIPT INFO'!I28)","v":0},{"$f":"+IF('TRANSCRIPT INFO'!L28=\"N/A\",\"N/A\",'TRANSCRIPT INFO'!L28)","v":"N/A"},{"$f":"IF('TRANSCRIPT INFO'!L28=\"N/A\",0,IF('TRANSCRIPT INFO'!E28=\"Y\",'TRANSCRIPT INFO'!D28,IF('TRANSCRIPT INFO'!K28=\"S\",'TRANSCRIPT INFO'!J28,'TRANSCRIPT INFO'!J28*2/3)))","v":0},{"$f":"+IF('TRANSCRIPT INFO'!O28=\"N/A\",\"N/A \",'TRANSCRIPT INFO'!O28)","v":"N/A "},{"$f":"IF('TRANSCRIPT INFO'!F28=\"Y\",'TRANSCRIPT INFO'!D28,0)","v":0},0,0,0,0,{"$f":"IF('TRANSCRIPT INFO'!E28=\"Y\",VLOOKUP(D30,$N$1:$O$15,2,FALSE),0)","v":0},{"$f":"IF('TRANSCRIPT INFO'!F28=\"Y\",VLOOKUP(F30,$N$1:$O$15,2,FALSE),0)","v":0},0,{"$f":"IF('TRANSCRIPT INFO'!E28=\"Y\",IF('UNOFFICIAL GPA'!D30=\"N/A\",0,'UNOFFICIAL GPA'!E30),0)","v":0}]
["SUBTOTALS",null,null,null,{"$f":"SUM(E18:E30)","v":0},null,{"$f":"SUM(G18:G30)","v":0},{"$f":"SUM(H18:H30)","v":0},0,0,0,0,0,0,0]
[{"$f":"+'TRANSCRIPT INFO'!A30","v":14},{"$f":"IF('TRANSCRIPT INFO'!E30=\"Y\",+'TRANSCRIPT INFO'!B30,'TRANSCRIPT INFO'!H30)","v":"ENGR 10"},{"$f":"IF('TRANSCRIPT INFO'!E30=\"Y\",+'TRANSCRIPT INFO'!C30,'TRANSCRIPT INFO'!I30)","v":"INTRODUCTION TO ENGINEERING"},{"$f":"+IF('TRANSCRIPT INFO'!L30=\"N/A\",\"N/A\",'TRANSCRIPT INFO'!L30)","v":"N/A"},{"$f":"IF('TRANSCRIPT INFO'!L30=\"N/A\",0,IF('TRANSCRIPT INFO'!E30=\"Y\",'TRANSCRIPT INFO'!D30,IF('TRANSCRIPT INFO'!K30=\"S\",'TRANSCRIPT INFO'!J30,'TRANSCRIPT INFO'!J30*2/3)))","v":0},{"$f":"+IF('TRANSCRIPT INFO'!O30=\"N/A\",\"N/A \",'TRANSCRIPT INFO'!O30)","v":"N/A "},{"$f":"IF('TRANSCRIPT INFO'!F30=\"Y\",'TRANSCRIPT INFO'!D30,0)","v":0},{"$f":"VLOOKUP(D32,$N$1:$O$15,2)","v":0},{"$f":"VLOOKUP(F32,$N$1:$O$15,2)","v":0},{"$f":"+E32*H32+G32*I32","v":0},{"$f":"IF(D32=0,0,E32)+IF(F32=0,0,G32)","v":0},{"$f":"IF('TRANSCRIPT INFO'!E30=\"Y\",VLOOKUP(D32,$N$1:$O$15,2,FALSE),0)","v":0},{"$f":"IF('TRANSCRIPT INFO'!F30=\"Y\",VLOOKUP(F32,$N$1:$O$15,2,FALSE),0)","v":0},{"$f":"+E32*L32+G32*M32","v":0},{"$f":"IF('TRANSCRIPT INFO'!E30=\"Y\",IF('UNOFFICIAL GPA'!D32=\"N/A\",0,'UNOFFICIAL GPA'!E32),0)","v":0}]
[{"$f":"+'TRANSCRIPT INFO'!A31","v":15},{"$f":"IF('TRANSCRIPT INFO'!E31=\"Y\",+'TRANSCRIPT INFO'!B31,'TRANSCRIPT INFO'!H31)","v":"MATE 25"},{"$f":"IF('TRANSCRIPT INFO'!E31=\"Y\",+'TRANSCRIPT INFO'!C31,'TRANSCRIPT INFO'!I31)","v":"INTRODUCTION TO MATERIALS"},{"$f":"+IF('TRANSCRIPT INFO'!L31=\"N/A\",\"N/A\",'TRANSCRIPT INFO'!L31)","v":"N/A"},{"$f":"IF('TRANSCRIPT INFO'!L31=\"N/A\",0,IF('TRANSCRIPT INFO'!E31=\"Y\",'TRANSCRIPT INFO'!D31,IF('TRANSCRIPT INFO'!K31=\"S\",'TRANSCRIPT INFO'!J31,'TRANSCRIPT INFO'!J31*2/3)))","v":0},{"$f":"+IF('TRANSCRIPT INFO'!O31=\"N/A\",\"N/A \",'TRANSCRIPT INFO'!O31)","v":"N/A "},{"$f":"IF('TRANSCRIPT INFO'!F31=\"Y\",'TRANSCRIPT INFO'!D31,0)","v":0},{"$f":"VLOOKUP(D33,$N$1:$O$15,2)","v":0},{"$f":"VLOOKUP(F33,$N$1:$O$15,2)","v":0},{"$f":"+E33*H33+G33*I33","v":0},{"$f":"IF(D33=0,0,E33)+IF(F33=0,0,G33)","v":0},{"$f":"IF('TRANSCRIPT INFO'!E31=\"Y\",VLOOKUP(D33,$N$1:$O$15,2,FALSE),0)","v":0},{"$f":"IF('TRANSCRIPT INFO'!F31=\"Y\",VLOOKUP(F33,$N$1:$O$15,2,FALSE),0)","v":0},{"$f":"+E33*L33+G33*M33","v":0},{"$f":"IF('TRANSCRIPT INFO'!E31=\"Y\",IF('UNOFFICIAL GPA'!D33=\"N/A\",0,'UNOFFICIAL GPA'!E33),0)","v":0}]
[{"$f":"+'TRANSCRIPT INFO'!A32","v":16},{"$f":"IF('TRANSCRIPT INFO'!E32=\"Y\",+'TRANSCRIPT INFO'!B32,'TRANSCRIPT INFO'!H32)","v":"CE 99"},{"$f":"IF('TRANSCRIPT INFO'!E32=\"Y\",+'TRANSCRIPT INFO'!C32,'TRANSCRIPT INFO'!I32)","v":"STATICS"},{"$f":"+IF('TRANSCRIPT INFO'!L32=\"N/A\",\"N/A\",'TRANSCRIPT INFO'!L32)","v":"N/A"},{"$f":"IF('TRANSCRIPT INFO'!L32=\"N/A\",0,IF('TRANSCRIPT INFO'!E32=\"Y\",'TRANSCRIPT INFO'!D32,IF('TRANSCRIPT INFO'!K32=\"S\",'TRANSCRIPT INFO'!J32,'TRANSCRIPT INFO'!J32*2/3)))","v":0},{"$f":"+IF('TRANSCRIPT INFO'!O32=\"N/A\",\"N/A \",'TRANSCRIPT INFO'!O32)","v":"N/A "},{"$f":"IF('TRANSCRIPT INFO'!F32=\"Y\",'TRANSCRIPT INFO'!D32,0)","v":0},{"$f":"VLOOKUP(D34,$N$1:$O$15,2)","v":0},{"$f":"VLOOKUP(F34,$N$1:$O$15,2)","v":0},{"$f":"+E34*H34+G34*I34","v":0},{"$f":"IF(D34=0,0,E34)+IF(F34=0,0,G34)","v":0},{"$f":"IF('TRANSCRIPT INFO'!E32=\"Y\",VLOOKUP(D34,$N$1:$O$15,2,FALSE),0)","v":0},{"$f":"IF('TRANSCRIPT INFO'!F32=\"Y\",VLOOKUP(F34,$N$1:$O$15,2,FALSE),0)","v":0},{"$f":"+E34*L34+G34*M34","v":0},{"$f":"IF('TRANSCRIPT INFO'!E32=\"Y\",IF('UNOFFICIAL GPA'!D34=\"N/A\",0,'UNOFFICIAL GPA'!E34),0)","v":0}]
[{"$f":"+'TRANSCRIPT INFO'!A33","v":17},{"$f":"IF('TRANSCRIPT INFO'!E33=\"Y\",+'TRANSCRIPT INFO'!B33,'TRANSCRIPT INFO'!H33)","v":"EE 98"},{"$f":"IF('TRANSCRIPT INFO'!E33=\"Y\",+'TRANSCRIPT INFO'!C33,'TRANSCRIPT INFO'!I33)","v":"INTRODUCTION TO CIRCUIT ANALYSIS"},{"$f":"+IF('TRANSCRIPT INFO'!L33=\"N/A\",\"N/A\",'TRANSCRIPT INFO'!L33)","v":"N/A"},{"$f":"IF('TRANSCRIPT INFO'!L33=\"N/A\",0,IF('TRANSCRIPT INFO'!E33=\"Y\",'TRANSCRIPT INFO'!D33,IF('TRANSCRIPT INFO'!K33=\"S\",'TRANSCRIPT INFO'!J33,'TRANSCRIPT INFO'!J33*2/3)))","v":0},{"$f":"+IF('TRANSCRIPT INFO'!O33=\"N/A\",\"N/A \",'TRANSCRIPT INFO'!O33)","v":"N/A "},{"$f":"IF('TRANSCRIPT INFO'!F33=\"Y\",'TRANSCRIPT INFO'!D33,0)","v":0},{"$f":"VLOOKUP(D35,$N$1:$O$15,2)","v":0},{"$f":"VLOOKUP(F35,$N$1:$O$15,2)","v":0},{"$f":"+E35*H35+G35*I35","v":0},{"$f":"IF(D35=0,0,E35)+IF(F35=0,0,G35)","v":0},{"$f":"IF('TRANSCRIPT INFO'!E33=\"Y\",VLOOKUP(D35,$N$1:$O$15,2,FALSE),0)","v":0},{"$f":"IF('TRANSCRIPT INFO'!F33=\"Y\",VLOOKUP(F35,$N$1:$O$15,2,FALSE),0)","v":0},{"$f":"+E35*L35+G35*M35","v":0},{"$f":"IF('TRANSCRIPT INFO'!E33=\"Y\",IF('UNOFFICIAL GPA'!D35=\"N/A\",0,'UNOFFICIAL GPA'!E35),0)","v":0}]
[{"$f":"+'TRANSCRIPT INFO'!A34","v":18},{"$f":"IF('TRANSCRIPT INFO'!E34=\"Y\",+'TRANSCRIPT INFO'!B34,'TRANSCRIPT INFO'!H34)","v":0},{"$f":"IF('TRANSCRIPT INFO'!E34=\"Y\",+'TRANSCRIPT INFO'!C34,'TRANSCRIPT INFO'!I34)","v":0},{"$f":"+IF('TRANSCRIPT INFO'!L34=\"N/A\",\"N/A\",'TRANSCRIPT INFO'!L34)","v":"N/A"},{"$f":"IF('TRANSCRIPT INFO'!L34=\"N/A\",0,IF('TRANSCRIPT INFO'!E34=\"Y\",'TRANSCRIPT INFO'!D34,IF('TRANSCRIPT INFO'!K34=\"S\",'TRANSCRIPT INFO'!J34,'TRANSCRIPT INFO'!J34*2/3)))","v":0},{"$f":"+IF('TRANSCRIPT INFO'!O34=\"N/A\",\"N/A \",'TRANSCRIPT INFO'!O34)","v":"N/A "},{"$f":"IF('TRANSCRIPT INFO'!F34=\"Y\",'TRANSCRIPT INFO'!D34,0)","v":0},{"$f":"VLOOKUP(D36,$N$1:$O$15,2)","v":0},{"$f":"VLOOKUP(F36,$N$1:$O$15,2)","v":0},{"$f":"+E36*H36+G36*I36","v":0},{"$f":"IF(D36=0,0,E36)+IF(F36=0,0,G36)","v":0},{"$f":"IF('TRANSCRIPT INFO'!E34=\"Y\",VLOOKUP(D36,$N$1:$O$15,2,FALSE),0)","v":0},{"$f":"IF('TRANSCRIPT INFO'!F34=\"Y\",VLOOKUP(F36,$N$1:$O$15,2,FALSE),0)","v":0},{"$f":"+E36*L36+G36*M36","v":0},{"$f":"IF('TRANSCRIPT INFO'!E34=\"Y\",IF('UNOFFICIAL GPA'!D36=\"N/A\",0,'UNOFFICIAL GPA'!E36),0)","v":0}]
["SUBTOTALS",null,null,null,{"$f":"SUM(E32:E36)","v":0},null,{"$f":"SUM(G32:G36)","v":0},{"$f":"SUM(H32:H36)","v":0},0,0,0,0,0,0,0]
[{"$f":"+'TRANSCRIPT INFO'!A36","v":19},{"$f":"IF('TRANSCRIPT INFO'!E36=\"Y\",+'TRANSCRIPT INFO'!B36,'TRANSCRIPT INFO'!H36)","v":"CHEM 161A"},{"$f":"IF('TRANSCRIPT INFO'!E36=\"Y\",+'TRANSCRIPT INFO'!C36,'TRANSCRIPT INFO'!I36)","v":"PHYSICAL CHEMISTRY"},{"$f":"+IF('TRANSCRIPT INFO'!L36=\"N/A\",\"N/A\",'TRANSCRIPT INFO'!L36)","v":"N/A"},{"$f":"IF('TRANSCRIPT INFO'!L36=\"N/A\",0,IF('TRANSCRIPT INFO'!E36=\"Y\",'TRANSCRIPT INFO'!D36,IF('TRANSCRIPT INFO'!K36=\"S\",'TRANSCRIPT INFO'!J36,'TRANSCRIPT INFO'!J36*2/3)))","v":0},{"$f":"+IF('TRANSCRIPT INFO'!O36=\"N/A\",\"N/A \",'TRANSCRIPT INFO'!O36)","v":"N/A "},{"$f":"IF('TRANSCRIPT INFO'!F36=\"Y\",'TRANSCRIPT INFO'!D36,0)","v":0},{"$f":"VLOOKUP(D38,$N$1:$O$15,2)","v":0},{"$f":"VLOOKUP(F38,$N$1:$O$15,2)","v":0},{"$f":"+E38*H38+G38*I38","v":0},{"$f":"IF(D38=0,0,E38)+IF(F38=0,0,G38)","v":0},{"$f":"IF('TRANSCRIPT INFO'!E36=\"Y\",VLOOKUP(D38,$N$1:$O$15,2,FALSE),0)","v":0},{"$f":"IF('TRANSCRIPT INFO'!F36=\"Y\",VLOOKUP(F38,$N$1:$O$15,2,FALSE),0)","v":0},{"$f":"+E38*L38+G38*M38","v":0},{"$f":"IF('TRANSCRIPT INFO'!E36=\"Y\",IF('UNOFFICIAL GPA'!D38=\"N/A\",0,'UNOFFICIAL GPA'!E38),0)","v":0}]
[{"$f":"+'TRANSCRIPT INFO'!A37","v":20},{"$f":"IF('TRANSCRIPT INFO'!E37=\"Y\",+'TRANSCRIPT INFO'!B37,'TRANSCRIPT INFO'!H37)","v":"MATE 115"},{"$f":"IF('TRANSCRIPT INFO'!E37=\"Y\",+'TRANSCRIPT INFO'!C37,'TRANSCRIPT INFO'!I37)","v":"STRUCTURE & PROPERTIES OF SOLIDS"},{"$f":"+IF('TRANSCRIPT INFO'!L37=\"N/A\",\"N/A\",'TRANSCRIPT INFO'!L37)","v":"N/A"},{"$f":"IF('TRANSCRIPT INFO'!L37=\"N/A\",0,IF('TRANSCRIPT INFO'!E37=\"Y\",'TRANSCRIPT INFO'!D37,IF('TRANSCRIPT INFO'!K37=\"S\",'TRANSCRIPT INFO'!J37,'TRANSCRIPT INFO'!J37*2/3)))","v":0},{"$f":"+IF('TRANSCRIPT INFO'!O37=\"N/A\",\"N/A \",'TRANSCRIPT INFO'!O37)","v":"N/A "},{"$f":"IF('TRANSCRIPT INFO'!F37=\"Y\",'TRANSCRIPT INFO'!D37,0)","v":0},0,0,0,0,{"$f":"IF('TRANSCRIPT INFO'!E37=\"Y\",VLOOKUP(D39,$N$1:$O$15,2,FALSE),0)","v":0},{"$f":"IF('TRANSCRIPT INFO'!F37=\"Y\",VLOOKUP(F39,$N$1:$O$15,2,FALSE),0)","v":0},0,{"$f":"IF('TRANSCRIPT INFO'!E37=\"Y\",IF('UNOFFICIAL GPA'!D39=\"N/A\",0,'UNOFFICIAL GPA'!E39),0)","v":0}]
[{"$f":"+'TRANSCRIPT INFO'!A38","v":21},{"$f":"IF('TRANSCRIPT INFO'!E38=\"Y\",+'TRANSCRIPT INFO'!B38,'TRANSCRIPT INFO'!H38)","v":"MATE 141"},{"$f":"IF('TRANSCRIPT INFO'!E38=\"Y\",+'TRANSCRIPT INFO'!C38,'TRANSCRIPT INFO'!I38)","v":"MATERIALS ANALYSIS"},{"$f":"+IF('TRANSCRIPT INFO'!L38=\"N/A\",\"N/A\",'TRANSCRIPT INFO'!L38)","v":"N/A"},{"$f":"IF('TRANSCRIPT INFO'!L38=\"N/A\",0,IF('TRANSCRIPT INFO'!E38=\"Y\",'TRANSCRIPT INFO'!D38,IF('TRANSCRIPT INFO'!K38=\"S\",'TRANSCRIPT INFO'!J38,'TRANSCRIPT INFO'!J38*2/3)))","v":0},{"$f":"+IF('TRANSCRIPT INFO'!O38=\"N/A\",\"N/A \",'TRANSCRIPT INFO'!O38)","v":"N/A "},{"$f":"IF('TRANSCRIPT INFO'!F38=\"Y\",'TRANSCRIPT INFO'!D38,0)","v":0},0,0,0,0,{"$f":"IF('TRANSCRIPT INFO'!E38=\"Y\",VLOOKUP(D40,$N$1:$O$15,2,FALSE),0)","v":0},{"$f":"IF('TRANSCRIPT INFO'!F38=\"Y\",VLOOKUP(F40,$N$1:$O$15,2,FALSE),0)","v":0},0,{"$f":"IF('TRANSCRIPT INFO'!E38=\"Y\",IF('UNOFFICIAL GPA'!D40=\"N/A\",0,'UNOFFICIAL GPA'!E40),0)","v":0}]
[{"$f":"+'TRANSCRIPT INFO'!A39","v":22},{"$f":"IF('TRANSCRIPT INFO'!E39=\"Y\",+'TRANSCRIPT INFO'!B39,'TRANSCRIPT INFO'!H39)","v":"MATE 151"},{"$f":"IF('TRANSCRIPT INFO'!E39=\"Y\",+'TRANSCRIPT INFO'!C39,'TRANSCRIPT INFO'!I39)","v":"PROC ENGR THERMODYNAMICS"},{"$f":"+IF('TRANSCRIPT INFO'!L39=\"N/A\",\"N/A\",'TRANSCRIPT INFO'!L39)","v":"N/A"},{"$f":"IF('TRANSCRIPT INFO'!L39=\"N/A\",0,IF('TRANSCRIPT INFO'!E39=\"Y\",'TRANSCRIPT INFO'!D39,IF('TRANSCRIPT INFO'!K39=\"S\",'TRANSCRIPT INFO'!J39,'TRANSCRIPT INFO'!J39*2/3)))","v":0},{"$f":"+IF('TRANSCRIPT INFO'!O39=\"N/A\",\"N/A \",'TRANSCRIPT INFO'!O39)","v":"N/A "},{"$f":"IF('TRANSCRIPT INFO'!F39=\"Y\",'TRANSCRIPT INFO'!D39,0)","v":0},0,0,0,0,{"$f":"IF('TRANSCRIPT INFO'!E39=\"Y\",VLOOKUP(D41,$N$1:$O$15,2,FALSE),0)","v":0},{"$f":"IF('TRANSCRIPT INFO'!F39=\"Y\",VLOOKUP(F41,$N$1:$O$15,2,FALSE),0)","v":0},0,{"$f":"IF('TRANSCRIPT INFO'!E39=\"Y\",IF('UNOFFICIAL GPA'!D41=\"N/A\",0,'UNOFFICIAL GPA'!E41),0)","v":0}]
[{"$f":"+'TRANSCRIPT INFO'!A40","v":23},{"$f":"IF('TRANSCRIPT INFO'!E40=\"Y\",+'TRANSCRIPT INFO'!B40,'TRANSCRIPT INFO'!H40)","v":"MATE 152"},{"$f":"IF('TRANSCRIPT INFO'!E40=\"Y\",+'TRANSCRIPT INFO'!C40,'TRANSCRIPT INFO'!I40)","v":"SOLID STATE KINETICS"},{"$f":"+IF('TRANSCRIPT INFO'!L40=\"N/A\",\"N/A\",'TRANSCRIPT INFO'!L40)","v":"N/A"},{"$f":"IF('TRANSCRIPT INFO'!L40=\"N/A\",0,IF('TRANSCRIPT INFO'!E40=\"Y\",'TRANSCRIPT INFO'!D40,IF('TRANSCRIPT INFO'!K40=\"S\",'TRANSCRIPT INFO'!J40,'TRANSCRIPT INFO'!J40*2/3)))","v":0},{"$f":"+IF('TRANSCRIPT INFO'!O40=\"N/A\",\"N/A \",'TRANSCRIPT INFO'!O40)","v":"N/A "},{"$f":"IF('TRANSCRIPT INFO'!F40=\"Y\",'TRANSCRIPT INFO'!D40,0)","v":0},0,0,0,0,{"$f":"IF('TRANSCRIPT INFO'!E40=\"Y\",VLOOKUP(D42,$N$1:$O$15,2,FALSE),0)","v":0},{"$f":"IF('TRANSCRIPT INFO'!F40=\"Y\",VLOOKUP(F42,$N$1:$O$15,2,FALSE),0)","v":0},0,{"$f":"IF('TRANSCRIPT INFO'!E40=\"Y\",IF('UNOFFICIAL GPA'!D42=\"N/A\",0,'UNOFFICIAL GPA'!E42),0)","v":0}]
[{"$f":"+'TRANSCRIPT INFO'!A41","v":24},{"$f":"IF('TRANSCRIPT INFO'!E41=\"Y\",+'TRANSCRIPT INFO'!B41,'TRANSCRIPT INFO'!H41)","v":"MATE 153"},{"$f":"IF('TRANSCRIPT INFO'!E41=\"Y\",+'TRANSCRIPT INFO'!C41,'TRANSCRIPT INFO'!I41)","v":"ELECTRONIC PROPERTIES OF MATERIALS"},{"$f":"+IF('TRANSCRIPT INFO'!L41=\"N/A\",\"N/A\",'TRANSCRIPT INFO'!L41)","v":"N/A"},{"$f":"IF('TRANSCRIPT INFO'!L41=\"N/A\",0,IF('TRANSCRIPT INFO'!E41=\"Y\",'TRANSCRIPT INFO'!D41,IF('TRANSCRIPT INFO'!K41=\"S\",'TRANSCRIPT INFO'!J41,'TRANSCRIPT INFO'!J41*2/3)))","v":0},{"$f":"+IF('TRANSCRIPT INFO'!O41=\"N/A\",\"N/A \",'TRANSCRIPT INFO'!O41)","v":"N/A "},{"$f":"IF('TRANSCRIPT INFO'!F41=\"Y\",'TRANSCRIPT INFO'!D41,0)","v":0},0,0,0,0,{"$f":"IF('TRANSCRIPT INFO'!E41=\"Y\",VLOOKUP(D43,$N$1:$O$15,2,FALSE),0)","v":0},{"$f":"IF('TRANSCRIPT INFO'!F41=\"Y\",VLOOKUP(F43,$N$1:$O$15,2,FALSE),0)","v":0},0,{"$f":"IF('TRANSCRIPT INFO'!E41=\"Y\",IF('UNOFFICIAL GPA'!D43=\"N/A\",0,'UNOFFICIAL GPA'!E43),0)","v":0}]
[{"$f":"+'TRANSCRIPT INFO'!A42","v":25},{"$f":"IF('TRANSCRIPT INFO'!E42=\"Y\",+'TRANSCRIPT INFO'!B42,'TRANSCRIPT INFO'!H42)","v":"MATE 154"},{"$f":"IF('TRANSCRIPT INFO'!E42=\"Y\",+'TRANSCRIPT INFO'!C42,'TRANSCRIPT INFO'!I42)","v":"METALS AND ALLOYS"},{"$f":"+IF('TRANSCRIPT INFO'!L42=\"N/A\",\"N/A\",'TRANSCRIPT INFO'!L42)","v":"N/A"},{"$f":"IF('TRANSCRIPT INFO'!L42=\"N/A\",0,IF('TRANSCRIPT INFO'!E42=\"Y\",'TRANSCRIPT INFO'!D42,IF('TRANSCRIPT INFO'!K42=\"S\",'TRANSCRIPT INFO'!J42,'TRANSCRIPT INFO'!J42*2/3)))","v":0},{"$f":"+IF('TRANSCRIPT INFO'!O42=\"N/A\",\"N/A \",'TRANSCRIPT INFO'!O42)","v":"N/A "},{"$f":"IF('TRANSCRIPT INFO'!F42=\"Y\",'TRANSCRIPT INFO'!D42,0)","v":0},0,0,0,0,{"$f":"IF('TRANSCRIPT INFO'!E42=\"Y\",VLOOKUP(D44,$N$1:$O$15,2,FALSE),0)","v":0},{"$f":"IF('TRANSCRIPT INFO'!F42=\"Y\",VLOOKUP(F44,$N$1:$O$15,2,FALSE),0)","v":0},0,{"$f":"IF('TRANSCRIPT INFO'!E42=\"Y\",IF('UNOFFICIAL GPA'!D44=\"N/A\",0,'UNOFFICIAL GPA'!E44),0)","v":0}]
[{"$f":"+'TRANSCRIPT INFO'!A43","v":26},{"$f":"IF('TRANSCRIPT INFO'!E43=\"Y\",+'TRANSCRIPT INFO'!B43,'TRANSCRIPT INFO'!H43)","v":"MATE 155"},{"$f":"IF('TRANSCRIPT INFO'!E43=\"Y\",+'TRANSCRIPT INFO'!C43,'TRANSCRIPT INFO'!I43)","v":"MATERIALS SELECTION & PRO. DES."},{"$f":"+IF('TRANSCRIPT INFO'!L43=\"N/A\",\"N/A\",'TRANSCRIPT INFO'!L43)","v":"N/A"},{"$f":"IF('TRANSCRIPT INFO'!L43=\"N/A\",0,IF('TRANSCRIPT INFO'!E43=\"Y\",'TRANSCRIPT INFO'!D43,IF('TRANSCRIPT INFO'!K43=\"S\",'TRANSCRIPT INFO'!J43,'TRANSCRIPT INFO'!J43*2/3)))","v":0},{"$f":"+IF('TRANSCRIPT INFO'!O43=\"N/A\",\"N/A \",'TRANSCRIPT INFO'!O43)","v":"N/A "},{"$f":"IF('TRANSCRIPT INFO'!F43=\"Y\",'TRANSCRIPT INFO'!D43,0)","v":0},0,0,0,0,{"$f":"IF('TRANSCRIPT INFO'!E43=\"Y\",VLOOKUP(D45,$N$1:$O$15,2,FALSE),0)","v":0},{"$f":"IF('TRANSCRIPT INFO'!F43=\"Y\",VLOOKUP(F45,$N$1:$O$15,2,FALSE),0)","v":0},0,{"$f":"IF('TRANSCRIPT INFO'!E43=\"Y\",IF('UNOFFICIAL GPA'!D45=\"N/A\",0,'UNOFFICIAL GPA'!E45),0)","v":0}]
[{"$f":"+'TRANSCRIPT INFO'!A44","v":27},{"$f":"IF('TRANSCRIPT INFO'!E44=\"Y\",+'TRANSCRIPT INFO'!B44,'TRANSCRIPT INFO'!H44)","v":"MATE 185"},{"$f":"IF('TRANSCRIPT INFO'!E44=\"Y\",+'TRANSCRIPT INFO'!C44,'TRANSCRIPT INFO'!I44)","v":"CERAMICS"},{"$f":"+IF('TRANSCRIPT INFO'!L44=\"N/A\",\"N/A\",'TRANSCRIPT INFO'!L44)","v":"N/A"},{"$f":"IF('TRANSCRIPT INFO'!L44=\"N/A\",0,IF('TRANSCRIPT INFO'!E44=\"Y\",'TRANSCRIPT INFO'!D44,IF('TRANSCRIPT INFO'!K44=\"S\",'TRANSCRIPT INFO'!J44,'TRANSCRIPT INFO'!J44*2/3)))","v":0},{"$f":"+IF('TRANSCRIPT INFO'!O44=\"N/A\",\"N/A \",'TRANSCRIPT INFO'!O44)","v":"N/A "},{"$f":"IF('TRANSCRIPT INFO'!F44=\"Y\",'TRANSCRIPT INFO'!D44,0)","v":0},0,0,0,0,{"$f":"IF('TRANSCRIPT INFO'!E44=\"Y\",VLOOKUP(D46,$N$1:$O$15,2,FALSE),0)","v":0},{"$f":"IF('TRANSCRIPT INFO'!F44=\"Y\",VLOOKUP(F46,$N$1:$O$15,2,FALSE),0)","v":0},0,{"$f":"IF('TRANSCRIPT INFO'!E44=\"Y\",IF('UNOFFICIAL GPA'!D46=\"N/A\",0,'UNOFFICIAL GPA'!E46),0)","v":0}]
[{"$f":"+'TRANSCRIPT INFO'!A45","v":28},{"$f":"IF('TRANSCRIPT INFO'!E45=\"Y\",+'TRANSCRIPT INFO'!B45,'TRANSCRIPT INFO'!H45)","v":"MATE 186"},{"$f":"IF('TRANSCRIPT INFO'!E45=\"Y\",+'TRANSCRIPT INFO'!C45,'TRANSCRIPT INFO'!I45)","v":"POLYMERS"},{"$f":"+IF('TRANSCRIPT INFO'!L45=\"N/A\",\"N/A\",'TRANSCRIPT INFO'!L45)","v":"N/A"},{"$f":"IF('TRANSCRIPT INFO'!L45=\"N/A\",0,IF('TRANSCRIPT INFO'!E45=\"Y\",'TRANSCRIPT INFO'!D45,IF('TRANSCRIPT INFO'!K45=\"S\",'TRANSCRIPT INFO'!J45,'TRANSCRIPT INFO'!J45*2/3)))","v":0},{"$f":"+IF('TRANSCRIPT INFO'!O45=\"N/A\",\"N/A \",'TRANSCRIPT INFO'!O45)","v":"N/A "},{"$f":"IF('TRANSCRIPT INFO'!F45=\"Y\",'TRANSCRIPT INFO'!D45,0)","v":0},0,0,0,0,{"$f":"IF('TRANSCRIPT INFO'!E45=\"Y\",VLOOKUP(D47,$N$1:$O$15,2,FALSE),0)","v":0},{"$f":"IF('TRANSCRIPT INFO'!F45=\"Y\",VLOOKUP(F47,$N$1:$O$15,2,FALSE),0)","v":0},0,{"$f":"IF('TRANSCRIPT INFO'!E45=\"Y\",IF('UNOFFICIAL GPA'!D47=\"N/A\",0,'UNOFFICIAL GPA'!E47),0)","v":0}]
[{"$f":"+'TRANSCRIPT INFO'!A46","v":29},{"$f":"IF('TRANSCRIPT INFO'!E46=\"Y\",+'TRANSCRIPT INFO'!B46,'TRANSCRIPT INFO'!H46)","v":"MATE 195"},{"$f":"IF('TRANSCRIPT INFO'!E46=\"Y\",+'TRANSCRIPT INFO'!C46,'TRANSCRIPT INFO'!I46)","v":"MECHANICAL BEHAVIOR OF MATERIALS"},{"$f":"+IF('TRANSCRIPT INFO'!L46=\"N/A\",\"N/A\",'TRANSCRIPT INFO'!L46)","v":"N/A"},{"$f":"IF('TRANSCRIPT INFO'!L46=\"N/A\",0,IF('TRANSCRIPT INFO'!E46=\"Y\",'TRANSCRIPT INFO'!D46,IF('TRANSCRIPT INFO'!K46=\"S\",'TRANSCRIPT INFO'!J46,'TRANSCRIPT INFO'!J46*2/3)))","v":0},{"$f":"+IF('TRANSCRIPT INFO'!O46=\"N/A\",\"N/A \",'TRANSCRIPT INFO'!O46)","v":"N/A "},{"$f":"IF('TRANSCRIPT INFO'!F46=\"Y\",'TRANSCRIPT INFO'!D46,0)","v":0},0,0,0,0,{"$f":"IF('TRANSCRIPT INFO'!E46=\"Y\",VLOOKUP(D48,$N$1:$O$15,2,FALSE),0)","v":0},{"$f":"IF('TRANSCRIPT INFO'!F46=\"Y\",VLOOKUP(F48,$N$1:$O$15,2,FALSE),0)","v":0},0,{"$f":"IF('TRANSCRIPT INFO'!E46=\"Y\",IF('UNOFFICIAL GPA'!D48=\"N/A\",0,'UNOFFICIAL GPA'!E48),0)","v":0}]
[{"$f":"+'TRANSCRIPT INFO'!A47","v":30},{"$f":"IF('TRANSCRIPT INFO'!E47=\"Y\",+'TRANSCRIPT INFO'!B47,'TRANSCRIPT INFO'!H47)","v":"MATE 198A"},{"$f":"IF('TRANSCRIPT INFO'!E47=\"Y\",+'TRANSCRIPT INFO'!C47,'TRANSCRIPT INFO'!I47)","v":"SENIOR DESIGN"},{"$f":"+IF('TRANSCRIPT INFO'!L47=\"N/A\",\"N/A\",'TRANSCRIPT INFO'!L47)","v":"N/A"},{"$f":"IF('TRANSCRIPT INFO'!L47=\"N/A\",0,IF('TRANSCRIPT INFO'!E47=\"Y\",'TRANSCRIPT INFO'!D47,IF('TRANSCRIPT INFO'!K47=\"S\",'TRANSCRIPT INFO'!J47,'TRANSCRIPT INFO'!J47*2/3)))","v":0},{"$f":"+IF('TRANSCRIPT INFO'!O47=\"N/A\",\"N/A \",'TRANSCRIPT INFO'!O47)","v":"N/A "},{"$f":"IF('TRANSCRIPT INFO'!F47=\"Y\",'TRANSCRIPT INFO'!D47,0)","v":0},0,0,0,0,{"$f":"IF('TRANSCRIPT INFO'!E47=\"Y\",VLOOKUP(D49,$N$1:$O$15,2,FALSE),0)","v":0},{"$f":"IF('TRANSCRIPT INFO'!F47=\"Y\",VLOOKUP(F49,$N$1:$O$15,2,FALSE),0)","v":0},0,{"$f":"IF('TRANSCRIPT INFO'!E47=\"Y\",IF('UNOFFICIAL GPA'!D49=\"N/A\",0,'UNOFFICIAL GPA'!E49),0)","v":0}]
[{"$f":"+'TRANSCRIPT INFO'!A48","v":31},{"$f":"IF('TRANSCRIPT INFO'!E48=\"Y\",+'TRANSCRIPT INFO'!B48,'TRANSCRIPT INFO'!H48)","v":"MATE 198B"},{"$f":"IF('TRANSCRIPT INFO'!E48=\"Y\",+'TRANSCRIPT INFO'!C48,'TRANSCRIPT INFO'!I48)","v":"SENIOR DESIGN"},{"$f":"+IF('TRANSCRIPT INFO'!L48=\"N/A\",\"N/A\",'TRANSCRIPT INFO'!L48)","v":"N/A"},{"$f":"IF('TRANSCRIPT INFO'!L48=\"N/A\",0,IF('TRANSCRIPT INFO'!E48=\"Y\",'TRANSCRIPT INFO'!D48,IF('TRANSCRIPT INFO'!K48=\"S\",'TRANSCRIPT INFO'!J48,'TRANSCRIPT INFO'!J48*2/3)))","v":0},{"$f":"+IF('TRANSCRIPT INFO'!O48=\"N/A\",\"N/A \",'TRANSCRIPT INFO'!O48)","v":"N/A "},{"$f":"IF('TRANSCRIPT INFO'!F48=\"Y\",'TRANSCRIPT INFO'!D48,0)","v":0},0,0,0,0,{"$f":"IF('TRANSCRIPT INFO'!E48=\"Y\",VLOOKUP(D50,$N$1:$O$15,2,FALSE),0)","v":0},{"$f":"IF('TRANSCRIPT INFO'!F48=\"Y\",VLOOKUP(F50,$N$1:$O$15,2,FALSE),0)","v":0},0,{"$f":"IF('TRANSCRIPT INFO'!E48=\"Y\",IF('UNOFFICIAL GPA'!D50=\"N/A\",0,'UNOFFICIAL GPA'!E50),0)","v":0}]
[{"$f":"+'TRANSCRIPT INFO'!A49","v":32},{"$f":"IF('TRANSCRIPT INFO'!E49=\"Y\",+'TRANSCRIPT INFO'!B49,'TRANSCRIPT INFO'!H49)","v":"CHE 161"},{"$f":"IF('TRANSCRIPT INFO'!E49=\"Y\",+'TRANSCRIPT INFO'!C49,'TRANSCRIPT INFO'!I49)","v":"PROCESS SAFETY & ENGR. ETHICS"},{"$f":"+IF('TRANSCRIPT INFO'!L49=\"N/A\",\"N/A\",'TRANSCRIPT INFO'!L49)","v":"N/A"},{"$f":"IF('TRANSCRIPT INFO'!L49=\"N/A\",0,IF('TRANSCRIPT INFO'!E49=\"Y\",'TRANSCRIPT INFO'!D49,IF('TRANSCRIPT INFO'!K49=\"S\",'TRANSCRIPT INFO'!J49,'TRANSCRIPT INFO'!J49*2/3)))","v":0},{"$f":"+IF('TRANSCRIPT INFO'!O49=\"N/A\",\"N/A \",'TRANSCRIPT INFO'!O49)","v":"N/A "},{"$f":"IF('TRANSCRIPT INFO'!F49=\"Y\",'TRANSCRIPT INFO'!D49,0)","v":0},0,0,0,0,{"$f":"IF('TRANSCRIPT INFO'!E49=\"Y\",VLOOKUP(D51,$N$1:$O$15,2,FALSE),0)","v":0},{"$f":"IF('TRANSCRIPT INFO'!F49=\"Y\",VLOOKUP(F51,$N$1:$O$15,2,FALSE),0)","v":0},0,{"$f":"IF('TRANSCRIPT INFO'!E49=\"Y\",IF('UNOFFICIAL GPA'!D51=\"N/A\",0,'UNOFFICIAL GPA'!E51),0)","v":0}]
[{"$f":"+'TRANSCRIPT INFO'!A50","v":33},{"$f":"IF('TRANSCRIPT INFO'!E50=\"Y\",+'TRANSCRIPT INFO'!B50,'TRANSCRIPT INFO'!H50)","v":"CHE 162"},{"$f":"IF('TRANSCRIPT INFO'!E50=\"Y\",+'TRANSCRIPT INFO'!C50,'TRANSCRIPT INFO'!I50)","v":"ENGINEERING STATISTICS & ANALYSIS"},{"$f":"+IF('TRANSCRIPT INFO'!L50=\"N/A\",\"N/A\",'TRANSCRIPT INFO'!L50)","v":"N/A"},{"$f":"IF('TRANSCRIPT INFO'!L50=\"N/A\",0,IF('TRANSCRIPT INFO'!E50=\"Y\",'TRANSCRIPT INFO'!D50,IF('TRANSCRIPT INFO'!K50=\"S\",'TRANSCRIPT INFO'!J50,'TRANSCRIPT INFO'!J50*2/3)))","v":0},{"$f":"+IF('TRANSCRIPT INFO'!O50=\"N/A\",\"N/A \",'TRANSCRIPT INFO'!O50)","v":"N/A "},{"$f":"IF('TRANSCRIPT INFO'!F50=\"Y\",'TRANSCRIPT INFO'!D50,0)","v":0},0,0,0,0,{"$f":"IF('TRANSCRIPT INFO'!E50=\"Y\",VLOOKUP(D52,$N$1:$O$15,2,FALSE),0)","v":0},{"$f":"IF('TRANSCRIPT INFO'!F50=\"Y\",VLOOKUP(F52,$N$1:$O$15,2,FALSE),0)","v":0},0,{"$f":"IF('TRANSCRIPT INFO'!E50=\"Y\",IF('UNOFFICIAL GPA'!D52=\"N/A\",0,'UNOFFICIAL GPA'!E52),0)","v":0}]
[{"$f":"+'TRANSCRIPT INFO'!A51","v":34},{"$f":"IF('TRANSCRIPT INFO'!E51=\"Y\",+'TRANSCRIPT INFO'!B51,'TRANSCRIPT INFO'!H51)","v":"MATE 145"},{"$f":"IF('TRANSCRIPT INFO'!E51=\"Y\",+'TRANSCRIPT INFO'!C51,'TRANSCRIPT INFO'!I51)","v":"PRINCIPLES OF SCANNING PROBE MICOROSCOPY"},{"$f":"+IF('TRANSCRIPT INFO'!L51=\"N/A\",\"N/A\",'TRANSCRIPT INFO'!L51)","v":"N/A"},{"$f":"IF('TRANSCRIPT INFO'!L51=\"N/A\",0,IF('TRANSCRIPT INFO'!E51=\"Y\",'TRANSCRIPT INFO'!D51,IF('TRANSCRIPT INFO'!K51=\"S\",'TRANSCRIPT INFO'!J51,'TRANSCRIPT INFO'!J51*2/3)))","v":0},{"$f":"+IF('TRANSCRIPT INFO'!O51=\"N/A\",\"N/A \",'TRANSCRIPT INFO'!O51)","v":"N/A "},{"$f":"IF('TRANSCRIPT INFO'!F51=\"Y\",'TRANSCRIPT INFO'!D51,0)","v":0},0,0,0,0,{"$f":"IF('TRANSCRIPT INFO'!E51=\"Y\",VLOOKUP(D53,$N$1:$O$15,2,FALSE),0)","v":0},{"$f":"IF('TRANSCRIPT INFO'!F51=\"Y\",VLOOKUP(F53,$N$1:$O$15,2,FALSE),0)","v":0},0,{"$f":"IF('TRANSCRIPT INFO'!E51=\"Y\",IF('UNOFFICIAL GPA'!D53=\"N/A\",0,'UNOFFICIAL GPA'!E53),0)","v":0}]
[{"$f":"+'TRANSCRIPT INFO'!A52","v":35},{"$f":"IF('TRANSCRIPT INFO'!E52=\"Y\",+'TRANSCRIPT INFO'!B52,'TRANSCRIPT INFO'!H52)","v":"ENGR 100W"},{"$f":"IF('TRANSCRIPT INFO'!E52=\"Y\",+'TRANSCRIPT INFO'!C52,'TRANSCRIPT INFO'!I52)","v":"ENGINEERING REPORTS"},{"$f":"+IF('TRANSCRIPT INFO'!L52=\"N/A\",\"N/A\",'TRANSCRIPT INFO'!L52)","v":"N/A"},{"$f":"IF('TRANSCRIPT INFO'!L52=\"N/A\",0,IF('TRANSCRIPT INFO'!E52=\"Y\",'TRANSCRIPT INFO'!D52,IF('TRANSCRIPT INFO'!K52=\"S\",'TRANSCRIPT INFO'!J52,'TRANSCRIPT INFO'!J52*2/3)))","v":0},{"$f":"+IF('TRANSCRIPT INFO'!O52=\"N/A\",\"N/A \",'TRANSCRIPT INFO'!O52)","v":"N/A "},{"$f":"IF('TRANSCRIPT INFO'!F52=\"Y\",'TRANSCRIPT INFO'!D52,0)","v":0},0,0,0,0,{"$f":"IF('TRANSCRIPT INFO'!E52=\"Y\",VLOOKUP(D54,$N$1:$O$15,2,FALSE),0)","v":0},{"$f":"IF('TRANSCRIPT INFO'!F52=\"Y\",VLOOKUP(F54,$N$1:$O$15,2,FALSE),0)","v":0},0,{"$f":"IF('TRANSCRIPT INFO'!E52=\"Y\",IF('UNOFFICIAL GPA'!D54=\"N/A\",0,'UNOFFICIAL GPA'!E54),0)","v":0}]
[{"$f":"+'TRANSCRIPT INFO'!A53","v":36},{"$f":"IF('TRANSCRIPT INFO'!E53=\"Y\",+'TRANSCRIPT INFO'!B53,'TRANSCRIPT INFO'!H53)","v":"MATE 143"},{"$f":"IF('TRANSCRIPT INFO'!E53=\"Y\",+'TRANSCRIPT INFO'!C53,'TRANSCRIPT INFO'!I53)","v":"SEM LABORATORY"},{"$f":"+IF('TRANSCRIPT INFO'!L53=\"N/A\",\"N/A\",'TRANSCRIPT INFO'!L53)","v":"N/A"},{"$f":"IF('TRANSCRIPT INFO'!L53=\"N/A\",0,IF('TRANSCRIPT INFO'!E53=\"Y\",'TRANSCRIPT INFO'!D53,IF('TRANSCRIPT INFO'!K53=\"S\",'TRANSCRIPT INFO'!J53,'TRANSCRIPT INFO'!J53*2/3)))","v":0},{"$f":"+IF('TRANSCRIPT INFO'!O53=\"N/A\",\"N/A \",'TRANSCRIPT INFO'!O53)","v":"N/A "},{"$f":"IF('TRANSCRIPT INFO'!F53=\"Y\",'TRANSCRIPT INFO'!D53,0)","v":0},0,0,0,0,{"$f":"IF('TRANSCRIPT INFO'!E53=\"Y\",VLOOKUP(D55,$N$1:$O$15,2,FALSE),0)","v":0},{"$f":"IF('TRANSCRIPT INFO'!F53=\"Y\",VLOOKUP(F55,$N$1:$O$15,2,FALSE),0)","v":0},0,{"$f":"IF('TRANSCRIPT INFO'!E53=\"Y\",IF('UNOFFICIAL GPA'!D55=\"N/A\",0,'UNOFFICIAL GPA'!E55),0)","v":0}]
[{"$f":"+'TRANSCRIPT INFO'!A54","v":37},{"$f":"IF('TRANSCRIPT INFO'!E54=\"Y\",+'TRANSCRIPT INFO'!B54,'TRANSCRIPT INFO'!H54)","v":"MATE 144"},{"$f":"IF('TRANSCRIPT INFO'!E54=\"Y\",+'TRANSCRIPT INFO'!C54,'TRANSCRIPT INFO'!I54)","v":"XRD LABORATORY"},{"$f":"+IF('TRANSCRIPT INFO'!L54=\"N/A\",\"N/A\",'TRANSCRIPT INFO'!L54)","v":"N/A"},{"$f":"IF('TRANSCRIPT INFO'!L54=\"N/A\",0,IF('TRANSCRIPT INFO'!E54=\"Y\",'TRANSCRIPT INFO'!D54,IF('TRANSCRIPT INFO'!K54=\"S\",'TRANSCRIPT INFO'!J54,'TRANSCRIPT INFO'!J54*2/3)))","v":0},{"$f":"+IF('TRANSCRIPT INFO'!O54=\"N/A\",\"N/A \",'TRANSCRIPT INFO'!O54)","v":"N/A "},{"$f":"IF('TRANSCRIPT INFO'!F54=\"Y\",'TRANSCRIPT INFO'!D54,0)","v":0},0,0,0,0,{"$f":"IF('TRANSCRIPT INFO'!E54=\"Y\",VLOOKUP(D56,$N$1:$O$15,2,FALSE),0)","v":0},{"$f":"IF('TRANSCRIPT INFO'!F54=\"Y\",VLOOKUP(F56,$N$1:$O$15,2,FALSE),0)","v":0},0,{"$f":"IF('TRANSCRIPT INFO'!E54=\"Y\",IF('UNOFFICIAL GPA'!D56=\"N/A\",0,'UNOFFICIAL GPA'!E56),0)","v":0}]
[{"$f":"+'TRANSCRIPT INFO'!A55","v":38},{"$f":"IF('TRANSCRIPT INFO'!E55=\"Y\",+'TRANSCRIPT INFO'!B55,'TRANSCRIPT INFO'!H55)","v":0},{"$f":"IF('TRANSCRIPT INFO'!E55=\"Y\",+'TRANSCRIPT INFO'!C55,'TRANSCRIPT INFO'!I55)","v":0},{"$f":"+IF('TRANSCRIPT INFO'!L55=\"N/A\",\"N/A\",'TRANSCRIPT INFO'!L55)","v":"N/A"},{"$f":"IF('TRANSCRIPT INFO'!L55=\"N/A\",0,IF('TRANSCRIPT INFO'!E55=\"Y\",'TRANSCRIPT INFO'!D55,IF('TRANSCRIPT INFO'!K55=\"S\",'TRANSCRIPT INFO'!J55,'TRANSCRIPT INFO'!J55*2/3)))","v":0},{"$f":"+IF('TRANSCRIPT INFO'!O55=\"N/A\",\"N/A \",'TRANSCRIPT INFO'!O55)","v":"N/A "},{"$f":"IF('TRANSCRIPT INFO'!F55=\"Y\",'TRANSCRIPT INFO'!D55,0)","v":0},0,0,0,0,{"$f":"IF('TRANSCRIPT INFO'!E55=\"Y\",VLOOKUP(D57,$N$1:$O$15,2,FALSE),0)","v":0},{"$f":"IF('TRANSCRIPT INFO'!F55=\"Y\",VLOOKUP(F57,$N$1:$O$15,2,FALSE),0)","v":0},0,{"$f":"IF('TRANSCRIPT INFO'!E55=\"Y\",IF('UNOFFICIAL GPA'!D57=\"N/A\",0,'UNOFFICIAL GPA'!E57),0)","v":0}]
["SUBTOTALS",null,null,null,{"$f":"SUM(E38:E57)","v":0},null,{"$f":"SUM(G38:G57)","v":0},{"$f":"SUM(H38:H57)","v":0},0,0,0,0,0,0,0]
[{"$f":"+'TRANSCRIPT INFO'!A57","v":39},{"$f":"IF('TRANSCRIPT INFO'!E57=\"Y\",+'TRANSCRIPT INFO'!B57,'TRANSCRIPT INFO'!H57)","v":0},{"$f":"IF('TRANSCRIPT INFO'!E57=\"Y\",+'TRANSCRIPT INFO'!C57,'TRANSCRIPT INFO'!I57)","v":0},{"$f":"+IF('TRANSCRIPT INFO'!L57=\"N/A\",\"N/A\",'TRANSCRIPT INFO'!L57)","v":"N/A"},{"$f":"IF('TRANSCRIPT INFO'!L57=\"N/A\",0,IF('TRANSCRIPT INFO'!E57=\"Y\",'TRANSCRIPT INFO'!D57,IF('TRANSCRIPT INFO'!K57=\"S\",'TRANSCRIPT INFO'!J57,'TRANSCRIPT INFO'!J57*2/3)))","v":0},{"$f":"+IF('TRANSCRIPT INFO'!O57=\"N/A\",\"N/A \",'TRANSCRIPT INFO'!O57)","v":"N/A "},{"$f":"IF('TRANSCRIPT INFO'!F57=\"Y\",'TRANSCRIPT INFO'!D57,0)","v":0},{"$f":"VLOOKUP(D59,$N$1:$O$15,2)","v":0},{"$f":"VLOOKUP(F59,$N$1:$O$15,2)","v":0},{"$f":"+E59*H59+G59*I59","v":0},{"$f":"IF(D59=0,0,E59)+IF(F59=0,0,G59)","v":0},{"$f":"IF('TRANSCRIPT INFO'!E57=\"Y\",VLOOKUP(D59,$N$1:$O$15,2,FALSE),0)","v":0},{"$f":"IF('TRANSCRIPT INFO'!F57=\"Y\",VLOOKUP(F59,$N$1:$O$15,2,FALSE),0)","v":0},{"$f":"+E59*L59+G59*M59","v":0},{"$f":"IF('TRANSCRIPT INFO'!E57=\"Y\",IF('UNOFFICIAL GPA'!D59=\"N/A\",0,'UNOFFICIAL GPA'!E59),0)","v":0}]
[{"$f":"+'TRANSCRIPT INFO'!A58","v":40},{"$f":"IF('TRANSCRIPT INFO'!E58=\"Y\",+'TRANSCRIPT INFO'!B58,'TRANSCRIPT INFO'!H58)","v":0},{"$f":"IF('TRANSCRIPT INFO'!E58=\"Y\",+'TRANSCRIPT INFO'!C58,'TRANSCRIPT INFO'!I58)","v":0},{"$f":"+IF('TRANSCRIPT INFO'!L58=\"N/A\",\"N/A\",'TRANSCRIPT INFO'!L58)","v":"N/A"},{"$f":"IF('TRANSCRIPT INFO'!L58=\"N/A\",0,IF('TRANSCRIPT INFO'!E58=\"Y\",'TRANSCRIPT INFO'!D58,IF('TRANSCRIPT INFO'!K58=\"S\",'TRANSCRIPT INFO'!J58,'TRANSCRIPT INFO'!J58*2/3)))","v":0},{"$f":"+IF('TRANSCRIPT INFO'!O58=\"N/A\",\"N/A \",'TRANSCRIPT INFO'!O58)","v":"N/A "},{"$f":"IF('TRANSCRIPT INFO'!F58=\"Y\",'TRANSCRIPT INFO'!D58,0)","v":0},{"$f":"VLOOKUP(D60,$N$1:$O$15,2)","v":0},{"$f":"VLOOKUP(F60,$N$1:$O$15,2)","v":0},{"$f":"+E60*H60+G60*I60","v":0},{"$f":"IF(D60=0,0,E60)+IF(F60=0,0,G60)","v":0},{"$f":"IF('TRANSCRIPT INFO'!E58=\"Y\",VLOOKUP(D60,$N$1:$O$15,2,FALSE),0)","v":0},{"$f":"IF('TRANSCRIPT INFO'!F58=\"Y\",VLOOKUP(F60,$N$1:$O$15,2,FALSE),0)","v":0},{"$f":"+E60*L60+G60*M60","v":0},{"$f":"IF('TRANSCRIPT INFO'!E58=\"Y\",IF('UNOFFICIAL GPA'!D60=\"N/A\",0,'UNOFFICIAL GPA'!E60),0)","v":0}]
[{"$f":"+'TRANSCRIPT INFO'!A59","v":41},{"$f":"IF('TRANSCRIPT INFO'!E59=\"Y\",+'TRANSCRIPT INFO'!B59,'TRANSCRIPT INFO'!H59)","v":0},{"$f":"IF('TRANSCRIPT INFO'!E59=\"Y\",+'TRANSCRIPT INFO'!C59,'TRANSCRIPT INFO'!I59)","v":0},{"$f":"+IF('TRANSCRIPT INFO'!L59=\"N/A\",\"N/A\",'TRANSCRIPT INFO'!L59)","v":"N/A"},{"$f":"IF('TRANSCRIPT INFO'!L59=\"N/A\",0,IF('TRANSCRIPT INFO'!E59=\"Y\",'TRANSCRIPT INFO'!D59,IF('TRANSCRIPT INFO'!K59=\"S\",'TRANSCRIPT INFO'!J59,'TRANSCRIPT INFO'!J59*2/3)))","v":0},{"$f":"+IF('TRANSCRIPT INFO'!O59=\"N/A\",\"N/A \",'TRANSCRIPT INFO'!O59)","v":"N/A "},{"$f":"IF('TRANSCRIPT INFO'!F59=\"Y\",'TRANSCRIPT INFO'!D59,0)","v":0},{"$f":"VLOOKUP(D61,$N$1:$O$15,2)","v":0},{"$f":"VLOOKUP(F61,$N$1:$O$15,2)","v":0},{"$f":"+E61*H61+G61*I61","v":0},{"$f":"IF(D61=0,0,E61)+IF(F61=0,0,G61)","v":0},{"$f":"IF('TRANSCRIPT INFO'!E59=\"Y\",VLOOKUP(D61,$N$1:$O$15,2,FALSE),0)","v":0},{"$f":"IF('TRANSCRIPT INFO'!F59=\"Y\",VLOOKUP(F61,$N$1:$O$15,2,FALSE),0)","v":0},{"$f":"+E61*L61+G61*M61","v":0},{"$f":"IF('TRANSCRIPT INFO'!E59=\"Y\",IF('UNOFFICIAL GPA'!D61=\"N/A\",0,'UNOFFICIAL GPA'!E61),0)","v":0}]
[{"$f":"+'TRANSCRIPT INFO'!A62","v":44},{"$f":"IF('TRANSCRIPT INFO'!E62=\"Y\",+'TRANSCRIPT INFO'!B62,'TRANSCRIPT INFO'!H62)","v":0},{"$f":"IF('TRANSCRIPT INFO'!E62=\"Y\",+'TRANSCRIPT INFO'!C62,'TRANSCRIPT INFO'!I62)","v":0},{"$f":"+IF('TRANSCRIPT INFO'!L62=\"N/A\",\"N/A\",'TRANSCRIPT INFO'!L62)","v":0},{"$f":"IF('TRANSCRIPT INFO'!L62=\"N/A\",0,IF('TRANSCRIPT INFO'!E62=\"Y\",'TRANSCRIPT INFO'!D62,IF('TRANSCRIPT INFO'!K62=\"S\",'TRANSCRIPT INFO'!J62,'TRANSCRIPT INFO'!J62*2/3)))","v":0},{"$f":"+IF('TRANSCRIPT INFO'!O62=\"N/A\",\"N/A \",'TRANSCRIPT INFO'!O62)","v":0},{"$f":"IF('TRANSCRIPT INFO'!F62=\"Y\",'TRANSCRIPT INFO'!D62,0)","v":0},{"$f":"VLOOKUP(D62,$N$1:$O$15,2)","v":0},{"$f":"VLOOKUP(F62,$N$1:$O$15,2)","v":0},{"$f":"+E62*H62+G62*I62","v":0},{"$f":"IF(D62=0,0,E62)+IF(F62=0,0,G62)","v":0},{"$f":"IF('TRANSCRIPT INFO'!E62=\"Y\",VLOOKUP(D62,$N$1:$O$15,2,FALSE),0)","v":0},{"$f":"IF('TRANSCRIPT INFO'!F62=\"Y\",VLOOKUP(F62,$N$1:$O$15,2,FALSE),0)","v":0},{"$f":"+E62*L62+G62*M62","v":0},{"$f":"IF('TRANSCRIPT INFO'!E62=\"Y\",IF('UNOFFICIAL GPA'!D62=\"N/A\",0,'UNOFFICIAL GPA'!E62),0)","v":0}]
["SUBTOTALS",null,null,null,{"$f":"SUM(E59:E62)","v":0},null,{"$f":"SUM(G59:G62)","v":0},{"$f":"SUM(H59:H62)","v":0},0,0,0,0,0,0,0]

{"sheet":"SCHEDULE","index":6,"n_rows":96,"n_cols":9,"rows_kept":96,"cut":false,"hidden":false,"merged":[]}
["This sheet provides a summary of the schedule to complete Major Courses for the Program. "]
["The schedule is generated by a macro. Enter Alt F8, then run the macro called PS. "]
[]
["Data from Transcript & GE Sheets",null,null,null,null,"Schedule for Major and GE Courses"]
["COURSE","GRADE","SEMESTER","YEAR",null,"COURSE","GRADE","SEMESTER","YEAR"]
[{"$f":"+'TRANSCRIPT INFO'!B16","v":"MATH 30"},{"$f":"IF(+'TRANSCRIPT INFO'!L16=\"\",0,IF('TRANSCRIPT INFO'!L16=\"N/A\",0,'TRANSCRIPT INFO'!L16))","v":0},{"$f":"+'TRANSCRIPT INFO'!M16","v":" "},{"$f":"+'TRANSCRIPT INFO'!N16","v":0},null,0,0,0,0]
[{"$f":"+'TRANSCRIPT INFO'!B17","v":"MATH 31"},{"$f":"IF(+'TRANSCRIPT INFO'!L17=\"\",0,IF('TRANSCRIPT INFO'!L17=\"N/A\",0,'TRANSCRIPT INFO'!L17))","v":0},{"$f":"+'TRANSCRIPT INFO'!M17","v":" "},{"$f":"+'TRANSCRIPT INFO'!N17","v":0},null,0,0,0,0]
[{"$f":"+'TRANSCRIPT INFO'!B18","v":"MATH 32"},{"$f":"IF(+'TRANSCRIPT INFO'!L18=\"\",0,IF('TRANSCRIPT INFO'!L18=\"N/A\",0,'TRANSCRIPT INFO'!L18))","v":0},{"$f":"+'TRANSCRIPT INFO'!M18","v":" "},{"$f":"+'TRANSCRIPT INFO'!N18","v":0},null,0,0,0,0]
[{"$f":"+'TRANSCRIPT INFO'!B19","v":0},{"$f":"IF(+'TRANSCRIPT INFO'!L19=\"\",0,IF('TRANSCRIPT INFO'!L19=\"N/A\",0,'TRANSCRIPT INFO'!L19))","v":0},{"$f":"+'TRANSCRIPT INFO'!M19","v":" "},{"$f":"+'TRANSCRIPT INFO'!N19","v":0},null,"",0,0,0]
[{"$f":"+'TRANSCRIPT INFO'!B20","v":"MATH 133A"},{"$f":"IF(+'TRANSCRIPT INFO'!L20=\"\",0,IF('TRANSCRIPT INFO'!L20=\"N/A\",0,'TRANSCRIPT INFO'!L20))","v":0},{"$f":"+'TRANSCRIPT INFO'!M20","v":" "},{"$f":"+'TRANSCRIPT INFO'!N20","v":0},null,"A1 - ORAL COMMUNICATION",0,0,0]
[{"$f":"+'TRANSCRIPT INFO'!B21","v":"CHEM 1A"},{"$f":"IF(+'TRANSCRIPT INFO'!L21=\"\",0,IF('TRANSCRIPT INFO'!L21=\"N/A\",0,'TRANSCRIPT INFO'!L21))","v":0},{"$f":"+'TRANSCRIPT INFO'!M21","v":" "},{"$f":"+'TRANSCRIPT INFO'!N21","v":0},null,"A2 - WRITTEN COMMUNICATION",0,0,0]
[{"$f":"+'TRANSCRIPT INFO'!B22","v":"CHEM 1B"},{"$f":"IF(+'TRANSCRIPT INFO'!L22=\"\",0,IF('TRANSCRIPT INFO'!L22=\"N/A\",0,'TRANSCRIPT INFO'!L22))","v":0},{"$f":"+'TRANSCRIPT INFO'!M22","v":" "},{"$f":"+'TRANSCRIPT INFO'!N22","v":0},null,"AREAS C, D and F",0,0,0]
[{"$f":"+'TRANSCRIPT INFO'!B23","v":0},{"$f":"IF(+'TRANSCRIPT INFO'!L23=\"\",0,IF('TRANSCRIPT INFO'!L23=\"N/A\",0,'TRANSCRIPT INFO'!L23))","v":0},{"$f":"+'TRANSCRIPT INFO'!M23","v":" "},{"$f":"+'TRANSCRIPT INFO'!N23","v":0},null,"AREAS C, D and F",0,0,0]
[{"$f":"+'TRANSCRIPT INFO'!B24","v":"PHYS 50"},{"$f":"IF(+'TRANSCRIPT INFO'!L24=\"\",0,IF('TRANSCRIPT INFO'!L24=\"N/A\",0,'TRANSCRIPT INFO'!L24))","v":0},{"$f":"+'TRANSCRIPT INFO'!M24","v":" "},{"$f":"+'TRANSCRIPT INFO'!N24","v":0},null,"C3 - WRITTEN COMMUNICATION",0,0,0]
[{"$f":"+'TRANSCRIPT INFO'!B25","v":"PHYS 51"},{"$f":"IF(+'TRANSCRIPT INFO'!L25=\"\",0,IF('TRANSCRIPT INFO'!L25=\"N/A\",0,'TRANSCRIPT INFO'!L25))","v":0},{"$f":"+'TRANSCRIPT INFO'!M25","v":" "},{"$f":"+'TRANSCRIPT INFO'!N25","v":0},null,"E - HUMAN UNDERSTANDING",0,0,0]
[{"$f":"+'TRANSCRIPT INFO'!B26","v":0},{"$f":"IF(+'TRANSCRIPT INFO'!L26=\"\",0,IF('TRANSCRIPT INFO'!L26=\"N/A\",0,'TRANSCRIPT INFO'!L26))","v":0},{"$f":"+'TRANSCRIPT INFO'!M26","v":" "},{"$f":"+'TRANSCRIPT INFO'!N26","v":0},null,"HUMAN PERFORMANCE",0,0,0]
[{"$f":"+'TRANSCRIPT INFO'!B27","v":"ENGL 1B"},{"$f":"IF(+'TRANSCRIPT INFO'!L27=\"\",0,IF('TRANSCRIPT INFO'!L27=\"N/A\",0,'TRANSCRIPT INFO'!L27))","v":0},{"$f":"+'TRANSCRIPT INFO'!M27","v":" "},{"$f":"+'TRANSCRIPT INFO'!N27","v":0},null,"HUMAN PERFORMANCE",0,0,0]
[{"$f":"+'TRANSCRIPT INFO'!B28","v":0},{"$f":"IF(+'TRANSCRIPT INFO'!L28=\"\",0,IF('TRANSCRIPT INFO'!L28=\"N/A\",0,'TRANSCRIPT INFO'!L28))","v":0},{"$f":"+'TRANSCRIPT INFO'!M28","v":" "},{"$f":"+'TRANSCRIPT INFO'!N28","v":0},null,"S - SELF, SOCIETY & EQUALITY IN THE US",0,0,0]
[null,null,null,null,null,"V - CULTURE, CIVILIZATION & GLOBAL UNDERS.",0,0,0]
[{"$f":"+'TRANSCRIPT INFO'!B30","v":"ENGR 10"},{"$f":"IF(+'TRANSCRIPT INFO'!L30=\"\",0,IF('TRANSCRIPT INFO'!L30=\"N/A\",0,'TRANSCRIPT INFO'!L30))","v":0},{"$f":"+'TRANSCRIPT INFO'!M30","v":" "},{"$f":"+'TRANSCRIPT INFO'!N30","v":0},null,"Z - WRITTEN COMUNICATION II",0,0,0]
[{"$f":"+'TRANSCRIPT INFO'!B31","v":"MATE 25"},{"$f":"IF(+'TRANSCRIPT INFO'!L31=\"\",0,IF('TRANSCRIPT INFO'!L31=\"N/A\",0,'TRANSCRIPT INFO'!L31))","v":0},{"$f":"+'TRANSCRIPT INFO'!M31","v":" "},{"$f":"+'TRANSCRIPT INFO'!N31","v":0},null,0,0," ",0]
[{"$f":"+'TRANSCRIPT INFO'!B32","v":"CE 99"},{"$f":"IF(+'TRANSCRIPT INFO'!L32=\"\",0,IF('TRANSCRIPT INFO'!L32=\"N/A\",0,'TRANSCRIPT INFO'!L32))","v":0},{"$f":"+'TRANSCRIPT INFO'!M32","v":" "},{"$f":"+'TRANSCRIPT INFO'!N32","v":0},null,0,0," ",0]
[{"$f":"+'TRANSCRIPT INFO'!B33","v":"EE 98"},{"$f":"IF(+'TRANSCRIPT INFO'!L33=\"\",0,IF('TRANSCRIPT INFO'!L33=\"N/A\",0,'TRANSCRIPT INFO'!L33))","v":0},{"$f":"+'TRANSCRIPT INFO'!M33","v":" "},{"$f":"+'TRANSCRIPT INFO'!N33","v":0},null,0,0," ",0]
[{"$f":"+'TRANSCRIPT INFO'!B34","v":0},{"$f":"IF(+'TRANSCRIPT INFO'!L34=\"\",0,IF('TRANSCRIPT INFO'!L34=\"N/A\",0,'TRANSCRIPT INFO'!L34))","v":0},{"$f":"+'TRANSCRIPT INFO'!M34","v":" "},{"$f":"+'TRANSCRIPT INFO'!N34","v":0},null,0,0," ",0]
[null,null,null,null,null,0,0," ",0]
[{"$f":"+'TRANSCRIPT INFO'!B36","v":"CHEM 161A"},{"$f":"IF(+'TRANSCRIPT INFO'!L36=\"\",0,IF('TRANSCRIPT INFO'!L36=\"N/A\",0,'TRANSCRIPT INFO'!L36))","v":0},{"$f":"+'TRANSCRIPT INFO'!M36","v":" "},{"$f":"+'TRANSCRIPT INFO'!N36","v":0},null,0,0," ",0]
[{"$f":"+'TRANSCRIPT INFO'!B37","v":"MATE 115"},{"$f":"IF(+'TRANSCRIPT INFO'!L37=\"\",0,IF('TRANSCRIPT INFO'!L37=\"N/A\",0,'TRANSCRIPT INFO'!L37))","v":0},{"$f":"+'TRANSCRIPT INFO'!M37","v":0},{"$f":"+'TRANSCRIPT INFO'!N37","v":0},null,0,0," ",0]
[{"$f":"+'TRANSCRIPT INFO'!B38","v":"MATE 141"},{"$f":"IF(+'TRANSCRIPT INFO'!L38=\"\",0,IF('TRANSCRIPT INFO'!L38=\"N/A\",0,'TRANSCRIPT INFO'!L38))","v":0},{"$f":"+'TRANSCRIPT INFO'!M38","v":0},{"$f":"+'TRANSCRIPT INFO'!N38","v":0},null,0,0," ",0]
[{"$f":"+'TRANSCRIPT INFO'!B39","v":"MATE 151"},{"$f":"IF(+'TRANSCRIPT INFO'!L39=\"\",0,IF('TRANSCRIPT INFO'!L39=\"N/A\",0,'TRANSCRIPT INFO'!L39))","v":0},{"$f":"+'TRANSCRIPT INFO'!M39","v":0},{"$f":"+'TRANSCRIPT INFO'!N39","v":0},null,"CE 99",0," ",0]
[{"$f":"+'TRANSCRIPT INFO'!B40","v":"MATE 152"},{"$f":"IF(+'TRANSCRIPT INFO'!L40=\"\",0,IF('TRANSCRIPT INFO'!L40=\"N/A\",0,'TRANSCRIPT INFO'!L40))","v":0},{"$f":"+'TRANSCRIPT INFO'!M40","v":0},{"$f":"+'TRANSCRIPT INFO'!N40","v":0},null,"CHE 190",0," ",0]
[{"$f":"+'TRANSCRIPT INFO'!B41","v":"MATE 153"},{"$f":"IF(+'TRANSCRIPT INFO'!L41=\"\",0,IF('TRANSCRIPT INFO'!L41=\"N/A\",0,'TRANSCRIPT INFO'!L41))","v":0},{"$f":"+'TRANSCRIPT INFO'!M41","v":0},{"$f":"+'TRANSCRIPT INFO'!N41","v":0},null,"CHEM 112A",0," ",0]
[{"$f":"+'TRANSCRIPT INFO'!B42","v":"MATE 154"},{"$f":"IF(+'TRANSCRIPT INFO'!L42=\"\",0,IF('TRANSCRIPT INFO'!L42=\"N/A\",0,'TRANSCRIPT INFO'!L42))","v":0},{"$f":"+'TRANSCRIPT INFO'!M42","v":0},{"$f":"+'TRANSCRIPT INFO'!N42","v":0},null,"CHEM 112B",0," ",0]
[{"$f":"+'TRANSCRIPT INFO'!B43","v":"MATE 155"},{"$f":"IF(+'TRANSCRIPT INFO'!L43=\"\",0,IF('TRANSCRIPT INFO'!L43=\"N/A\",0,'TRANSCRIPT INFO'!L43))","v":0},{"$f":"+'TRANSCRIPT INFO'!M43","v":0},{"$f":"+'TRANSCRIPT INFO'!N43","v":0},null,"CHEM 113A",0," ",0]
[{"$f":"+'TRANSCRIPT INFO'!B44","v":"MATE 185"},{"$f":"IF(+'TRANSCRIPT INFO'!L44=\"\",0,IF('TRANSCRIPT INFO'!L44=\"N/A\",0,'TRANSCRIPT INFO'!L44))","v":0},{"$f":"+'TRANSCRIPT INFO'!M44","v":0},{"$f":"+'TRANSCRIPT INFO'!N44","v":0},null,"CHEM 161A",0," ",0]
[{"$f":"+'TRANSCRIPT INFO'!B45","v":"MATE 186"},{"$f":"IF(+'TRANSCRIPT INFO'!L45=\"\",0,IF('TRANSCRIPT INFO'!L45=\"N/A\",0,'TRANSCRIPT INFO'!L45))","v":0},{"$f":"+'TRANSCRIPT INFO'!M45","v":0},{"$f":"+'TRANSCRIPT INFO'!N45","v":0},null,"CHEM 162L",0," ",0]
[{"$f":"+'TRANSCRIPT INFO'!B46","v":"MATE 195"},{"$f":"IF(+'TRANSCRIPT INFO'!L46=\"\",0,IF('TRANSCRIPT INFO'!L46=\"N/A\",0,'TRANSCRIPT INFO'!L46))","v":0},{"$f":"+'TRANSCRIPT INFO'!M46","v":0},{"$f":"+'TRANSCRIPT INFO'!N46","v":0},null,"CHEM 1A",0," ",0]
[{"$f":"+'TRANSCRIPT INFO'!B47","v":"MATE 198A"},{"$f":"IF(+'TRANSCRIPT INFO'!L47=\"\",0,IF('TRANSCRIPT INFO'!L47=\"N/A\",0,'TRANSCRIPT INFO'!L47))","v":0},{"$f":"+'TRANSCRIPT INFO'!M47","v":0},{"$f":"+'TRANSCRIPT INFO'!N47","v":0},null,"CHEM 1B",0," ",0]
[{"$f":"+'TRANSCRIPT INFO'!B48","v":"MATE 198B"},{"$f":"IF(+'TRANSCRIPT INFO'!L48=\"\",0,IF('TRANSCRIPT INFO'!L48=\"N/A\",0,'TRANSCRIPT INFO'!L48))","v":0},{"$f":"+'TRANSCRIPT INFO'!M48","v":0},{"$f":"+'TRANSCRIPT INFO'!N48","v":0},null,"EE 98",0," ",0]
[{"$f":"+'TRANSCRIPT INFO'!B49","v":"CHE 161"},{"$f":"IF(+'TRANSCRIPT INFO'!L49=\"\",0,IF('TRANSCRIPT INFO'!L49=\"N/A\",0,'TRANSCRIPT INFO'!L49))","v":0},{"$f":"+'TRANSCRIPT INFO'!M49","v":0},{"$f":"+'TRANSCRIPT INFO'!N49","v":0},null,"ENGR 10",0," ",0]
[{"$f":"+'TRANSCRIPT INFO'!B50","v":"CHE 162"},{"$f":"IF(+'TRANSCRIPT INFO'!L50=\"\",0,IF('TRANSCRIPT INFO'!L50=\"N/A\",0,'TRANSCRIPT INFO'!L50))","v":0},{"$f":"+'TRANSCRIPT INFO'!M50","v":0},{"$f":"+'TRANSCRIPT INFO'!N50","v":0},null,"ENGR 100W",0," ",0]
[{"$f":"+'TRANSCRIPT INFO'!B51","v":"MATE 145"},{"$f":"IF(+'TRANSCRIPT INFO'!L51=\"\",0,IF('TRANSCRIPT INFO'!L51=\"N/A\",0,'TRANSCRIPT INFO'!L51))","v":0},{"$f":"+'TRANSCRIPT INFO'!M51","v":0},{"$f":"+'TRANSCRIPT INFO'!N51","v":0},null,"MATE 25",0," ",0]
[{"$f":"+'TRANSCRIPT INFO'!B52","v":"ENGR 100W"},{"$f":"IF(+'TRANSCRIPT INFO'!L52=\"\",0,IF('TRANSCRIPT INFO'!L52=\"N/A\",0,'TRANSCRIPT INFO'!L52))","v":0},{"$f":"+'TRANSCRIPT INFO'!M52","v":0},{"$f":"+'TRANSCRIPT INFO'!N52","v":0},null,"MATH 133A",0," ",0]
[{"$f":"+'TRANSCRIPT INFO'!B53","v":"MATE 143"},{"$f":"IF(+'TRANSCRIPT INFO'!L53=\"\",0,IF('TRANSCRIPT INFO'!L53=\"N/A\",0,'TRANSCRIPT INFO'!L53))","v":0},{"$f":"+'TRANSCRIPT INFO'!M53","v":" "},{"$f":"+'TRANSCRIPT INFO'!N53","v":0},null,"MATH 30",0," ",0]
[{"$f":"+'TRANSCRIPT INFO'!B54","v":"MATE 144"},{"$f":"IF(+'TRANSCRIPT INFO'!L54=\"\",0,IF('TRANSCRIPT INFO'!L54=\"N/A\",0,'TRANSCRIPT INFO'!L54))","v":0},{"$f":"+'TRANSCRIPT INFO'!M54","v":" "},{"$f":"+'TRANSCRIPT INFO'!N54","v":0},null,"MATH 31",0," ",0]
[{"$f":"+'TRANSCRIPT INFO'!B55","v":0},{"$f":"IF(+'TRANSCRIPT INFO'!L55=\"\",0,IF('TRANSCRIPT INFO'!L55=\"N/A\",0,'TRANSCRIPT INFO'!L55))","v":0},{"$f":"+'TRANSCRIPT INFO'!M55","v":" "},{"$f":"+'TRANSCRIPT INFO'!N55","v":0},null,"MATH 32",0," ",0]
[null,null,null,null,null,"PHYS 70",0," ",0]
[{"$f":"+'TRANSCRIPT INFO'!B57","v":0},{"$f":"IF(+'TRANSCRIPT INFO'!L57=\"\",0,IF('TRANSCRIPT INFO'!L57=\"N/A\",0,'TRANSCRIPT INFO'!L57))","v":0},{"$f":"+'TRANSCRIPT INFO'!M57","v":" "},{"$f":"+'TRANSCRIPT INFO'!N57","v":" "},null,"PHYS 71",0," ",0]
[{"$f":"+'TRANSCRIPT INFO'!B58","v":0},{"$f":"IF(+'TRANSCRIPT INFO'!L58=\"\",0,IF('TRANSCRIPT INFO'!L58=\"N/A\",0,'TRANSCRIPT INFO'!L58))","v":0},{"$f":"+'TRANSCRIPT INFO'!M58","v":" "},{"$f":"+'TRANSCRIPT INFO'!N58","v":" "},null,"CHE 115",0,"F",0]
[{"$f":"+'TRANSCRIPT INFO'!B59","v":0},{"$f":"IF(+'TRANSCRIPT INFO'!L59=\"\",0,IF('TRANSCRIPT INFO'!L59=\"N/A\",0,'TRANSCRIPT INFO'!L59))","v":0},{"$f":"+'TRANSCRIPT INFO'!M59","v":" "},{"$f":"+'TRANSCRIPT INFO'!N59","v":" "},null,"CHE 158",0,"F",0]
[{"$f":"+'TRANSCRIPT INFO'!B62","v":0},{"$f":"IF(+'TRANSCRIPT INFO'!L62=\"\",0,IF('TRANSCRIPT INFO'!L62=\"N/A\",0,'TRANSCRIPT INFO'!L62))","v":0},{"$f":"+'TRANSCRIPT INFO'!M62","v":0},{"$f":"+'TRANSCRIPT INFO'!N62","v":0},null,"CHE 160B",0,"F",0]
[{"$f":"+'TRANSCRIPT INFO'!B63","v":0},{"$f":"IF(+'TRANSCRIPT INFO'!L63=\"\",0,IF('TRANSCRIPT INFO'!L63=\"N/A\",0,'TRANSCRIPT INFO'!L63))","v":0},{"$f":"+'TRANSCRIPT INFO'!M63","v":0},{"$f":"+'TRANSCRIPT INFO'!N63","v":0},null,"CHE 161",0,"F",0]
[{"$f":"+'TRANSCRIPT INFO'!B64","v":0},{"$f":"IF(+'TRANSCRIPT INFO'!L64=\"\",0,IF('TRANSCRIPT INFO'!L64=\"N/A\",0,'TRANSCRIPT INFO'!L64))","v":0},{"$f":"+'TRANSCRIPT INFO'!M64","v":0},{"$f":"+'TRANSCRIPT INFO'!N64","v":0},null,"CHE 161L",0,"F",0]
[{"$f":"IF(GEs!$K$3=\"\",IF(GEs!$D$11=\"Y\",+GEs!C16,\"\"))","v":""},{"$f":"IF(GEs!$K$3=\"\",IF(GEs!$D$11=\"Y\",+GEs!I16,\"\"))","v":""},{"$f":"IF(GEs!$K$3=\"\",IF(GEs!$D$11=\"Y\",+GEs!G16,\"\"))","v":""},{"$f":"IF(GEs!$K$3=\"\",IF(GEs!$D$11=\"Y\",+GEs!H16,\"\"))","v":""},null,"CHE 151",0,"Sp",0]
[{"$f":"IF(GEs!$K$3=\"\",IF(GEs!$D$11=\"Y\",+GEs!C17,\"\"))","v":""},{"$f":"IF(GEs!$K$3=\"\",IF(GEs!$D$11=\"Y\",+GEs!I17,\"\"))","v":""},{"$f":"IF(GEs!$K$3=\"\",IF(GEs!$D$11=\"Y\",+GEs!G17,\"\"))","v":""},{"$f":"IF(GEs!$K$3=\"\",IF(GEs!$D$11=\"Y\",+GEs!H17,\"\"))","v":""},null,"CHE 160A",0,"Sp",0]
[{"$f":"IF(GEs!$K$3=\"\",IF(GEs!$D$11=\"Y\",+GEs!C18,\"\"))","v":""},{"$f":"IF(GEs!$K$3=\"\",IF(GEs!$D$11=\"Y\",+GEs!I18,\"\"))","v":""},{"$f":"IF(GEs!$K$3=\"\",IF(GEs!$D$11=\"Y\",+GEs!G18,\"\"))","v":""},{"$f":"IF(GEs!$K$3=\"\",IF(GEs!$D$11=\"Y\",+GEs!H18,\"\"))","v":""},null,"CHE 162L",0,"Sp",0]
[{"$f":"IF(GEs!$K$3=\"\",IF(GEs!$D$11=\"Y\",+GEs!C19,\"\"))","v":""},{"$f":"IF(GEs!$K$3=\"\",IF(GEs!$D$11=\"Y\",+GEs!I19,\"\"))","v":""},{"$f":"IF(GEs!$K$3=\"\",IF(GEs!$D$11=\"Y\",+GEs!G19,\"\"))","v":""},{"$f":"IF(GEs!$K$3=\"\",IF(GEs!$D$11=\"Y\",+GEs!H19,\"\"))","v":""},null,"CHE 162L",0,"Sp",0]
[{"$f":"IF(GEs!$K$3=\"\",IF(GEs!$D$11=\"Y\",+GEs!C20,\"\"))","v":""},{"$f":"IF(GEs!$K$3=\"\",IF(GEs!$D$11=\"Y\",+GEs!I20,\"\"))","v":""},{"$f":"IF(GEs!$K$3=\"\",IF(GEs!$D$11=\"Y\",+GEs!G20,\"\"))","v":""},{"$f":"IF(GEs!$K$3=\"\",IF(GEs!$D$11=\"Y\",+GEs!H20,\"\"))","v":""},null,"CHE 165",0,"Sp",0]
[{"$f":"IF(GEs!$K$3=\"\",IF(GEs!$D$11=\"Y\",+GEs!C21,\"\"))","v":""},{"$f":"IF(GEs!$K$3=\"\",IF(GEs!$D$11=\"Y\",+GEs!I21,\"\"))","v":""},{"$f":"IF(GEs!$K$3=\"\",IF(GEs!$D$11=\"Y\",+GEs!G21,\"\"))","v":""},{"$f":"IF(GEs!$K$3=\"\",IF(GEs!$D$11=\"Y\",+GEs!H21,\"\"))","v":""},null,"CHE 185",0,"Sp",0]
[{"$f":"IF(GEs!$K$3=\"\",IF(GEs!$D$11=\"Y\",+GEs!C22,\"\"))","v":""},{"$f":"IF(GEs!$K$3=\"\",IF(GEs!$D$11=\"Y\",+GEs!I22,\"\"))","v":""},{"$f":"IF(GEs!$K$3=\"\",IF(GEs!$D$11=\"Y\",+GEs!G22,\"\"))","v":""},{"$f":"IF(GEs!$K$3=\"\",IF(GEs!$D$11=\"Y\",+GEs!H22,\"\"))","v":""},null,"","","",""]
[{"$f":"IF(GEs!$K$3=\"\",IF(GEs!$D$11=\"Y\",+GEs!C23,\"\"))","v":""},{"$f":"IF(GEs!$K$3=\"\",IF(GEs!$D$11=\"Y\",+GEs!I23,\"\"))","v":""},{"$f":"IF(GEs!$K$3=\"\",IF(GEs!$D$11=\"Y\",+GEs!G23,\"\"))","v":""},{"$f":"IF(GEs!$K$3=\"\",IF(GEs!$D$11=\"Y\",+GEs!H23,\"\"))","v":""},null,"","","",""]
[null,null,null,null,null,"","","",""]
[null,null,null,null,null,"","","",""]
[null,null,null,null,null,"","","",""]
[{"$f":"IF(GEs!$K$3=\"\",IF(GEs!$D$12=\"Y\",+GEs!C27,\"\"))","v":""},{"$f":"IF(GEs!$K$3=\"\",IF(GEs!$D$12=\"Y\",+GEs!I27,\"\"))","v":""},{"$f":"IF(GEs!$K$3=\"\",IF(GEs!$D$12=\"Y\",+GEs!G27,\"\"))","v":""},{"$f":"IF(GEs!$K$3=\"\",IF(GEs!$D$12=\"Y\",+GEs!H27,\"\"))","v":""},null,"","","",""]
[{"$f":"IF(GEs!$K$3=\"\",IF(GEs!$D$12=\"Y\",+GEs!C28,\"\"))","v":""},{"$f":"IF(GEs!$K$3=\"\",IF(GEs!$D$12=\"Y\",+GEs!I28,\"\"))","v":""},{"$f":"IF(GEs!$K$3=\"\",IF(GEs!$D$12=\"Y\",+GEs!G28,\"\"))","v":""},{"$f":"IF(GEs!$K$3=\"\",IF(GEs!$D$12=\"Y\",+GEs!H28,\"\"))","v":""},null,"","","",""]
[{"$f":"IF(GEs!$K$3=\"\",IF(GEs!$D$12=\"Y\",+GEs!C29,\"\"))","v":""},{"$f":"IF(GEs!$K$3=\"\",IF(GEs!$D$12=\"Y\",+GEs!I29,\"\"))","v":""},{"$f":"IF(GEs!$K$3=\"\",IF(GEs!$D$12=\"Y\",+GEs!G29,\"\"))","v":""},{"$f":"IF(GEs!$K$3=\"\",IF(GEs!$D$12=\"Y\",+GEs!H29,\"\"))","v":""},null,"","","",""]
[{"$f":"IF(GEs!$K$3=\"\",IF(GEs!$D$12=\"Y\",+GEs!C30,\"\"))","v":""},{"$f":"IF(GEs!$K$3=\"\",IF(GEs!$D$12=\"Y\",+GEs!I30,\"\"))","v":""},{"$f":"IF(GEs!$K$3=\"\",IF(GEs!$D$12=\"Y\",+GEs!G30,\"\"))","v":""},{"$f":"IF(GEs!$K$3=\"\",IF(GEs!$D$12=\"Y\",+GEs!H30,\"\"))","v":""},null,"","","",""]
[{"$f":"IF(GEs!$K$3=\"\",IF(GEs!$D$12=\"Y\",+GEs!C31,\"\"))","v":""},{"$f":"IF(GEs!$K$3=\"\",IF(GEs!$D$12=\"Y\",+GEs!I31,\"\"))","v":""},{"$f":"IF(GEs!$K$3=\"\",IF(GEs!$D$12=\"Y\",+GEs!G31,\"\"))","v":""},{"$f":"IF(GEs!$K$3=\"\",IF(GEs!$D$12=\"Y\",+GEs!H31,\"\"))","v":""},null,"","","",""]
[{"$f":"IF(GEs!$K$3=\"\",IF(GEs!$D$12=\"Y\",+GEs!C32,\"\"))","v":""},{"$f":"IF(GEs!$K$3=\"\",IF(GEs!$D$12=\"Y\",+GEs!I32,\"\"))","v":""},{"$f":"IF(GEs!$K$3=\"\",IF(GEs!$D$12=\"Y\",+GEs!G32,\"\"))","v":""},{"$f":"IF(GEs!$K$3=\"\",IF(GEs!$D$12=\"Y\",+GEs!H32,\"\"))","v":""},null,"","","",""]
[{"$f":"IF(GEs!$K$3=\"\",IF(GEs!$D$12=\"Y\",+GEs!C33,\"\"))","v":""},{"$f":"IF(GEs!$K$3=\"\",IF(GEs!$D$12=\"Y\",+GEs!I33,\"\"))","v":""},{"$f":"IF(GEs!$K$3=\"\",IF(GEs!$D$12=\"Y\",+GEs!G33,\"\"))","v":""},{"$f":"IF(GEs!$K$3=\"\",IF(GEs!$D$12=\"Y\",+GEs!H33,\"\"))","v":""},null,"","","",""]
[{"$f":"IF(GEs!$K$3=\"\",IF(GEs!$D$12=\"Y\",+GEs!C34,\"\"))","v":""},{"$f":"IF(GEs!$K$3=\"\",IF(GEs!$D$12=\"Y\",+GEs!I34,\"\"))","v":""},{"$f":"IF(GEs!$K$3=\"\",IF(GEs!$D$12=\"Y\",+GEs!G34,\"\"))","v":""},{"$f":"IF(GEs!$K$3=\"\",IF(GEs!$D$12=\"Y\",+GEs!H34,\"\"))","v":""},null,"","","",""]
[{"$f":"IF(GEs!$K$3=\"\",IF(GEs!$D$12=\"Y\",+GEs!C35,\"\"))","v":""},{"$f":"IF(GEs!$K$3=\"\",IF(GEs!$D$12=\"Y\",+GEs!I35,\"\"))","v":""},{"$f":"IF(GEs!$K$3=\"\",IF(GEs!$D$12=\"Y\",+GEs!G35,\"\"))","v":""},{"$f":"IF(GEs!$K$3=\"\",IF(GEs!$D$12=\"Y\",+GEs!H35,\"\"))","v":""},null,"","","",""]
[{"$f":"IF(GEs!$K$3=\"\",IF(GEs!$D$12=\"Y\",+GEs!C36,\"\"))","v":""},{"$f":"IF(GEs!$K$3=\"\",IF(GEs!$D$12=\"Y\",+GEs!I36,\"\"))","v":""},{"$f":"IF(GEs!$K$3=\"\",IF(GEs!$D$12=\"Y\",+GEs!G36,\"\"))","v":""},{"$f":"IF(GEs!$K$3=\"\",IF(GEs!$D$12=\"Y\",+GEs!H36,\"\"))","v":""},null,"","","",""]
[{"$f":"IF(GEs!$K$3=\"\",IF(GEs!$D$12=\"Y\",+GEs!C37,\"\"))","v":""},{"$f":"IF(GEs!$K$3=\"\",IF(GEs!$D$12=\"Y\",+GEs!I37,\"\"))","v":""},{"$f":"IF(GEs!$K$3=\"\",IF(GEs!$D$12=\"Y\",+GEs!G37,\"\"))","v":""},{"$f":"IF(GEs!$K$3=\"\",IF(GEs!$D$12=\"Y\",+GEs!H37,\"\"))","v":""},null,"","","",""]
[{"$f":"IF(GEs!$K$3=\"\",IF(GEs!$D$12=\"Y\",+GEs!C38,\"\"))","v":""},{"$f":"IF(GEs!$K$3=\"\",IF(GEs!$D$12=\"Y\",+GEs!I38,\"\"))","v":""},{"$f":"IF(GEs!$K$3=\"\",IF(GEs!$D$12=\"Y\",+GEs!G38,\"\"))","v":""},{"$f":"IF(GEs!$K$3=\"\",IF(GEs!$D$12=\"Y\",+GEs!H38,\"\"))","v":""},null,"","","",""]
[{"$f":"IF(GEs!$K$3=\"\",IF(GEs!$D$12=\"Y\",+GEs!C39,\"\"))","v":""},{"$f":"IF(GEs!$K$3=\"\",IF(GEs!$D$12=\"Y\",+GEs!I39,\"\"))","v":""},{"$f":"IF(GEs!$K$3=\"\",IF(GEs!$D$12=\"Y\",+GEs!G39,\"\"))","v":""},{"$f":"IF(GEs!$K$3=\"\",IF(GEs!$D$12=\"Y\",+GEs!H39,\"\"))","v":""},null,"","","",""]
[{"$f":"IF(GEs!$K$3=\"\",IF(GEs!$D$12=\"Y\",+GEs!C40,\"\"))","v":""},{"$f":"IF(GEs!$K$3=\"\",IF(GEs!$D$12=\"Y\",+GEs!I40,\"\"))","v":""},{"$f":"IF(GEs!$K$3=\"\",IF(GEs!$D$12=\"Y\",+GEs!G40,\"\"))","v":""},{"$f":"IF(GEs!$K$3=\"\",IF(GEs!$D$12=\"Y\",+GEs!H40,\"\"))","v":""},null,"","","",""]
[null,null,null,null,null,"","","",""]
[null,null,null,null,null,"ENGR. SCI. ELEC.",0," "," "]
[null,null,null,null,null,"ENGR. SCI. ELEC.",0," "," "]
[{"$f":"IF(GEs!$K$3=\"\",IF(GEs!$D$13=\"Y\",+GEs!C44,\"\"))","v":""},{"$f":"IF(GEs!$K$3=\"\",IF(GEs!$D$13=\"Y\",+GEs!I44,\"\"))","v":""},{"$f":"IF(GEs!$K$3=\"\",IF(GEs!$D$13=\"Y\",+GEs!G44,\"\"))","v":""},{"$f":"IF(GEs!$K$3=\"\",IF(GEs!$D$13=\"Y\",+GEs!H44,\"\"))","v":""},null,"UD CHEM ELECT.",0," "," "]
[{"$f":"IF(GEs!$K$3=\"\",IF(GEs!$D$13=\"Y\",+GEs!C45,\"\"))","v":""},{"$f":"IF(GEs!$K$3=\"\",IF(GEs!$D$13=\"Y\",+GEs!I45,\"\"))","v":""},{"$f":"IF(GEs!$K$3=\"\",IF(GEs!$D$13=\"Y\",+GEs!G45,\"\"))","v":""},{"$f":"IF(GEs!$K$3=\"\",IF(GEs!$D$13=\"Y\",+GEs!H45,\"\"))","v":""}]
[{"$f":"IF(GEs!$K$3=\"\",IF(GEs!$D$13=\"Y\",+GEs!C46,\"\"))","v":""},{"$f":"IF(GEs!$K$3=\"\",IF(GEs!$D$13=\"Y\",+GEs!I46,\"\"))","v":""},{"$f":"IF(GEs!$K$3=\"\",IF(GEs!$D$13=\"Y\",+GEs!G46,\"\"))","v":""},{"$f":"IF(GEs!$K$3=\"\",IF(GEs!$D$13=\"Y\",+GEs!H46,\"\"))","v":""}]
[{"$f":"IF(GEs!$K$3=\"\",IF(GEs!$D$13=\"Y\",+GEs!C47,\"\"))","v":""},{"$f":"IF(GEs!$K$3=\"\",IF(GEs!$D$13=\"Y\",+GEs!I47,\"\"))","v":""},{"$f":"IF(GEs!$K$3=\"\",IF(GEs!$D$13=\"Y\",+GEs!G47,\"\"))","v":""},{"$f":"IF(GEs!$K$3=\"\",IF(GEs!$D$13=\"Y\",+GEs!H47,\"\"))","v":""}]
[{"$f":"IF(GEs!$K$3=\"\",IF(GEs!$D$13=\"Y\",+GEs!C48,\"\"))","v":""},{"$f":"IF(GEs!$K$3=\"\",IF(GEs!$D$13=\"Y\",+GEs!I48,\"\"))","v":""},{"$f":"IF(GEs!$K$3=\"\",IF(GEs!$D$13=\"Y\",+GEs!G48,\"\"))","v":""},{"$f":"IF(GEs!$K$3=\"\",IF(GEs!$D$13=\"Y\",+GEs!H48,\"\"))","v":""}]
[{"$f":"IF(GEs!$K$3=\"\",IF(GEs!$D$13=\"Y\",+GEs!C49,\"\"))","v":""},{"$f":"IF(GEs!$K$3=\"\",IF(GEs!$D$13=\"Y\",+GEs!I49,\"\"))","v":""},{"$f":"IF(GEs!$K$3=\"\",IF(GEs!$D$13=\"Y\",+GEs!G49,\"\"))","v":""},{"$f":"IF(GEs!$K$3=\"\",IF(GEs!$D$13=\"Y\",+GEs!H49,\"\"))","v":""}]
[]
[]
[]
[]
[]
[]
[{"$f":"+GEs!C55","v":"S - SELF, SOCIETY & EQUALITY IN THE US"},{"$f":"IF(+GEs!I55=\"\",0,GEs!I55)","v":0},{"$f":"+GEs!G55","v":0},{"$f":"+GEs!H55","v":0}]
[{"$f":"+GEs!C56","v":"V - CULTURE, CIVILIZATION & GLOBAL UNDERS."},{"$f":"IF(+GEs!I56=\"\",0,GEs!I56)","v":0},{"$f":"+GEs!G56","v":0},{"$f":"+GEs!H56","v":0}]
[{"$f":"+GEs!C57","v":"Z - WRITTEN COMUNICATION II"},{"$f":"IF(+GEs!I57=\"\",0,GEs!I57)","v":0},{"$f":"+GEs!G58","v":0},{"$f":"+GEs!H58","v":0}]
[{"$f":"IF(GEs!D57=\"ENGR 100W\",\"\",+GEs!C58)","v":""},{"$f":"IF(+GEs!I58=\"\",0,GEs!I58)","v":0},{"$f":"+GEs!G59","v":0},{"$f":"+GEs!H59","v":0}]